Service Delivery Area(T),Service Delivery Team(T),CostC,ExpenditureGroup(T),Account(T),Supplier Name(T),Trans Date,Amount
Adult Social Services,Access & Enablement,HHAC,Employees,Training Exp's (Facilitators),NDI CONSULTING LTD,09/02/2015,"6,000.00"
Adult Social Services,Access & Enablement,HHAC,Supplies & Services,Conference Expenses,THE UNIVERSITY OF BIRMINGHAM,09/02/2015,295.00
Adult Social Services,Access & Enablement,HHAC,Supplies & Services,Conference Expenses,ADASS,24/02/2015,499.00
Adult Social Services,Access & Enablement,HHAC,Supplies & Services,Other Grants (Expenses),TELFORD & WREKIN CVS,24/02/2015,"60,000.00"
Adult Social Services,Access & Enablement,HHAC,Supplies & Services,Consultants Fees,JRFB Ltd,27/02/2015,"1,500.00"
Adult Social Services,Access & Enablement,HMAA,Supplies & Services,Service Contracts,SRCL LTD,17/02/2015,906.68
Adult Social Services,Access & Enablement,HMAX,Supplies & Services,Other Grants (Expenses),CAIS Ltd,17/02/2015,"1,295.00"
Adult Social Services,Access & Enablement,HMAX,Supplies & Services,Other Grants (Expenses),CAIS Ltd,17/02/2015,690.00
Adult Social Services,Access & Enablement,HMAX,Supplies & Services,Other Grants (Expenses),S STAFFORDSHIRE & SHROPSHIRE HEALTHCARE,18/02/2015,"21,053.76"
Adult Social Services,Access & Enablement,HMAX,Supplies & Services,Other Grants (Expenses),CAIS Ltd,19/02/2015,"1,850.00"
Adult Social Services,Access & Enablement,HMBB,Premises-Related Expenditure,Gas,BRITISH GAS BUSINESS (52464055),11/02/2015,"1,805.87"
Adult Social Services,Access & Enablement,HMBC,Premises-Related Expenditure,Hire Of Rooms,MEADCROFT COMFORTS FUND,11/02/2015,130.00
Adult Social Services,Access & Enablement,HMBJ,Third Party Payments,Homecare Expenditure,Firs Riverside B & B,11/02/2015,637.00
Adult Social Services,Access & Enablement,HOAF,Third Party Payments,Private Contractors,RNIB SERVICES LIMITED,20/02/2015,200.00
Adult Social Services,Access & Enablement,HOAF,Third Party Payments,Private Contractors,RNIB SERVICES LIMITED,03/02/2015,150.00
Adult Social Services,Access & Enablement,HOAF,Third Party Payments,Private Contractors,RNIB SERVICES LIMITED,03/02/2015,900.00
Adult Social Services,Access & Enablement,HOAF,Third Party Payments,Private Contractors,RNIB SERVICES LIMITED,03/02/2015,150.00
Adult Social Services,Access & Enablement,HOAG,Supplies & Services,Aids & Appliances,SW RETAIL LTD T/A IC,20/02/2015,110.00
Adult Social Services,Access & Enablement,HOAG,Supplies & Services,Aids & Appliances,COBOLT SYSTEMS LTD,20/02/2015,120.00
Adult Social Services,Access & Enablement,HOAG,Supplies & Services,Translation Services,VISS LTD,25/02/2015,125.00
Adult Social Services,Access & Enablement,HOAP,Supplies & Services,Aids & Appliances,THE WREKIN HOUSING TRUST (INVOICES ONLY),09/02/2015,125.00
Adult Social Services,Access & Enablement,HOAP,Supplies & Services,Aids & Appliances,THE WREKIN HOUSING TRUST (INVOICES ONLY),09/02/2015,250.00
Adult Social Services,Access & Enablement,HOAP,Supplies & Services,Aids & Appliances,THE WREKIN HOUSING TRUST (INVOICES ONLY),09/02/2015,158.00
Adult Social Services,Access & Enablement,HOAP,Supplies & Services,Aids & Appliances,THE WREKIN HOUSING TRUST (INVOICES ONLY),23/02/2015,245.00
Adult Social Services,Access & Enablement,HOAP,Supplies & Services,Aids & Appliances,THE WREKIN HOUSING TRUST (INVOICES ONLY),23/02/2015,125.00
Adult Social Services,Access & Enablement,HOAP,Supplies & Services,Aids & Appliances,RSLSTEEPER,19/02/2015,234.15
Adult Social Services,Access & Enablement,HOAP,Supplies & Services,Equipment - Repair,WESSEX LIFT CO. LTD,20/02/2015,161.82
Adult Social Services,Access & Enablement,HOAP,Supplies & Services,Equipment - Repair,WESSEX LIFT CO. LTD,20/02/2015,153.84
Adult Social Services,Access & Enablement,HOAP,Supplies & Services,Aids & Appliances,AA Moving Solutions Ltd,10/02/2015,598.50
Adult Social Services,Access & Enablement,HOAP,Supplies & Services,Aids & Appliances,AA Moving Solutions Ltd,10/02/2015,131.25
Adult Social Services,Access & Enablement,HOAP,Supplies & Services,Aids & Appliances,AA Moving Solutions Ltd,10/02/2015,472.50
Adult Social Services,Access & Enablement,HOAP,Supplies & Services,Aids & Appliances,THE WREKIN HOUSING TRUST (INVOICES ONLY),23/02/2015,125.00
Adult Social Services,Access & Enablement,HOAP,Supplies & Services,Equipment - Repair,HANDICARE ACCESSIBILITY LIMITED,26/02/2015,"4,443.65"
Adult Social Services,Access & Enablement,HOAP,Supplies & Services,Equipment - Repair,HANDICARE ACCESSIBILITY LIMITED,25/02/2015,175.00
Adult Social Services,Access & Enablement,HOAP,Supplies & Services,Equipment - Repair,HANDICARE ACCESSIBILITY LIMITED,25/02/2015,540.60
Adult Social Services,Access & Enablement,HOAP,Supplies & Services,Adaptations,TRAVIS PERKINS TRADING CO LIMITED,12/02/2015,401.12
Adult Social Services,Access & Enablement,HOAP,Supplies & Services,Aids & Appliances,AA Moving Solutions Ltd,12/02/2015,"2,407.76"
Adult Social Services,Access & Enablement,HOAP,Supplies & Services,Aids & Appliances,MANGAR INTERNATIONAL LTD,06/02/2015,"7,000.00"
Adult Social Services,Access & Enablement,HOBJ,Supplies & Services,Printing - Other,PARAGON,25/02/2015,223.00
Adult Social Services,Access & Enablement,HOBJ,Supplies & Services,Telephones,BRITISH TELECOMMUNICATIONS PLC,25/02/2015,150.25
Adult Social Services,Access & Enablement,HOBJ,Supplies & Services,Telephones,BRITISH TELECOMMUNICATIONS PLC,25/02/2015,122.33
Adult Social Services,Access & Enablement,HOBJ,Supplies & Services,Telephones,BRITISH TELECOMMUNICATIONS PLC,06/02/2015,158.85
Adult Social Services,Access & Enablement,HOBN,Third Party Payments,Homecare Expenditure,PEACE OF MIND HOMECARE LIMITED,06/02/2015,242.86
Adult Social Services,Access & Enablement,HOBN,Third Party Payments,Homecare Expenditure,Direct Health Homecare Limited,06/02/2015,"1,277.00"
Adult Social Services,Access & Enablement,HOBN,Third Party Payments,Homecare Expenditure,Direct Health Homecare Limited,06/02/2015,"1,478.39"
Adult Social Services,Access & Enablement,HOBQ,Premises-Related Expenditure,Insurance Premises,Redacted Personal Information,18/02/2015,838.03
Adult Social Services,Access & Enablement,HOBR,Third Party Payments,Homecare Expenditure,SUPREME HOME CARE,18/02/2015,"7,414.72"
Adult Social Services,Access & Enablement,HOBS,Supplies & Services,Aids & Appliances,SHROPSHIRE COMMUNITY HEALTH NHS TRUST,20/02/2015,"6,301.66"
Adult Social Services,Access & Enablement,HOBY,Third Party Payments,Residential Expenditure,ACCORD HOUSING ASSOCIATION LIMITED,24/02/2015,"15,214.36"
Adult Social Services,Assessment & Case Management,HLCK,Third Party Payments,Residential Expenditure,CHOICES HOUSING ASSOCIATION,18/02/2015,"-36,791.58"
Adult Social Services,Assessment & Case Management,HLCK,Third Party Payments,Residential Expenditure,CHOICES HOUSING ASSOCIATION,18/02/2015,"36,791.58"
Adult Social Services,Assessment & Case Management,HLCK,Third Party Payments,Residential Expenditure,CHOICES HOUSING ASSOCIATION,18/02/2015,"34,163.61"
Adult Social Services,Assessment & Case Management,HLCL,Premises-Related Expenditure,General Rents,BOURNVILLE VILLAGE TRUST,24/02/2015,"68,380.23"
Adult Social Services,Assessment & Case Management,HLCL,Supplies & Services,Respite Care,BOURNVILLE VILLAGE TRUST,09/02/2015,"53,186.36"
Adult Social Services,Assessment & Case Management,HLCL,Third Party Payments,Residential Expenditure,BOURNVILLE VILLAGE TRUST,09/02/2015,"132,965.89"
Adult Social Services,Assessment & Case Management,HOAC,Supplies & Services,Contribution to Arthog,RANDLAY PENSIONERS LUNCHEON CLUB,16/02/2015,119.60
Adult Social Services,Assessment & Case Management,HOAC,Supplies & Services,Purchased Meals,COVERAGE CARE SERVICES LTD (SY3),16/02/2015,"1,004.25"
Adult Social Services,Assessment & Case Management,HOAC,Supplies & Services,Purchased Meals,COVERAGE CARE SERVICES LTD (SY3),16/02/2015,323.15
Adult Social Services,Assessment & Case Management,HOAC,Supplies & Services,Purchased Meals,COVERAGE CARE SERVICES LTD (SY3),16/02/2015,"1,004.25"
Adult Social Services,Assessment & Case Management,HOAC,Supplies & Services,Purchased Meals,ACCORD HOUSING ASSOCIATION LIMITED,25/02/2015,173.42
Adult Social Services,Assessment & Case Management,HOAW,Employees,Employee Costs Recharged,SHROPSHIRE COMMUNITY HEALTH NHS TRUST,17/02/2015,"19,662.00"
Adult Social Services,Assessment & Case Management,HOAW,Employees,Employee Costs Recharged,SHROPSHIRE COMMUNITY HEALTH NHS TRUST,02/02/2015,"19,662.00"
Adult Social Services,Assessment & Case Management,HOAW,Supplies & Services,Equipment - Purchase,Boots The Chemist,17/02/2015,140.00
Adult Social Services,Assessment & Case Management,HOBB,Transport-Related Expenditure,Parking Charges,SHREWSBURY & TELFORD HOSPITAL NHS TRUST,17/02/2015,"1,275.00"
Adult Social Services,Assessment & Case Management,HOCF,Supplies & Services,Other Grants (Expenses),SOCIAL CARE ONE OFF SUNDRIES,27/02/2015,-500.00
Adult Social Services,Assessment & Case Management,HOCM,Third Party Payments,Nursing Expenditure,MORRIS CARE,18/02/2015,"2,590.71"
Adult Social Services,Assessment & Case Management,HOCM,Third Party Payments,Nursing Expenditure,MORRIS CARE,18/02/2015,"2,340.00"
Adult Social Services,Assessment & Case Management,HOCM,Third Party Payments,Nursing Expenditure,MORRIS CARE,18/02/2015,"6,100.71"
Adult Social Services,Assessment & Case Management,HPAB,Supplies & Services,Telecomms,BT GLOBAL SERVICES (00637351),06/02/2015,369.82
Adult Social Services,Assessment & Case Management,HPAB,Supplies & Services,Telecomms,BT GLOBAL SERVICES (00637351),26/02/2015,369.82
Adult Social services,Assessment & Case Management,HPAB,Supplies & Services,Computer Software (Maint),CM 2000 CARE MONITORING,14/02/2015,677.51
Children's Safeguarding & Specialist Services,Child Protection & Assessment,JCAK,Supplies & Services,Other Services,Beacon C&C,02/02/2015,"6,413.35"
Children's Safeguarding & Specialist Services,Child Protection & Assessment,JCAK,Supplies & Services,Other Services,Beacon C&C,24/02/2015,"9,224.35"
Children's Safeguarding & Specialist Services,Child Protection & Assessment,JHAB,Employees,Agency Supply Costs,Hamptons Resourcing,27/02/2015,"1,800.00"
Children's Safeguarding & Specialist Services,Child Protection & Assessment,JHAB,Employees,Agency Supply Costs,Hamptons Resourcing,27/02/2015,"2,400.00"
Children's Safeguarding & Specialist Services,Child Protection & Assessment,JHAB,Employees,Training Expenses,MEETING POINT TRUST LTD,02/02/2015,154.50
Children's Safeguarding & Specialist Services,Child Protection & Assessment,JHAB,Employees,Agency Supply Costs,Hamptons Resourcing,02/02/2015,"3,000.00"
Children's Safeguarding & Specialist Services,Child Protection & Assessment,JHAB,Employees,Agency Supply Costs,Hamptons Resourcing,02/02/2015,"2,400.00"
Children's Safeguarding & Specialist Services,Child Protection & Assessment,JHAB,Employees,Agency Supply Costs,Hamptons Resourcing,02/02/2015,"3,600.00"
Children's Safeguarding & Specialist Services,Child Protection & Assessment,JHAB,Employees,Staff Training,MEETING POINT TRUST LTD,24/02/2015,136.30
Children's Safeguarding & Specialist Services,Child Protection & Assessment,JHAB,Employees,Agency Supply Costs,Hamptons Resourcing,24/02/2015,"6,000.00"
Children's Safeguarding & Specialist Services,Child Protection & Assessment,JHAK,Supplies & Services,Other Services,Adoption Matters Northwest,02/02/2015,"1,194.42"
Children's Safeguarding & Specialist Services,Child Protection & Assessment,JMAA,Supplies & Services,Legal,NO 5 CHAMBERS LIMITED,09/02/2015,"1,250.00"
Children's Safeguarding & Specialist Services,Child Protection & Assessment,JMAA,Supplies & Services,Legal,St Ives Chambers,09/02/2015,600.00
Children's Safeguarding & Specialist Services,Child Protection & Assessment,JMAB,Employees,Other Employee Costs,THOMPSONS SOLICITORS,26/02/2015,300.00
Children's Safeguarding & Specialist Services,Child Protection & Assessment,JMAB,Employees,LGSS Lump Sum Recharge,TELFORD & WREKIN CVS,26/02/2015,604.35
Children's Safeguarding & Specialist Services,Child Protection & Assessment,JMAB,Supplies & Services,Section 17 Childrens Act,Abbey Lettings,27/02/2015,175.00
Children's Safeguarding & Specialist Services,Child Protection & Assessment,JMAB,Supplies & Services,Complaints,TELFORD & WREKIN CVS,26/02/2015,709.75
Children's Safeguarding & Specialist Services,Child Protection & Assessment,JMAB,Third Party Payments,Interpreters Fees,PEARL LINGUISTICS LTD,27/02/2015,385.90
Children's Safeguarding & Specialist Services,Child Protection & Assessment,JMAD,Supplies & Services,Translation Services,UK Language Solutions Ltd,26/02/2015,152.25
Children's Safeguarding & Specialist Services,Child Protection & Assessment,JMAD,Supplies & Services,CL - External Accommodation,UK Language Solutions Ltd,26/02/2015,287.25
Children's Safeguarding & Specialist Services,Child Protection & Assessment,JMAD,Supplies & Services,Translation Services,UK Language Solutions Ltd,26/02/2015,214.50
Children's Safeguarding & Specialist Services,Child Protection & Assessment,JMAD,Supplies & Services,Translation Services,UK Language Solutions Ltd,26/02/2015,162.50
Children's Safeguarding & Specialist Services,Child Protection & Assessment,JMAD,Third Party Payments,Interpreters Fees,PEARL LINGUISTICS LTD,27/02/2015,239.80
Children's Safeguarding & Specialist Services,Child Protection & Assessment,JMAD,Third Party Payments,Childminders,SMILEY FACES DAY NURSERIES LTD,26/02/2015,660.00
Children's Safeguarding & Specialist Services,Child Protection & Assessment,JMAD,Third Party Payments,Childminders,SMILEY FACES DAY NURSERIES LTD,26/02/2015,660.00
Children's Safeguarding & Specialist Services,Child Protection & Assessment,JMAE,Supplies & Services,Other Services,WILCOX PSYCHOLOGICAL ASSOCIATES LTD,09/02/2015,585.00
Children's Safeguarding & Specialist Services,Child Protection & Assessment,JMAL,Supplies & Services,CL - External Accommodation,Madeley Lettings,09/02/2015,175.00
Children's Safeguarding & Specialist Services,Child Protection & Assessment,JMAL,Supplies & Services,CL - External Accommodation,Madeley Lettings,09/02/2015,175.00
Children's Safeguarding & Specialist Services,Child Protection & Assessment,JMAL,Supplies & Services,Section 17 Childrens Act,NESTOR PRIMECARE SERVICES LTD T/A ALLIED HEALTHCARE,09/02/2015,635.07
Children's Safeguarding & Specialist Services,Child Protection & Assessment,JMAL,Supplies & Services,Section 17 Childrens Act,NESTOR PRIMECARE SERVICES LTD T/A ALLIED HEALTHCARE,09/02/2015,337.64
Children's Safeguarding & Specialist Services,Child Protection & Assessment,JMAL,Supplies & Services,Section 17 Childrens Act,NESTOR PRIMECARE SERVICES LTD T/A ALLIED HEALTHCARE,26/02/2015,331.62
Children's Safeguarding & Specialist Services,Child Protection & Assessment,JMAL,Supplies & Services,Section 17 Childrens Act,NESTOR PRIMECARE SERVICES LTD T/A ALLIED HEALTHCARE,26/02/2015,291.15
Children's Safeguarding & Specialist Services,Child Protection & Assessment,JMAL,Supplies & Services,Section 17 Childrens Act,NESTOR PRIMECARE SERVICES LTD T/A ALLIED HEALTHCARE,26/02/2015,260.05
Children's Safeguarding & Specialist Services,Child Protection & Assessment,JMAL,Supplies & Services,Protective Clothing,Bomere Heath CE Primary School,26/02/2015,123.50
Children's Safeguarding & Specialist Services,Child Protection & Assessment,JMAL,Third Party Payments,Childminders,LITTLE DRAGONS PRE-SCHOOL,26/02/2015,310.86
Children's Safeguarding & Specialist Services,Child Protection & Assessment,JMAL,Third Party Payments,Childminders,LITTLE DRAGONS PRE-SCHOOL,26/02/2015,314.82
Children's Safeguarding & Specialist Services,Child Protection & Assessment,JMAL,Transport-Related Expenditure,Taxi Costs,CENTRAL TAXIS LTD T/A GO CARZ ,26/02/2015,190.00
Children's Safeguarding & Specialist Services,Child Protection & Assessment,JPAH,Supplies & Services,Other Services,COVENTRY CITY COUNCIL,17/02/2015,"18,000.00"
Children's Safeguarding & Specialist Services,Child Protection & Assessment,JSAB,Supplies & Services,Section 17 Childrens Act,Maybach Lettings,11/02/2015,"1,060.00"
Children's Safeguarding & Specialist Services,Child Protection & Assessment,JSAB,Supplies & Services,Doctors Fees,ALPHA BIOLABORATORIES LIMITED,27/02/2015,585.00
Children's Safeguarding & Specialist Services,Child Protection & Assessment,JSAB,Third Party Payments,Childminders,CENTRAL PARK NURSERY,26/02/2015,620.40
Children's Safeguarding & Specialist Services,Children in Care & Fostering,JCAB,Supplies & Services,Supportive Lodgings,YMCA,25/02/2015,398.72
Children's Safeguarding & Specialist Services,Children in Care & Fostering,JCAB,Supplies & Services,Supportive Lodgings,LEAVING CARE COMPANY,17/02/2015,"1,372.86"
Children's Safeguarding & Specialist Services,Children in Care & Fostering,JCAB,Supplies & Services,Supportive Lodgings,STAY TELFORD XC SUPPORTED HOUSE,18/02/2015,731.92
Children's Safeguarding & Specialist Services,Children in Care & Fostering,JCAB,Supplies & Services,Supportive Lodgings,STAY TELFORD XC SUPPORTED HOUSE,18/02/2015,731.92
Children's Safeguarding & Specialist Services,Children in Care & Fostering,JCAB,Supplies & Services,Supportive Lodgings,STAY TELFORD XC SUPPORTED HOUSE,19/02/2015,671.20
Children's Safeguarding & Specialist Services,Children in Care & Fostering,JCAB,Supplies & Services,Supportive Lodgings,NEXT STEP CARE MANAGEMENT LTD,19/02/2015,"1,328.66"
Children's Safeguarding & Specialist Services,Children in Care & Fostering,JCAB,Supplies & Services,Supportive Lodgings,STAY TELFORD XC SUPPORTED HOUSE,12/02/2015,-577.93
Children's Safeguarding & Specialist Services,Children in Care & Fostering,JCAB,Supplies & Services,Supportive Lodgings,STAY TELFORD XC SUPPORTED HOUSE,12/02/2015,-677.25
Children's Safeguarding & Specialist Services,Children in Care & Fostering,JCAB,Supplies & Services,Supportive Lodgings,Carefirst Services Limited,12/02/2015,967.00
Children's Safeguarding & Specialist Services,Children in Care & Fostering,JCAB,Supplies & Services,Supportive Lodgings,Above N beyond Limited,12/02/2015,"1,304.33"
Children's Safeguarding & Specialist Services,Children in Care & Fostering,JCAB,Supplies & Services,Supportive Lodgings,NEXT STEP CARE MANAGEMENT LTD,24/02/2015,332.14
Children's Safeguarding & Specialist Services,Children in Care & Fostering,JCAB,Supplies & Services,Supportive Lodgings,STAY TELFORD XC SUPPORTED HOUSE,02/02/2015,-914.76
Children's Safeguarding & Specialist Services,Children in Care & Fostering,JCAB,Supplies & Services,Supportive Lodgings,STAY TELFORD XC SUPPORTED HOUSE,02/02/2015,-541.80
Children's Safeguarding & Specialist Services,Children in Care & Fostering,JCAB,Supplies & Services,Supportive Lodgings,Carefirst Services Limited,09/02/2015,"1,483.66"
Children's Safeguarding & Specialist Services,Children in Care & Fostering,JCAB,Supplies & Services,Supportive Lodgings,LEAVING CARE COMPANY,26/02/2015,"1,107.14"
Children's Safeguarding & Specialist Services,Children in Care & Fostering,JCAB,Supplies & Services,Educational Visits,SHREWSBURY COLLEGE OF ARTS & TECHNOLOGY,18/02/2015,389.00
Children's Safeguarding & Specialist Services,Children in Care & Fostering,JCAB,Supplies & Services,CL - Basic Allowance,Carefirst Services Limited,09/02/2015,114.70
Children's Safeguarding & Specialist Services,Children in Care & Fostering,JCAB,Supplies & Services,CL - Basic Allowance,Carefirst Services Limited,09/02/2015,286.75
Children's Safeguarding & Specialist Services,Children in Care & Fostering,JCAB,Supplies & Services,CL - Basic Allowance,Carefirst Services Limited,10/02/2015,229.40
Children's Safeguarding & Specialist Services,Children in Care & Fostering,JCAB,Transfer Payments,Leaving Care Grant,ARGOS BUSINESS SOLUTIONS,19/02/2015,266.66
Children's Safeguarding & Specialist Services,Children in Care & Fostering,JCAB,Transfer Payments,Leaving Care Grant,ARGOS BUSINESS SOLUTIONS,11/02/2015,133.33
Children's Safeguarding & Specialist Services,Children in Care & Fostering,JCAB,Transfer Payments,Leaving Care Grant,The Wellington Community Venue Ltd,12/02/2015,140.00
Children's Safeguarding & Specialist Services,Children in Care & Fostering,JCAB,Transfer Payments,Leaving Care Grant,ARGOS BUSINESS SOLUTIONS,02/02/2015,796.30
Children's Safeguarding & Specialist Services,Children in Care & Fostering,JCAB,Transfer Payments,Leaving Care Grant,Happy House Lettings,13/02/2015,225.00
Children's Safeguarding & Specialist Services,Children in Care & Fostering,JMAF,Third Party Payments,Childminders,SMILEY FACES DAY NURSERIES LTD,12/02/2015,432.00
Children's Safeguarding & Specialist Services,Children in Care & Fostering,JPAD,Third Party Payments,External Foster Care Payments,By The Bridge,25/02/2015,"4,280.00"
Children's Safeguarding & Specialist Services,Children in Care & Fostering,JPAD,Third Party Payments,External Foster Care Payments,FOSTERING PRIORY,25/02/2015,"3,268.00"
Children's Safeguarding & Specialist Services,Children in Care & Fostering,JPAD,Third Party Payments,External Foster Care Payments,FOSTER CARE ASSOCIATES LTD,25/02/2015,"3,098.96"
Children's Safeguarding & Specialist Services,Children in Care & Fostering,JPAD,Third Party Payments,External Foster Care Payments,FOSTER CARE ASSOCIATES LTD,25/02/2015,"2,949.58"
Children's Safeguarding & Specialist Services,Children in Care & Fostering,JPAD,Third Party Payments,External Foster Care Payments,FOSTER CARE ASSOCIATES LTD,25/02/2015,"4,739.42"
Children's Safeguarding & Specialist Services,Children in Care & Fostering,JPAD,Third Party Payments,External Foster Care Payments,SWIIS FOSTER CARE LTD,18/02/2015,872.63
Children's Safeguarding & Specialist Services,Children in Care & Fostering,JPAD,Third Party Payments,External Foster Care Payments,HILLCREST CARE LTD,17/02/2015,"2,755.00"
Children's Safeguarding & Specialist Services,Children in Care & Fostering,JPAD,Third Party Payments,External Foster Care Payments,HILLCREST CARE LTD,17/02/2015,"2,930.36"
Children's Safeguarding & Specialist Services,Children in Care & Fostering,JPAD,Third Party Payments,External Foster Care Payments,HILLCREST CARE LTD,17/02/2015,"2,780.00"
Children's Safeguarding & Specialist Services,Children in Care & Fostering,JPAD,Third Party Payments,External Foster Care Payments,HILLCREST CARE LTD,17/02/2015,"2,755.00"
Children's Safeguarding & Specialist Services,Children in Care & Fostering,JPAD,Third Party Payments,External Foster Care Payments,HILLCREST CARE LTD,17/02/2015,"2,780.00"
Children's Safeguarding & Specialist Services,Children in Care & Fostering,JPAD,Third Party Payments,External Foster Care Payments,HILLCREST CARE LTD,17/02/2015,"2,960.60"
Children's Safeguarding & Specialist Services,Children in Care & Fostering,JPAD,Third Party Payments,External Foster Care Payments,HILLCREST CARE LTD,17/02/2015,"3,021.00"
Children's Safeguarding & Specialist Services,Children in Care & Fostering,JPAD,Third Party Payments,External Foster Care Payments,HILLCREST CARE LTD,17/02/2015,"3,116.00"
Children's Safeguarding & Specialist Services,Children in Care & Fostering,JPAD,Third Party Payments,External Foster Care Payments,HILLCREST CARE LTD,16/02/2015,"2,672.32"
Children's Safeguarding & Specialist Services,Children in Care & Fostering,JPAD,Third Party Payments,External Foster Care Payments,HILLCREST CARE LTD,16/02/2015,"3,021.00"
Children's Safeguarding & Specialist Services,Children in Care & Fostering,JPAD,Third Party Payments,External Foster Care Payments,FAMILIES@FAMILYCARE,27/02/2015,"4,139.80"
Children's Safeguarding & Specialist Services,Children in Care & Fostering,JPAD,Third Party Payments,External Foster Care Payments,HILLCREST CARE LTD,16/02/2015,"2,380.00"
Children's Safeguarding & Specialist Services,Children in Care & Fostering,JPAD,Third Party Payments,External Foster Care Payments,HILLCREST CARE LTD,18/02/2015,"2,930.36"
Children's Safeguarding & Specialist Services,Children in Care & Fostering,JPAD,Third Party Payments,External Foster Care Payments,HILLCREST CARE LTD,18/02/2015,"3,116.40"
Children's Safeguarding & Specialist Services,Children in Care & Fostering,JPAD,Third Party Payments,External Foster Care Payments,HILLCREST CARE LTD,18/02/2015,"4,740.00"
Children's Safeguarding & Specialist Services,Children in Care & Fostering,JPAD,Third Party Payments,External Foster Care Payments,HILLCREST CARE LTD,18/02/2015,"3,021.00"
Children's Safeguarding & Specialist Services,Children in Care & Fostering,JPAD,Third Party Payments,External Foster Care Payments,HILLCREST CARE LTD,18/02/2015,"2,930.36"
Children's Safeguarding & Specialist Services,Children in Care & Fostering,JPAD,Third Party Payments,External Foster Care Payments,HILLCREST CARE LTD,18/02/2015,"4,740.00"
Children's Safeguarding & Specialist Services,Children in Care & Fostering,JPAD,Third Party Payments,External Foster Care Payments,HILLCREST CARE LTD,18/02/2015,"3,021.00"
Children's Safeguarding & Specialist Services,Children in Care & Fostering,JPAD,Third Party Payments,External Foster Care Payments,HILLCREST CARE LTD,18/02/2015,"2,900.00"
Children's Safeguarding & Specialist Services,Children in Care & Fostering,JPAD,Third Party Payments,External Foster Care Payments,HILLCREST CARE LTD,17/02/2015,"2,960.56"
Children's Safeguarding & Specialist Services,Children in Care & Fostering,JPAD,Third Party Payments,External Foster Care Payments,HILLCREST CARE LTD,20/02/2015,"3,244.46"
Children's Safeguarding & Specialist Services,Children in Care & Fostering,JPAD,Third Party Payments,External Foster Care Payments,HILLCREST CARE LTD,20/02/2015,"3,244.33"
Children's Safeguarding & Specialist Services,Children in Care & Fostering,JPAD,Third Party Payments,External Foster Care Payments,HILLCREST CARE LTD,20/02/2015,"2,930.36"
Children's Safeguarding & Specialist Services,Children in Care & Fostering,JPAD,Third Party Payments,External Foster Care Payments,ACTION FOR CHILDREN LIMITED,19/02/2015,"3,176.04"
Children's Safeguarding & Specialist Services,Children in Care & Fostering,JPAD,Third Party Payments,External Foster Care Payments,PHOENIX FOSTERING,19/02/2015,"5,309.92"
Children's Safeguarding & Specialist Services,Children in Care & Fostering,JPAD,Third Party Payments,External Foster Care Payments,PHOENIX FOSTERING,19/02/2015,"5,899.88"
Children's Safeguarding & Specialist Services,Children in Care & Fostering,JPAD,Third Party Payments,External Foster Care Payments,Foundation Fostering,19/02/2015,"3,248.00"
Children's Safeguarding & Specialist Services,Children in Care & Fostering,JPAD,Third Party Payments,External Foster Care Payments,PHOENIX FOSTERING,19/02/2015,"5,309.92"
Children's Safeguarding & Specialist Services,Children in Care & Fostering,JPAD,Third Party Payments,External Foster Care Payments,NATIONAL FOSTERING AGENCY,12/02/2015,"2,962.93"
Children's Safeguarding & Specialist Services,Children in Care & Fostering,JPAD,Third Party Payments,External Foster Care Payments,NATIONAL FOSTERING AGENCY,12/02/2015,208.60
Children's Safeguarding & Specialist Services,Children in Care & Fostering,JPAD,Third Party Payments,External Foster Care Payments,NATIONAL FOSTERING AGENCY,12/02/2015,204.34
Children's Safeguarding & Specialist Services,Children in Care & Fostering,JPAD,Third Party Payments,External Foster Care Payments,NATIONAL FOSTERING AGENCY,12/02/2015,"3,024.70"
Children's Safeguarding & Specialist Services,Children in Care & Fostering,JPAD,Third Party Payments,External Foster Care Payments,NATIONAL FOSTERING AGENCY,11/02/2015,"3,233.30"
Children's Safeguarding & Specialist Services,Children in Care & Fostering,JPAD,Third Party Payments,External Foster Care Payments,NATIONAL FOSTERING AGENCY,11/02/2015,"3,380.86"
Children's Safeguarding & Specialist Services,Children in Care & Fostering,JPAD,Third Party Payments,External Foster Care Payments,NATIONAL FOSTERING AGENCY,11/02/2015,"3,233.30"
Children's Safeguarding & Specialist Services,Children in Care & Fostering,JPAD,Third Party Payments,External Foster Care Payments,NATIONAL FOSTERING AGENCY,11/02/2015,"3,380.86"
Children's Safeguarding & Specialist Services,Children in Care & Fostering,JPAD,Third Party Payments,External Foster Care Payments,SWIIS FOSTER CARE LTD,03/02/2015,872.63
Children's Safeguarding & Specialist Services,Children in Care & Fostering,JPAD,Third Party Payments,External Foster Care Payments,PARK FOSTER CARE,06/02/2015,"3,720.00"
Children's Safeguarding & Specialist Services,Children in Care & Fostering,JPAD,Third Party Payments,External Foster Care Payments,PARK FOSTER CARE,06/02/2015,"6,200.00"
Children's Safeguarding & Specialist Services,Children in Care & Fostering,JPAD,Third Party Payments,External Foster Care Payments,PARK FOSTER CARE,06/02/2015,"3,348.00"
Children's Safeguarding & Specialist Services,Children in Care & Fostering,JPAD,Third Party Payments,External Foster Care Payments,PARK FOSTER CARE,06/02/2015,240.00
Children's Safeguarding & Specialist Services,Children in Care & Fostering,JPAD,Third Party Payments,External Foster Care Payments,PARK FOSTER CARE,06/02/2015,"3,419.92"
Children's Safeguarding & Specialist Services,Children in Care & Fostering,JPAD,Third Party Payments,External Foster Care Payments,PARK FOSTER CARE,06/02/2015,"3,720.00"
Children's Safeguarding & Specialist Services,Children in Care & Fostering,JPAD,Third Party Payments,External Foster Care Payments,ABC FOSTERING SERVICES LTD,09/02/2015,"3,600.00"
Children's Safeguarding & Specialist Services,Children in Care & Fostering,JPAD,Third Party Payments,External Foster Care Payments,NATIONAL FOSTERING AGENCY,09/02/2015,"2,711.80"
Children's Safeguarding & Specialist Services,Children in Care & Fostering,JPAD,Third Party Payments,External Foster Care Payments,CAMBIAN GROUP T/A THE ADVANCED CHILDCARE GROUP,09/02/2015,"3,361.64"
Children's Safeguarding & Specialist Services,Children in Care & Fostering,JPAD,Third Party Payments,External Foster Care Payments,HILLCREST CARE LTD,09/02/2015,"3,050.09"
Children's Safeguarding & Specialist Services,Children in Care & Fostering,JPAD,Third Party Payments,External Foster Care Payments,HILLCREST CARE LTD,09/02/2015,"3,344.68"
Children's Safeguarding & Specialist Services,Children in Care & Fostering,JPAD,Third Party Payments,External Foster Care Payments,RED KITE FOSTERING,20/02/2015,"5,380.71"
Children's Safeguarding & Specialist Services,Children in Care & Fostering,JPAD,Third Party Payments,External Foster Care Payments,SWIIS FOSTER CARE LTD,10/02/2015,872.63
Children's Safeguarding & Specialist Services,Children in Care & Fostering,JPAD,Third Party Payments,External Foster Care Payments,RED KITE FOSTERING,20/02/2015,"5,380.71"
Children's Safeguarding & Specialist Services,Children in Care & Fostering,JPAD,Third Party Payments,External Foster Care Payments,HILLCREST CARE LTD,20/02/2015,"3,280.00"
Children's Safeguarding & Specialist Services,Children in Care & Fostering,JPAD,Third Party Payments,External Foster Care Payments,CLIFFORD HOUSE FOSTERING LTD,12/02/2015,"3,412.00"
Children's Safeguarding & Specialist Services,Children in Care & Fostering,JPAD,Third Party Payments,External Foster Care Payments,Childcare Bureau,23/02/2015,"3,731.00"
Children's Safeguarding & Specialist Services,Children in Care & Fostering,JPAD,Third Party Payments,External Foster Care Payments,THE ADOLESCENT & CHILDRENS TRUST,23/02/2015,"3,003.90"
Children's Safeguarding & Specialist Services,Children in Care & Fostering,JPAD,Third Party Payments,External Foster Care Payments,FOSTERING PRIORY,24/02/2015,"3,795.24"
Children's Safeguarding & Specialist Services,Children in Care & Fostering,JPAD,Third Party Payments,External Foster Care Payments,SWIIS FOSTER CARE LTD,25/02/2015,872.63
Children's Safeguarding & Specialist Services,Children in Care & Fostering,JPAD,Third Party Payments,External Foster Care Payments,Prospects for Young People Ltd,25/02/2015,"3,040.80"
Children's Safeguarding & Specialist Services,Children in Care & Fostering,JPAD,Third Party Payments,External Foster Care Payments,Prospects for Young People Ltd,25/02/2015,"3,260.04"
Children's Safeguarding & Specialist Services,Children in Care & Fostering,JPAD,Third Party Payments,External Foster Care Payments,CAMBIAN GROUP T/A THE ADVANCED CHILDCARE GROUP,24/02/2015,"3,361.64"
Children's Safeguarding & Specialist Services,Children in Care & Fostering,JPAD,Third Party Payments,External Foster Care Payments,Childcare Bureau,24/02/2015,"3,809.40"
Children's Safeguarding & Specialist Services,Children in Care & Fostering,JPAD,Third Party Payments,External Foster Care Payments,Prospects for Young People Ltd,24/02/2015,"3,256.12"
Children's Safeguarding & Specialist Services,Children in Care & Fostering,JPAD,Third Party Payments,External Foster Care Payments,PHOENIX FOSTERING,24/02/2015,"5,899.88"
Children's Safeguarding & Specialist Services,Children in Care & Fostering,JPAD,Third Party Payments,External Foster Care Payments,FOSTERING SOLUTIONS LTD,20/02/2015,"3,049.96"
Children's Safeguarding & Specialist Services,Children in Care & Fostering,JPAD,Third Party Payments,External Foster Care Payments,ACTION FOR CHILDREN LIMITED,19/02/2015,"3,176.04"
Children's Safeguarding & Specialist Services,Children in Care & Fostering,JPAD,Third Party Payments,External Foster Care Payments,NATIONAL FOSTERING AGENCY,11/02/2015,"3,077.99"
Children's Safeguarding & Specialist Services,Children in Care & Fostering,JPAD,Third Party Payments,External Foster Care Payments,NATIONAL FOSTERING AGENCY,11/02/2015,"3,233.30"
Children's Safeguarding & Specialist Services,Children in Care & Fostering,JPAD,Third Party Payments,External Foster Care Payments,NATIONAL FOSTERING AGENCY,11/02/2015,"3,449.99"
Children's Safeguarding & Specialist Services,Children in Care & Fostering,JPAD,Third Party Payments,External Foster Care Payments,NATIONAL FOSTERING AGENCY,11/02/2015,"3,233.30"
Children's Safeguarding & Specialist Services,Children in Care & Fostering,JPAD,Third Party Payments,External Foster Care Payments,NATIONAL FOSTERING AGENCY,11/02/2015,"3,311.73"
Children's Safeguarding & Specialist Services,Children in Care & Fostering,JPAM,Supplies & Services,Doctors Fees,WELLINGTON ROAD SURGERY,02/02/2015,116.92
Children's Safeguarding & Specialist Services,Children in Care & Fostering,JPAM,Supplies & Services,Marketing & Publicity,THE MIDLAND NEWS ASSOCIATION LTD,02/02/2015,327.89
Children's Safeguarding & Specialist Services,Children in Care & Fostering,JPAM,Supplies & Services,Marketing & Publicity,THE MIDLAND NEWS ASSOCIATION LTD,02/02/2015,648.00
Children's Safeguarding & Specialist Services,Children in Care & Fostering,JPAM,Supplies & Services,Marketing & Publicity,THE MIDLAND NEWS ASSOCIATION LTD,02/02/2015,181.98
Children's Safeguarding & Specialist Services,Children in Care & Fostering,JPAM,Supplies & Services,Marketing & Publicity,THE MIDLAND NEWS ASSOCIATION LTD,02/02/2015,125.14
Children's Safeguarding & Specialist Services,Children in Care & Fostering,JPAN,Third Party Payments,Residential Expenditure,DURHAM COUNTY COUNCIL,25/02/2015,"23,932.00"
Children's Safeguarding & Specialist Services,Children in Care & Fostering,JPAN,Third Party Payments,Residential Expenditure,DURHAM COUNTY COUNCIL,25/02/2015,"23,932.00"
Children's Safeguarding & Specialist Services,Children in Care & Fostering,JPAN,Third Party Payments,Residential Expenditure,PRESTIGE ADOLESCENT CARE & EDUCATION,25/02/2015,"10,000.00"
Children's Safeguarding & Specialist Services,Children in Care & Fostering,JPAN,Third Party Payments,Residential Expenditure,CRUCKTON HALL SCHOOL,27/02/2015,"2,350.00"
Children's Safeguarding & Specialist Services,Children in Care & Fostering,JPAN,Third Party Payments,Residential Expenditure,HORIZON CARE & EDUCATION GROUP LTD,24/02/2015,"11,800.04"
Children's Safeguarding & Specialist Services,Children in Care & Fostering,JPAN,Third Party Payments,Residential Expenditure,KEYS CHILDCARE LTD,18/02/2015,"10,559.92"
Children's Safeguarding & Specialist Services,Children in Care & Fostering,JPAN,Third Party Payments,Residential Expenditure,KEYS CHILDCARE LTD,19/02/2015,"9,999.92"
Children's Safeguarding & Specialist Services,Children in Care & Fostering,JPAN,Third Party Payments,Residential Expenditure,Unity Residential Care Services Ltd,19/02/2015,"10,520.00"
Children's Safeguarding & Specialist Services,Children in Care & Fostering,JPAN,Third Party Payments,Residential Expenditure,Unity Residential Care Services Ltd,19/02/2015,"10,520.00"
Children's Safeguarding & Specialist Services,Children in Care & Fostering,JPAN,Third Party Payments,Residential Expenditure,SUNFIELD CHILDRENS HOMES LTD,19/02/2015,"15,691.17"
Children's Safeguarding & Specialist Services,Children in Care & Fostering,JPAN,Third Party Payments,Residential Expenditure,KEYS CHILDCARE LTD,19/02/2015,500.00
Children's Safeguarding & Specialist Services,Children in Care & Fostering,JPAN,Third Party Payments,Residential Expenditure,BETTERCARE KEYS LTD,06/02/2015,"8,414.33"
Children's Safeguarding & Specialist Services,Children in Care & Fostering,JPAN,Third Party Payments,Residential Expenditure,BETTERCARE KEYS LTD,06/02/2015,"8,414.33"
Children's Safeguarding & Specialist Services,Children in Care & Fostering,JPAN,Third Party Payments,Residential Expenditure,BETTERCARE KEYS LTD,06/02/2015,"8,414.33"
Children's Safeguarding & Specialist Services,Children in Care & Fostering,JPAN,Third Party Payments,Residential Expenditure,BETTERCARE KEYS LTD,06/02/2015,"8,414.33"
Children's Safeguarding & Specialist Services,Children in Care & Fostering,JPAN,Third Party Payments,Residential Expenditure,ABC CARE LTD,06/02/2015,"11,071.34"
Children's Safeguarding & Specialist Services,Children in Care & Fostering,JPAN,Third Party Payments,Residential Expenditure,BETTERCARE KEYS LTD,02/02/2015,"17,030.00"
Children's Safeguarding & Specialist Services,Children in Care & Fostering,JPAN,Third Party Payments,Residential Expenditure,CARE TODAY CHILDRENS SERVICES,09/02/2015,"3,489.67"
Children's Safeguarding & Specialist Services,Children in Care & Fostering,JPAN,Third Party Payments,Residential Expenditure,CARE TODAY CHILDRENS SERVICES,20/02/2015,"3,489.67"
Children's Safeguarding & Specialist Services,Children in Care & Fostering,JPAN,Third Party Payments,Residential Expenditure,CARE TODAY CHILDRENS SERVICES,20/02/2015,"12,820.67"
Children's Safeguarding & Specialist Services,Children in Care & Fostering,JPAN,Third Party Payments,Residential Expenditure,CARE TODAY CHILDRENS SERVICES,12/02/2015,"12,820.67"
Children's Safeguarding & Specialist Services,Children in Care & Fostering,JPAN,Third Party Payments,Residential Expenditure,MGM CARE SERVICES LTD,24/02/2015,"-58,242.21"
Children's Safeguarding & Specialist Services,Children in Care & Fostering,JPAN,Third Party Payments,Residential Expenditure,Young Options Pathways Stoke,24/02/2015,"15,432.00"
Children's Safeguarding & Specialist Services,Children in Care & Fostering,JPAN,Third Party Payments,Residential Expenditure,KEYS CHILDCARE LTD,25/02/2015,500.00
Children's Safeguarding & Specialist Services,Children in Care & Fostering,JPAN,Third Party Payments,Residential Expenditure,KEYS CHILDCARE LTD,25/02/2015,250.00
Children's Safeguarding & Specialist Services,Children in Care & Fostering,JPAN,Third Party Payments,Residential Expenditure,KEYS CHILDCARE LTD,25/02/2015,500.00
Children's Safeguarding & Specialist Services,Children in Care & Fostering,JPAN,Third Party Payments,Residential Expenditure,KEYS CHILDCARE LTD,25/02/2015,500.00
Children's Safeguarding & Specialist Services,Children Specialist Services,GEAR,Supplies & Services,Other Grants (Expenses),NOAH'S ARK NURS & AFTER SCH CLUB,16/02/2015,188.93
Children's Safeguarding & Specialist Services,Children Specialist Services,GEAR,Supplies & Services,Other Grants (Expenses),WOODEN TOPS DAY NURSERY A/C 2862358,16/02/2015,283.40
Children's Safeguarding & Specialist Services,Children Specialist Services,GEAR,Supplies & Services,Other Grants (Expenses),RANDLAY ROUNDABOUTS 48243482,16/02/2015,188.93
Children's Safeguarding & Specialist Services,Children Specialist Services,GEAR,Supplies & Services,Other Grants (Expenses),BUSY BEES AT TELFORD PARKWAY,16/02/2015,338.40
Children's Safeguarding & Specialist Services,Children Specialist Services,GEAR,Supplies & Services,Other Grants (Expenses),CHIPMUNKS NURSERY,16/02/2015,111.00
Children's Safeguarding & Specialist Services,Children Specialist Services,GEAR,Supplies & Services,Other Grants (Expenses),Lawley Village Day Nursery,16/02/2015,188.94
Children's Safeguarding & Specialist Services,Children Specialist Services,GY03,Supplies & Services,Postages,ROYAL MAIL GROUP LTD,06/02/2015,101.85
Children's Safeguarding & Specialist Services,Children Specialist Services,HDAB,Employees,Training Expenses,Transform (in the Community) CIC,16/02/2015,900.00
Children's Safeguarding & Specialist Services,Children Specialist Services,HDAB,Supplies & Services,Complaints,TELFORD & WREKIN CVS,26/02/2015,876.84
Children's Safeguarding & Specialist Services,Children Specialist Services,HDAF,Third Party Payments,Private Contractors,ACTION FOR CHILDREN LIMITED,27/02/2015,"6,960.00"
Children's Safeguarding & Specialist Services,Children Specialist Services,HDAF,Third Party Payments,Private Contractors,ACTION FOR CHILDREN LIMITED,09/02/2015,"131,638.50"
Children's Safeguarding & Specialist Services,Children Specialist Services,HDAG,Supplies & Services,Aids & Appliances,G & S SMIRTHWAITE LTD,06/02/2015,470.00
Children's Safeguarding & Specialist Services,Children Specialist Services,HDAG,Supplies & Services,Aids & Appliances,JENX LIMITED,06/02/2015,"1,414.00"
Children's Safeguarding & Specialist Services,Children Specialist Services,HDAG,Supplies & Services,Aids & Appliances,Easylink,02/02/2015,109.24
Children's Safeguarding & Specialist Services,Children Specialist Services,HDAG,Supplies & Services,Aids & Appliances,OSPREY HEALTHCARE LTD,03/02/2015,"1,457.00"
Children's Safeguarding & Specialist Services,Children Specialist Services,HDAG,Supplies & Services,Aids & Appliances,M A Smith Associates,20/02/2015,340.00
Children's Safeguarding & Specialist Services,Children Specialist Services,HDAG,Supplies & Services,Aids & Appliances,M A Smith Associates,20/02/2015,340.00
Children's Safeguarding & Specialist Services,Children Specialist Services,HDAJ,Supplies & Services,Other Services,Direct Health Homecare Limited,17/02/2015,378.52
Children's Safeguarding & Specialist Services,Children Specialist Services,HDAJ,Supplies & Services,Other Services,WE ARE THE CARE COMPANY LTD,17/02/2015,283.50
Children's Safeguarding & Specialist Services,Children Specialist Services,HDAJ,Supplies & Services,Other Services,WE ARE THE CARE COMPANY LTD,13/02/2015,261.00
Children's Safeguarding & Specialist Services,Children Specialist Services,HDAJ,Supplies & Services,Other Services,WE ARE THE CARE COMPANY LTD,13/02/2015,212.00
Children's Safeguarding & Specialist Services,Children Specialist Services,HDAJ,Supplies & Services,Other Services,WE ARE THE CARE COMPANY LTD,13/02/2015,230.00
Children's Safeguarding & Specialist Services,Children Specialist Services,HDAJ,Third Party Payments,Agency Services,Direct Health Homecare Limited,06/02/2015,154.94
Children's Safeguarding & Specialist Services,Children Specialist Services,HDAJ,Third Party Payments,Agency Services,Direct Health Homecare Limited,18/02/2015,137.78
Children's Safeguarding & Specialist Services,Children Specialist Services,HDAJ,Third Party Payments,Agency Services,Direct Health Homecare Limited,17/02/2015,184.50
Children's Safeguarding & Specialist Services,Children Specialist Services,HDAJ,Third Party Payments,Agency Services,Direct Health Homecare Limited,16/02/2015,118.24
Children's Safeguarding & Specialist Services,Children Specialist Services,HDAJ,Third Party Payments,Agency Services,Direct Health Homecare Limited,16/02/2015,246.00
Children's Safeguarding & Specialist Services,Children Specialist Services,HDAJ,Third Party Payments,Agency Services,Direct Health Homecare Limited,16/02/2015,236.48
Children's Safeguarding & Specialist Services,Children Specialist Services,HDAJ,Third Party Payments,Agency Services,Direct Health Homecare Limited,16/02/2015,118.24
Children's Safeguarding & Specialist Services,Children Specialist Services,HDAJ,Third Party Payments,Agency Services,Direct Health Homecare Limited,16/02/2015,241.24
Children's Safeguarding & Specialist Services,Children Specialist Services,HDAJ,Third Party Payments,Agency Services,WE ARE THE CARE COMPANY LTD,16/02/2015,172.50
Children's Safeguarding & Specialist Services,Children Specialist Services,HDAJ,Third Party Payments,Agency Services,HACM LTD,27/02/2015,"1,477.44"
Children's Safeguarding & Specialist Services,Children Specialist Services,HDAJ,Third Party Payments,Agency Services,NEW OPTIONS (3) LTD,27/02/2015,"5,712.00"
Children's Safeguarding & Specialist Services,Children Specialist Services,HDAJ,Third Party Payments,Agency Services,NEW OPTIONS (3) LTD,27/02/2015,"7,140.00"
Children's Safeguarding & Specialist Services,Children Specialist Services,HDAJ,Third Party Payments,Agency Services,WE ARE THE CARE COMPANY LTD,13/02/2015,216.00
Children's Safeguarding & Specialist Services,Children Specialist Services,HDAJ,Third Party Payments,Agency Services,NESTOR PRIMECARE SERVICES LTD T/A ALLIED HEALTHCARE,13/02/2015,"1,081.23"
Children's Safeguarding & Specialist Services,Children Specialist Services,HDAJ,Third Party Payments,Agency Services,Direct Health Homecare Limited,06/02/2015,246.00
Children's Safeguarding & Specialist Services,Children Specialist Services,HDAJ,Third Party Payments,Agency Services,NESTOR PRIMECARE SERVICES LTD T/A ALLIED HEALTHCARE,06/02/2015,170.36
Children's Safeguarding & Specialist Services,Children Specialist Services,HDAJ,Third Party Payments,Agency Services,NESTOR PRIMECARE SERVICES LTD T/A ALLIED HEALTHCARE,06/02/2015,504.27
Children's Safeguarding & Specialist Services,Children Specialist Services,HDAJ,Third Party Payments,Agency Services,NESTOR PRIMECARE SERVICES LTD T/A ALLIED HEALTHCARE,06/02/2015,161.61
Children's Safeguarding & Specialist Services,Children Specialist Services,HDAJ,Third Party Payments,Agency Services,NESTOR PRIMECARE SERVICES LTD T/A ALLIED HEALTHCARE,06/02/2015,243.14
Children's Safeguarding & Specialist Services,Children Specialist Services,HDAJ,Third Party Payments,Agency Services,NESTOR PRIMECARE SERVICES LTD T/A ALLIED HEALTHCARE,06/02/2015,519.19
Children's Safeguarding & Specialist Services,Children Specialist Services,HDAJ,Third Party Payments,Agency Services,NEW OPTIONS (3) LTD,27/02/2015,952.00
Children's Safeguarding & Specialist Services,Children Specialist Services,HDAJ,Third Party Payments,Agency Services,NEW OPTIONS (3) LTD,27/02/2015,"4,060.00"
Children's Safeguarding & Specialist Services,Children Specialist Services,HDAK,Third Party Payments,Agency Services,Direct Health Homecare Limited,17/02/2015,191.64
Children's Safeguarding & Specialist Services,Children Specialist Services,HDAK,Third Party Payments,Agency Services,Direct Health Homecare Limited,17/02/2015,177.36
Children's Safeguarding & Specialist Services,Children Specialist Services,HDAK,Third Party Payments,Agency Services,NESTOR PRIMECARE SERVICES LTD T/A ALLIED HEALTHCARE,20/02/2015,229.29
Children's Safeguarding & Specialist Services,Children Specialist Services,HDAK,Third Party Payments,Agency Services,NESTOR PRIMECARE SERVICES LTD T/A ALLIED HEALTHCARE,20/02/2015,324.25
Children's Safeguarding & Specialist Services,Children Specialist Services,HDAK,Third Party Payments,Agency Services,NEW OPTIONS (3) LTD,20/02/2015,"5,712.00"
Children's Safeguarding & Specialist Services,Children Specialist Services,HDAK,Third Party Payments,Agency Services,NESTOR PRIMECARE SERVICES LTD T/A ALLIED HEALTHCARE,20/02/2015,238.62
Children's Safeguarding & Specialist Services,Children Specialist Services,HDAK,Third Party Payments,Agency Services,NESTOR PRIMECARE SERVICES LTD T/A ALLIED HEALTHCARE,20/02/2015,218.51
Children's Safeguarding & Specialist Services,Children Specialist Services,HDAK,Transport-Related Expenditure,Travelling Expenses General,CENTRAL TAXIS LTD T/A GO CARZ ,17/02/2015,103.00
Children's Safeguarding & Specialist Services,Children Specialist Services,KNAA,Third Party Payments,Residential Expenditure,DUDLEY METROPOLITAN BOROUGH COUNCIL,27/02/2015,-192.00
Children's Safeguarding & Specialist Services,Children Specialist Services,KNAA,Third Party Payments,Residential Expenditure,DUDLEY METROPOLITAN BOROUGH COUNCIL,27/02/2015,-927.20
Children's Safeguarding & Specialist Services,Children Specialist Services,KNAA,Third Party Payments,Residential Expenditure,DUDLEY METROPOLITAN BOROUGH COUNCIL,27/02/2015,-396.80
Children's Safeguarding & Specialist Services,Children Specialist Services,KNAA,Third Party Payments,Residential Expenditure,DUDLEY METROPOLITAN BOROUGH COUNCIL,16/02/2015,"1,104.00"
Children's Safeguarding & Specialist Services,Children Specialist Services,KNAA,Third Party Payments,Residential Expenditure,Witherslack Hall School,27/02/2015,"22,884.00"
Children's Safeguarding & Specialist Services,Children Specialist Services,KNAC,Third Party Payments,Residential Expenditure,DUDLEY METROPOLITAN BOROUGH COUNCIL,06/02/2015,"25,350.00"
Children's Safeguarding & Specialist Services,Children Specialist Services,KNAC,Third Party Payments,Residential Expenditure,WORCESTERSHIRE COUNTY COUNCIL,06/02/2015,"46,536.00"
Children's Safeguarding & Specialist Services,Children Specialist Services,KNAJ,Supplies & Services,Equipment - Purchase,PHONAK UK LTD,18/02/2015,470.00
Children's Safeguarding & Specialist Services,Children Specialist Services,KNAJ,Supplies & Services,Aids & Appliances,PHONAK UK LTD,16/02/2015,-460.00
Children's Safeguarding & Specialist Services,Children Specialist Services,KNAJ,Supplies & Services,Aids & Appliances,PHONAK UK LTD,06/02/2015,920.00
Children's Safeguarding & Specialist Services,Children Specialist Services,KNAN,Supplies & Services,Service Contracts,In Control Partnerships,27/02/2015,675.00
Co-Operative Council,Community Engagement & Voluntary Sector,LEAC,Supplies & Services,Grants To Voluntary Organis,PARK LANE CENTRE,24/02/2015,"10,600.00"
Co-Operative Council,Community Engagement & Voluntary Sector,MCAC,Supplies & Services,Refreshments Meetings,Take 5 Cafe,27/02/2015,150.00
Co-Operative Council,Community Engagement & Voluntary Sector,MCAE,Supplies & Services,Grants To Voluntary Organis,RODINGTON PARISH COUNCIL ,02/02/2015,666.00
Co-Operative Council,Community Engagement & Voluntary Sector,WECF,Capital Expenditure,Other Capital Expenditure,Admaston House Community Centre Trust,17/02/2015,"5,065.20"
Co-Operative Council,Community Engagement & Voluntary Sector,WECF,Capital Expenditure,Other Capital Expenditure,ST LEONARDS DCC,24/02/2015,"7,825.00"
Co-Operative Council,Community Engagement & Voluntary Sector,WECF,Capital Expenditure,Other Capital Expenditure,KETLEY PARISH COUNCIL,04/02/2015,"18,125.80"
Co-Operative Council,Community Engagement & Voluntary Sector,WECF,Capital Expenditure,Other Capital Expenditure,PARK LANE CENTRE,04/02/2015,"4,500.00"
Co-Operative Council,Community Engagement & Voluntary Sector,WECF,Capital Expenditure,Other Capital Expenditure,Oakengates Carnival Committee,04/02/2015,"5,000.00"
Co-Operative Council,Community Engagement & Voluntary Sector,WECF,Capital Expenditure,Other Capital Expenditure,PISCESwm CIC,04/02/2015,"10,961.00"
Co-Operative Council,Community Engagement & Voluntary Sector,WECF,Capital Expenditure,Other Capital Expenditure,Kickassendurance,04/02/2015,"8,513.00"
Co-Operative Council,Corporate Communications,MMAB,Supplies & Services,Community Newspaper,All About Newport Ltd,24/02/2015,"1,020.00"
Co-Operative Council,Corporate Communications,MMAB,Supplies & Services,Community Newspaper,Trinity Mirror Printing,24/02/2015,"2,702.40"
Co-Operative Council,Corporate Communications,MMAD,Employees,Recruitment Advertising,CARTREF COMMUNICATIONS,18/02/2015,374.62
Co-Operative Council,Corporate Communications,MMAD,Supplies & Services,Advertising,TES GLOBAL LTD ,17/02/2015,787.50
Co-Operative Council,Corporate Communications,MMAD,Supplies & Services,Advertising,THE MIDLAND NEWS ASSOCIATION LTD,20/02/2015,624.37
Co-Operative Council,Corporate Communications,MMAD,Supplies & Services,Advertising,CARTREF COMMUNICATIONS,12/02/2015,330.22
Co-Operative Council,Corporate Communications,MMAD,Supplies & Services,Advertising,TES GLOBAL LTD ,10/02/2015,787.50
Co-Operative Council,Corporate Core,MHAA,Supplies & Services,Subscriptions,EMAP LIMITED,09/02/2015,224.10
Co-Operative Council,Delivery & Planning,MDAB,Supplies & Services,Postages,ROYAL MAIL GROUP LTD,25/02/2015,122.63
Co-Operative Council,Policy & Strategy,MPAA,Supplies & Services,Other Expenses,Geldards LLP,19/02/2015,722.00
Co-Operative Council,Policy & Strategy,MPAA,Supplies & Services,Other Expenses,BEVAN BRITTAN,19/02/2015,107.00
Co-Operative Council,Policy & Strategy,MPAA,Supplies & Services,Other Expenses,Laundry Solutions,02/02/2015,240.00
Co-Operative Council,Policy & Strategy,MPAA,Supplies & Services,Other Expenses,Laundry Solutions,02/02/2015,240.00
Co-Operative Council,Policy & Strategy,MPAC,Supplies & Services,Consultants Fees,ARUP,02/02/2015,"1,685.00"
Co-Operative Council,Policy & Strategy,MPAC,Supplies & Services,Consultants Fees,WPD MIDLANDS NETWORKS SERVICES LTD,24/02/2015,-579.00
Customer Services,ALD Services,HLBB,Supplies & Services,Laundry & Towel Hire,PHS GROUP LTD,09/02/2015,165.50
Customer Services,ALD Services,HLBB,Supplies & Services,Chemicals/Cleaning Products,CARESHOP,27/02/2015,393.93
Customer Services,ALD Services,HLBC,Supplies & Services,Provisions,BIKOLD,11/02/2015,180.28
Customer Services,ALD Services,HLBC,Supplies & Services,Provisions,BIKOLD,11/02/2015,104.86
Customer Services,ALD Services,HLBC,Supplies & Services,Provisions,BIKOLD,11/02/2015,100.79
Customer Services,ALD Services,HLBC,Supplies & Services,Photocopying,WEST MERCIA SUPPLIES Catalogue Supplies (None Utility),11/02/2015,135.28
Customer Services,ALD Services,HLDB,Supplies & Services,Items For Resale,TELFORD TIMBER SUPPLIES,20/02/2015,200.00
Customer Services,ALD Services,HLDB,Supplies & Services,Items For Resale,TELFORD TIMBER SUPPLIES,20/02/2015,215.00
Customer Services,ALD Services,HLDB,Supplies & Services,Equipment - Purchase,JACKDAW DINSTOCK,03/02/2015,169.67
Customer Services,ALD Services,HLDB,Supplies & Services,Equipment - Purchase,JACKDAW DINSTOCK,24/02/2015,142.98
Customer Services,ALD Services,HLEB,Employees,Agency Supply Costs,AMG NURSING & CARE SERVICES,06/02/2015,173.52
Customer Services,ALD Services,HLEB,Supplies & Services,Equipment - Purchase,BERWICK CARE EQUIPMENT LTD,18/02/2015,140.00
Customer Services,ALD Services,HLEB,Supplies & Services,Equipment - Purchase,BERWICK CARE EQUIPMENT LTD,18/02/2015,140.00
Customer Services,ALD Services,HLEB,Supplies & Services,Equipment - Purchase,THE CONSORTIUM FOR PURCHASING & DISTRIBUTION LTD T/A WEST MERCIA SUPPLIES,06/02/2015,102.16
Customer Services,ALD Services,HLEB,Supplies & Services,Equipment - Purchase,THE CONSORTIUM FOR PURCHASING & DISTRIBUTION LTD T/A WEST MERCIA SUPPLIES,09/02/2015,128.00
Customer Services,ALD Services,HLEB,Supplies & Services,Equipment - Purchase,THE CONSORTIUM FOR PURCHASING & DISTRIBUTION LTD T/A WEST MERCIA SUPPLIES,09/02/2015,321.36
Customer Services,ALD Services,HLED,Supplies & Services,Subsistence,My Support Broker,18/02/2015,"3,960.00"
Customer Services,ALD Services,HLED,Supplies & Services,Telephones,BRITISH TELECOMMUNICATIONS PLC,18/02/2015,133.47
Customer Services,ALD Services,HLEG,Supplies & Services,Respite Care,Redacted Personal Information,26/02/2015,148.12
Customer Services,Benefits,LRSF,Supplies & Services, Voluntary Organisation Grant,Just Credit Union,09/02/2015,"41,017.00"
Customer Services,Benefits,LRSF,Transfer Payments,Crisis Assistance Awards,CHAIRS & SPARES,16/02/2015,132.50
Customer Services,Benefits,LRSF,Transfer Payments,Crisis Assistance Awards,Reviive,16/02/2015,120.00
Customer Services,Benefits,LRSF,Transfer Payments,Crisis Assistance Awards,Reviive,16/02/2015,173.40
Customer Services,Benefits,LRSF,Transfer Payments,Crisis Assistance Awards,A W HOLDINGS,16/02/2015,259.00
Customer Services,Benefits,LRSF,Transfer Payments,Crisis Assistance Awards,PayPoint Network Limited,19/02/2015,"1,120.00"
Customer Services,Benefits,LRSF,Transfer Payments,Crisis Assistance Awards,DAWLEY BARGAIN CENTRE,20/02/2015,660.00
Customer Services,Benefits,LRSF,Transfer Payments,Crisis Assistance Awards,DAWLEY BARGAIN CENTRE,20/02/2015,135.00
Customer Services,Benefits,LRSF,Transfer Payments,Crisis Assistance Awards,DAWLEY BARGAIN CENTRE,12/02/2015,135.00
Customer Services,Benefits,LRSF,Transfer Payments,Crisis Assistance Awards,PayPoint Network Limited,12/02/2015,742.00
Customer Services,Benefits,LRSF,Transfer Payments,Crisis Assistance Awards,DAWLEY BARGAIN CENTRE,12/02/2015,125.00
Customer Services,Benefits,LRSF,Transfer Payments,Crisis Assistance Awards,DAWLEY BARGAIN CENTRE,12/02/2015,400.00
Customer Services,Benefits,LRSF,Transfer Payments,Crisis Assistance Awards,DAWLEY BARGAIN CENTRE,12/02/2015,130.00
Customer Services,Benefits,LRSF,Transfer Payments,Crisis Assistance Awards,DAWLEY BARGAIN CENTRE,12/02/2015,200.00
Customer Services,Benefits,LRSF,Transfer Payments,Crisis Assistance Awards,DAWLEY BARGAIN CENTRE,12/02/2015,130.00
Customer Services,Benefits,LRSF,Transfer Payments,Crisis Assistance Awards,PayPoint Network Limited,25/02/2015,481.00
Customer Services,Benefits,LRSF,Transfer Payments,Crisis Assistance Awards,A W HOLDINGS,26/02/2015,149.00
Customer Services,Benefits,LRSF,Transfer Payments,Crisis Assistance Awards,DAWLEY BARGAIN CENTRE,26/02/2015,230.00
Customer Services,Benefits,LRSF,Transfer Payments,Crisis Assistance Awards,DAWLEY BARGAIN CENTRE,26/02/2015,495.00
Customer Services,Benefits,LRSF,Transfer Payments,Crisis Assistance Awards,PayPoint Network Limited,05/02/2015,950.00
Customer Services,Benefits,LRSF,Transfer Payments,Crisis Assistance Awards,DAWLEY BARGAIN CENTRE,05/02/2015,135.00
Customer Services,Benefits,LRTC,Supplies & Services,Concessionary Travel Passes,ESP Systex,11/02/2015,604.73
Customer Services,Benefits,LRTC,Supplies & Services,Disability Blue Badge Service,NORTHGATE INFORMATION SOLUTIONS UK LTD,11/02/2015,740.60
Customer Services,Benefits,LRTC,Supplies & Services,Professional Subscriptions,HBINFO LTD,03/02/2015,440.00
Customer Services,Benefits,LRTC,Supplies & Services,Benefits Web Calculator Software (Purchase),OTECH LIMITED,10/02/2015,820.00
Customer Services,Benefits,LRTC,Supplies & Services,Concessionary Travel Software  (Maint),Unicard Ltd,24/02/2015,497.48
Customer Services,Catering,CAHH,Supplies & Services,Provisions,Aroma Tea & Coffee Merchants,27/02/2015,135.05
Customer Services,Catering,CAHH,Supplies & Services,Provisions,Aroma Tea & Coffee Merchants,27/02/2015,135.05
Customer Services,Catering,CAHH,Supplies & Services,Provisions,DO NOT USE FOR ORDERING- DIRECT BILLING ONLY,27/02/2015,116.92
Customer Services,Catering,CAHH,Supplies & Services,Publications,Forestry Commission,17/02/2015,920.00
Customer Services,Catering,CAHH,Supplies & Services,Provisions,DO NOT USE FOR ORDERING- DIRECT BILLING ONLY,16/02/2015,132.98
Customer Services,Catering,CAHH,Supplies & Services,Provisions,DO NOT USE FOR ORDERING- DIRECT BILLING ONLY,16/02/2015,106.98
Customer Services,Catering,CAHH,Supplies & Services,Provisions,Aroma Tea & Coffee Merchants,20/02/2015,135.05
Customer Services,Catering,CAHH,Supplies & Services,Provisions,ROWLANDS & COMPANY,20/02/2015,101.25
Customer Services,Catering,CAHH,Supplies & Services,Provisions,DO NOT USE FOR ORDERING- DIRECT BILLING ONLY,20/02/2015,158.04
Customer Services,Catering,CAHH,Supplies & Services,Provisions,DO NOT USE FOR ORDERING- DIRECT BILLING ONLY,20/02/2015,106.48
Customer Services,Catering,CAHH,Supplies & Services,Provisions,DO NOT USE FOR ORDERING- DIRECT BILLING ONLY,06/02/2015,116.02
Customer Services,Catering,CAHH,Supplies & Services,Holidays & Outings,Vegware,03/02/2015,121.30
Customer Services,Catering,CAHH,Supplies & Services,Holidays & Outings,Vegware,03/02/2015,116.12
Customer Services,Catering,CAHH,Supplies & Services,Provisions,Aroma Tea & Coffee Merchants,03/02/2015,112.80
Customer Services,Catering,CAHH,Supplies & Services,Provisions,ROWLANDS & COMPANY,03/02/2015,111.80
Customer Services,Catering,CAMA,Employees,Training Expenses,CIEH,27/02/2015,111.90
Customer Services,Catering,CAMA,Employees,Training Expenses,CIEH,19/02/2015,592.95
Customer Services,Catering,CAMA,Employees,Training Expenses,CIEH,24/02/2015,675.90
Customer Services,Catering,CAMA,Supplies & Services,Computer Hardware (Maint),NATIONWIDE RETAIL SYSTEMS LTD,19/02/2015,489.00
Customer Services,Catering,CAMA,Supplies & Services,Equipment - Purchase,Contract Furniture Specialists Limited,26/02/2015,"9,999.91"
Customer Services,Catering,CAOC,Supplies & Services,Provisions,DO NOT USE FOR ORDERING- DIRECT BILLING ONLY,27/02/2015,108.49
Customer Services,Catering,CASM,Supplies & Services,EEC Whole Milk,JOHAL DAIRIES,17/02/2015,682.15
Customer Services,Catering,CASM,Supplies & Services,EEC Whole Milk,JOHAL DAIRIES,17/02/2015,"1,750.09"
Customer Services,Catering,CASM,Supplies & Services,EEC Whole Milk,JOHAL DAIRIES,17/02/2015,736.54
Customer Services,Catering,CASM,Supplies & Services,EEC Whole Milk,JOHAL DAIRIES,17/02/2015,730.99
Customer Services,Catering,CASM,Supplies & Services,EEC Whole Milk,JOHAL DAIRIES,17/02/2015,"1,544.66"
Customer Services,Catering,CASM,Supplies & Services,EEC Whole Milk,JOHAL DAIRIES,06/02/2015,"1,737.44"
Customer Services,Catering,CASM,Supplies & Services,EEC Whole Milk,JOHAL DAIRIES,06/02/2015,780.98
Customer Services,Catering,CASM,Supplies & Services,EEC Whole Milk,JOHAL DAIRIES,06/02/2015,"1,767.18"
Customer Services,Catering,CASM,Supplies & Services,EEC Whole Milk,JOHAL DAIRIES,09/02/2015,798.00
Customer Services,Catering,CASM,Supplies & Services,EEC Whole Milk,JOHAL DAIRIES,09/02/2015,"1,769.82"
Customer Services,Catering,CASM,Supplies & Services,EEC Whole Milk,JOHAL DAIRIES,24/02/2015,"1,774.68"
Customer Services,Catering,CASM,Supplies & Services,EEC Whole Milk,JOHAL DAIRIES,24/02/2015,782.14
Customer Services,Catering,CASM,Supplies & Services,EEC Whole Milk,JOHAL DAIRIES,26/02/2015,790.56
Customer Services,Catering,CASM,Supplies & Services,EEC Whole Milk,JOHAL DAIRIES,26/02/2015,"1,776.91"
Customer Services,Catering,CASN,Premises-Related Expenditure,R&M -Buildings DLO Charge,JCE & SONS LTD,12/02/2015,133.20
Customer Services,Catering,CASN,Premises-Related Expenditure,General Rents,DAISY CHAIN DAY CARE LTD,24/02/2015,"3,500.00"
Customer Services,Catering,CASN,Supplies & Services,Provisions,DO NOT USE FOR ORDERING- DIRECT BILLING ONLY,27/02/2015,163.50
Customer Services,Catering,CASN,Supplies & Services,Provisions,DO NOT USE FOR ORDERING- DIRECT BILLING ONLY,27/02/2015,174.42
Customer Services,Catering,CASN,Supplies & Services,Provisions,DO NOT USE FOR ORDERING- DIRECT BILLING ONLY,27/02/2015,134.20
Customer Services,Catering,CASN,Supplies & Services,Provisions,RESPOL FLOORING SOLUTIONS,17/02/2015,133.78
Customer Services,Catering,CASN,Supplies & Services,Provisions,John Sheppard Catering Butchers,12/02/2015,139.72
Customer Services,Catering,CASN,Supplies & Services,Provisions,ROWLANDS & COMPANY,17/02/2015,114.46
Customer Services,Catering,CASN,Supplies & Services,Provisions,DO NOT USE FOR ORDERING- DIRECT BILLING ONLY,16/02/2015,193.39
Customer Services,Catering,CASN,Supplies & Services,Provisions,DO NOT USE FOR ORDERING- DIRECT BILLING ONLY,16/02/2015,130.63
Customer Services,Catering,CASN,Supplies & Services,Provisions,DO NOT USE FOR ORDERING- DIRECT BILLING ONLY,16/02/2015,106.14
Customer Services,Catering,CASN,Supplies & Services,Provisions,DO NOT USE FOR ORDERING- DIRECT BILLING ONLY,20/02/2015,240.69
Customer Services,Catering,CASN,Supplies & Services,Provisions,DO NOT USE FOR ORDERING- DIRECT BILLING ONLY,20/02/2015,249.60
Customer Services,Catering,CASN,Supplies & Services,Equipment - Repair,ERIC NEVILLE CATERING SUPPLIES LTD,19/02/2015,114.53
Customer Services,Catering,CASN,Supplies & Services,Provisions,John Sheppard Catering Butchers,12/02/2015,114.14
Customer Services,Catering,CASN,Supplies & Services,Provisions,ROWLANDS & COMPANY,06/02/2015,131.93
Customer Services,Catering,CASN,Supplies & Services,Provisions,ROWLANDS & COMPANY,06/02/2015,129.39
Customer Services,Catering,CASN,Supplies & Services,Provisions,John Sheppard Catering Butchers,06/02/2015,128.89
Customer Services,Catering,CASN,Supplies & Services,Provisions,DO NOT USE FOR ORDERING- DIRECT BILLING ONLY,06/02/2015,173.30
Customer Services,Catering,CASN,Supplies & Services,Provisions,DO NOT USE FOR ORDERING- DIRECT BILLING ONLY,06/02/2015,100.01
Customer Services,Catering,CASN,Supplies & Services,Provisions,DO NOT USE FOR ORDERING- DIRECT BILLING ONLY,06/02/2015,208.00
Customer Services,Catering,CASN,Supplies & Services,Provisions,ROWLANDS & COMPANY,04/02/2015,118.92
Customer Services,Catering,CASP,Premises-Related Expenditure,Clean Mats & Toilet Requisites,Hartnoll Limited,16/02/2015,248.69
Customer Services,Catering,CASP,Premises-Related Expenditure,Clean Mats & Toilet Requisites,ERIC NEVILLE CATERING SUPPLIES LTD,19/02/2015,150.30
Customer Services,Catering,CASP,Supplies & Services,Crockery/Hardware/Light Equip,ERIC NEVILLE CATERING SUPPLIES LTD,19/02/2015,669.10
Customer Services,Catering,CASP,Supplies & Services,Crockery/Hardware/Light Equip,ERIC NEVILLE CATERING SUPPLIES LTD,19/02/2015,128.68
Customer Services,Catering,CASP,Supplies & Services,Crockery/Hardware/Light Equip,ERIC NEVILLE CATERING SUPPLIES LTD,19/02/2015,243.49
Customer Services,Catering,CASP,Supplies & Services,Holidays & Outings,ERIC NEVILLE CATERING SUPPLIES LTD,03/02/2015,146.29
Customer Services,Catering,CASP,Supplies & Services,Provisions,DO NOT USE FOR ORDERING- DIRECT BILLING ONLY,27/02/2015,121.94
Customer Services,Catering,CASP,Supplies & Services,Provisions,DO NOT USE FOR ORDERING- DIRECT BILLING ONLY,27/02/2015,111.39
Customer Services,Catering,CASP,Supplies & Services,Provisions,DO NOT USE FOR ORDERING- DIRECT BILLING ONLY,27/02/2015,122.05
Customer Services,Catering,CASP,Supplies & Services,Provisions,DO NOT USE FOR ORDERING- DIRECT BILLING ONLY,27/02/2015,131.51
Customer Services,Catering,CASP,Supplies & Services,Provisions,DO NOT USE FOR ORDERING- DIRECT BILLING ONLY,27/02/2015,236.81
Customer Services,Catering,CASP,Supplies & Services,Provisions,DO NOT USE FOR ORDERING- DIRECT BILLING ONLY,27/02/2015,100.42
Customer Services,Catering,CASP,Supplies & Services,Provisions,DO NOT USE FOR ORDERING- DIRECT BILLING ONLY,27/02/2015,102.68
Customer Services,Catering,CASP,Supplies & Services,Provisions,DO NOT USE FOR ORDERING- DIRECT BILLING ONLY,27/02/2015,218.90
Customer Services,Catering,CASP,Supplies & Services,Provisions,DO NOT USE FOR ORDERING- DIRECT BILLING ONLY,27/02/2015,160.08
Customer Services,Catering,CASP,Supplies & Services,Provisions,DO NOT USE FOR ORDERING- DIRECT BILLING ONLY,27/02/2015,155.15
Customer Services,Catering,CASP,Supplies & Services,Provisions,DO NOT USE FOR ORDERING- DIRECT BILLING ONLY,27/02/2015,285.64
Customer Services,Catering,CASP,Supplies & Services,Provisions,DO NOT USE FOR ORDERING- DIRECT BILLING ONLY,27/02/2015,248.28
Customer Services,Catering,CASP,Supplies & Services,Provisions,DO NOT USE FOR ORDERING- DIRECT BILLING ONLY,27/02/2015,345.41
Customer Services,Catering,CASP,Supplies & Services,Provisions,DO NOT USE FOR ORDERING- DIRECT BILLING ONLY,27/02/2015,129.50
Customer Services,Catering,CASP,Supplies & Services,Provisions,DO NOT USE FOR ORDERING- DIRECT BILLING ONLY,27/02/2015,202.64
Customer Services,Catering,CASP,Supplies & Services,Provisions,DO NOT USE FOR ORDERING- DIRECT BILLING ONLY,27/02/2015,193.43
Customer Services,Catering,CASP,Supplies & Services,Provisions,DO NOT USE FOR ORDERING- DIRECT BILLING ONLY,27/02/2015,124.17
Customer Services,Catering,CASP,Supplies & Services,Provisions,DO NOT USE FOR ORDERING- DIRECT BILLING ONLY,27/02/2015,146.37
Customer Services,Catering,CASP,Supplies & Services,Provisions,DO NOT USE FOR ORDERING- DIRECT BILLING ONLY,27/02/2015,240.84
Customer Services,Catering,CASP,Supplies & Services,Provisions,DO NOT USE FOR ORDERING- DIRECT BILLING ONLY,27/02/2015,339.94
Customer Services,Catering,CASP,Supplies & Services,Provisions,DO NOT USE FOR ORDERING- DIRECT BILLING ONLY,27/02/2015,165.36
Customer Services,Catering,CASP,Supplies & Services,Provisions,DO NOT USE FOR ORDERING- DIRECT BILLING ONLY,27/02/2015,211.71
Customer Services,Catering,CASP,Supplies & Services,Provisions,DO NOT USE FOR ORDERING- DIRECT BILLING ONLY,27/02/2015,158.92
Customer Services,Catering,CASP,Supplies & Services,Provisions,DO NOT USE FOR ORDERING- DIRECT BILLING ONLY,27/02/2015,327.69
Customer Services,Catering,CASP,Supplies & Services,Provisions,DO NOT USE FOR ORDERING- DIRECT BILLING ONLY,27/02/2015,244.09
Customer Services,Catering,CASP,Supplies & Services,Provisions,DO NOT USE FOR ORDERING- DIRECT BILLING ONLY,27/02/2015,144.68
Customer Services,Catering,CASP,Supplies & Services,Provisions,DO NOT USE FOR ORDERING- DIRECT BILLING ONLY,27/02/2015,102.23
Customer Services,Catering,CASP,Supplies & Services,Provisions,DO NOT USE FOR ORDERING- DIRECT BILLING ONLY,27/02/2015,186.41
Customer Services,Catering,CASP,Supplies & Services,Provisions,DO NOT USE FOR ORDERING- DIRECT BILLING ONLY,27/02/2015,176.09
Customer Services,Catering,CASP,Supplies & Services,Provisions,DO NOT USE FOR ORDERING- DIRECT BILLING ONLY,27/02/2015,133.88
Customer Services,Catering,CASP,Supplies & Services,Provisions,DO NOT USE FOR ORDERING- DIRECT BILLING ONLY,27/02/2015,234.26
Customer Services,Catering,CASP,Supplies & Services,Provisions,DO NOT USE FOR ORDERING- DIRECT BILLING ONLY,27/02/2015,102.84
Customer Services,Catering,CASP,Supplies & Services,Provisions,DO NOT USE FOR ORDERING- DIRECT BILLING ONLY,27/02/2015,165.38
Customer Services,Catering,CASP,Supplies & Services,Provisions,DO NOT USE FOR ORDERING- DIRECT BILLING ONLY,27/02/2015,190.69
Customer Services,Catering,CASP,Supplies & Services,Provisions,DO NOT USE FOR ORDERING- DIRECT BILLING ONLY,27/02/2015,176.17
Customer Services,Catering,CASP,Supplies & Services,Provisions,DO NOT USE FOR ORDERING- DIRECT BILLING ONLY,27/02/2015,144.20
Customer Services,Catering,CASP,Supplies & Services,Provisions,DO NOT USE FOR ORDERING- DIRECT BILLING ONLY,27/02/2015,159.83
Customer Services,Catering,CASP,Supplies & Services,Provisions,DO NOT USE FOR ORDERING- DIRECT BILLING ONLY,27/02/2015,159.16
Customer Services,Catering,CASP,Supplies & Services,Provisions,DO NOT USE FOR ORDERING- DIRECT BILLING ONLY,27/02/2015,109.99
Customer Services,Catering,CASP,Supplies & Services,Provisions,DO NOT USE FOR ORDERING- DIRECT BILLING ONLY,27/02/2015,242.65
Customer Services,Catering,CASP,Supplies & Services,Provisions,DO NOT USE FOR ORDERING- DIRECT BILLING ONLY,27/02/2015,159.37
Customer Services,Catering,CASP,Supplies & Services,Provisions,DO NOT USE FOR ORDERING- DIRECT BILLING ONLY,27/02/2015,103.93
Customer Services,Catering,CASP,Supplies & Services,Provisions,DO NOT USE FOR ORDERING- DIRECT BILLING ONLY,27/02/2015,103.06
Customer Services,Catering,CASP,Supplies & Services,Provisions,DO NOT USE FOR ORDERING- DIRECT BILLING ONLY,27/02/2015,206.88
Customer Services,Catering,CASP,Supplies & Services,Provisions,DO NOT USE FOR ORDERING- DIRECT BILLING ONLY,27/02/2015,166.43
Customer Services,Catering,CASP,Supplies & Services,Provisions,DO NOT USE FOR ORDERING- DIRECT BILLING ONLY,27/02/2015,292.69
Customer Services,Catering,CASP,Supplies & Services,Provisions,DO NOT USE FOR ORDERING- DIRECT BILLING ONLY,27/02/2015,112.83
Customer Services,Catering,CASP,Supplies & Services,Provisions,DO NOT USE FOR ORDERING- DIRECT BILLING ONLY,27/02/2015,227.94
Customer Services,Catering,CASP,Supplies & Services,Provisions,DO NOT USE FOR ORDERING- DIRECT BILLING ONLY,27/02/2015,134.43
Customer Services,Catering,CASP,Supplies & Services,Provisions,DO NOT USE FOR ORDERING- DIRECT BILLING ONLY,27/02/2015,207.29
Customer Services,Catering,CASP,Supplies & Services,Provisions,DO NOT USE FOR ORDERING- DIRECT BILLING ONLY,27/02/2015,397.81
Customer Services,Catering,CASP,Supplies & Services,Provisions,DO NOT USE FOR ORDERING- DIRECT BILLING ONLY,27/02/2015,159.83
Customer Services,Catering,CASP,Supplies & Services,Provisions,DO NOT USE FOR ORDERING- DIRECT BILLING ONLY,27/02/2015,232.30
Customer Services,Catering,CASP,Supplies & Services,Provisions,DO NOT USE FOR ORDERING- DIRECT BILLING ONLY,27/02/2015,344.02
Customer Services,Catering,CASP,Supplies & Services,Provisions,DO NOT USE FOR ORDERING- DIRECT BILLING ONLY,27/02/2015,235.57
Customer Services,Catering,CASP,Supplies & Services,Provisions,DO NOT USE FOR ORDERING- DIRECT BILLING ONLY,27/02/2015,125.68
Customer Services,Catering,CASP,Supplies & Services,Provisions,DO NOT USE FOR ORDERING- DIRECT BILLING ONLY,27/02/2015,155.63
Customer Services,Catering,CASP,Supplies & Services,Provisions,DO NOT USE FOR ORDERING- DIRECT BILLING ONLY,27/02/2015,243.94
Customer Services,Catering,CASP,Supplies & Services,Provisions,DO NOT USE FOR ORDERING- DIRECT BILLING ONLY,27/02/2015,188.23
Customer Services,Catering,CASP,Supplies & Services,Provisions,DO NOT USE FOR ORDERING- DIRECT BILLING ONLY,27/02/2015,282.07
Customer Services,Catering,CASP,Supplies & Services,Provisions,DO NOT USE FOR ORDERING- DIRECT BILLING ONLY,27/02/2015,193.61
Customer Services,Catering,CASP,Supplies & Services,Provisions,DO NOT USE FOR ORDERING- DIRECT BILLING ONLY,27/02/2015,160.60
Customer Services,Catering,CASP,Supplies & Services,Provisions,DO NOT USE FOR ORDERING- DIRECT BILLING ONLY,27/02/2015,207.01
Customer Services,Catering,CASP,Supplies & Services,Provisions,DO NOT USE FOR ORDERING- DIRECT BILLING ONLY,27/02/2015,294.54
Customer Services,Catering,CASP,Supplies & Services,Provisions,DO NOT USE FOR ORDERING- DIRECT BILLING ONLY,27/02/2015,203.59
Customer Services,Catering,CASP,Supplies & Services,Provisions,DO NOT USE FOR ORDERING- DIRECT BILLING ONLY,27/02/2015,191.63
Customer Services,Catering,CASP,Supplies & Services,Provisions,DO NOT USE FOR ORDERING- DIRECT BILLING ONLY,27/02/2015,204.85
Customer Services,Catering,CASP,Supplies & Services,Provisions,DO NOT USE FOR ORDERING- DIRECT BILLING ONLY,27/02/2015,143.72
Customer Services,Catering,CASP,Supplies & Services,Provisions,DO NOT USE FOR ORDERING- DIRECT BILLING ONLY,27/02/2015,128.93
Customer Services,Catering,CASP,Supplies & Services,Provisions,DO NOT USE FOR ORDERING- DIRECT BILLING ONLY,27/02/2015,258.27
Customer Services,Catering,CASP,Supplies & Services,Provisions,DO NOT USE FOR ORDERING- DIRECT BILLING ONLY,27/02/2015,144.81
Customer Services,Catering,CASP,Supplies & Services,Provisions,DO NOT USE FOR ORDERING- DIRECT BILLING ONLY,27/02/2015,135.59
Customer Services,Catering,CASP,Supplies & Services,Provisions,DO NOT USE FOR ORDERING- DIRECT BILLING ONLY,27/02/2015,139.85
Customer Services,Catering,CASP,Supplies & Services,Provisions,DO NOT USE FOR ORDERING- DIRECT BILLING ONLY,27/02/2015,213.90
Customer Services,Catering,CASP,Supplies & Services,Provisions,DO NOT USE FOR ORDERING- DIRECT BILLING ONLY,27/02/2015,234.30
Customer Services,Catering,CASP,Supplies & Services,Provisions,DO NOT USE FOR ORDERING- DIRECT BILLING ONLY,27/02/2015,146.23
Customer Services,Catering,CASP,Supplies & Services,Provisions,DO NOT USE FOR ORDERING- DIRECT BILLING ONLY,27/02/2015,119.04
Customer Services,Catering,CASP,Supplies & Services,Provisions,DO NOT USE FOR ORDERING- DIRECT BILLING ONLY,27/02/2015,243.79
Customer Services,Catering,CASP,Supplies & Services,Provisions,DO NOT USE FOR ORDERING- DIRECT BILLING ONLY,27/02/2015,215.42
Customer Services,Catering,CASP,Supplies & Services,Provisions,DO NOT USE FOR ORDERING- DIRECT BILLING ONLY,27/02/2015,112.51
Customer Services,Catering,CASP,Supplies & Services,Provisions,DO NOT USE FOR ORDERING- DIRECT BILLING ONLY,27/02/2015,156.10
Customer Services,Catering,CASP,Supplies & Services,Provisions,DO NOT USE FOR ORDERING- DIRECT BILLING ONLY,27/02/2015,182.20
Customer Services,Catering,CASP,Supplies & Services,Provisions,DO NOT USE FOR ORDERING- DIRECT BILLING ONLY,27/02/2015,316.52
Customer Services,Catering,CASP,Supplies & Services,Provisions,DO NOT USE FOR ORDERING- DIRECT BILLING ONLY,27/02/2015,161.03
Customer Services,Catering,CASP,Supplies & Services,Provisions,DO NOT USE FOR ORDERING- DIRECT BILLING ONLY,27/02/2015,118.59
Customer Services,Catering,CASP,Supplies & Services,Provisions,DO NOT USE FOR ORDERING- DIRECT BILLING ONLY,27/02/2015,151.65
Customer Services,Catering,CASP,Supplies & Services,Provisions,DO NOT USE FOR ORDERING- DIRECT BILLING ONLY,27/02/2015,237.39
Customer Services,Catering,CASP,Supplies & Services,Provisions,ROWLANDS & COMPANY,04/02/2015,154.47
Customer Services,Catering,CASP,Supplies & Services,Provisions,ROWLANDS & COMPANY,04/02/2015,167.32
Customer Services,Catering,CASP,Supplies & Services,Provisions,ROWLANDS & COMPANY,04/02/2015,149.88
Customer Services,Catering,CASP,Supplies & Services,Provisions,John Sheppard Catering Butchers,12/02/2015,144.80
Customer Services,Catering,CASP,Supplies & Services,Provisions,John Sheppard Catering Butchers,12/02/2015,157.34
Customer Services,Catering,CASP,Supplies & Services,Provisions,John Sheppard Catering Butchers,12/02/2015,142.52
Customer Services,Catering,CASP,Supplies & Services,Provisions,John Sheppard Catering Butchers,12/02/2015,127.19
Customer Services,Catering,CASP,Supplies & Services,Provisions,John Sheppard Catering Butchers,12/02/2015,148.49
Customer Services,Catering,CASP,Supplies & Services,Provisions,John Sheppard Catering Butchers,12/02/2015,111.18
Customer Services,Catering,CASP,Supplies & Services,Provisions,John Sheppard Catering Butchers,12/02/2015,210.27
Customer Services,Catering,CASP,Supplies & Services,Provisions,John Sheppard Catering Butchers,12/02/2015,135.98
Customer Services,Catering,CASP,Supplies & Services,Provisions,ROWLANDS & COMPANY,17/02/2015,148.41
Customer Services,Catering,CASP,Supplies & Services,Provisions,ROWLANDS & COMPANY,17/02/2015,297.49
Customer Services,Catering,CASP,Supplies & Services,Provisions,ROWLANDS & COMPANY,17/02/2015,202.63
Customer Services,Catering,CASP,Supplies & Services,Provisions,ROWLANDS & COMPANY,17/02/2015,102.13
Customer Services,Catering,CASP,Supplies & Services,Provisions,ROWLANDS & COMPANY,17/02/2015,236.65
Customer Services,Catering,CASP,Supplies & Services,Provisions,ROWLANDS & COMPANY,17/02/2015,181.37
Customer Services,Catering,CASP,Supplies & Services,Provisions,ROWLANDS & COMPANY,17/02/2015,210.12
Customer Services,Catering,CASP,Supplies & Services,Provisions,ROWLANDS & COMPANY,17/02/2015,143.55
Customer Services,Catering,CASP,Supplies & Services,Provisions,ROWLANDS & COMPANY,17/02/2015,125.59
Customer Services,Catering,CASP,Supplies & Services,Provisions,ROWLANDS & COMPANY,17/02/2015,179.56
Customer Services,Catering,CASP,Supplies & Services,Provisions,RESPOL FLOORING SOLUTIONS,17/02/2015,150.35
Customer Services,Catering,CASP,Supplies & Services,Provisions,RESPOL FLOORING SOLUTIONS,17/02/2015,121.42
Customer Services,Catering,CASP,Supplies & Services,Provisions,RESPOL FLOORING SOLUTIONS,17/02/2015,125.84
Customer Services,Catering,CASP,Supplies & Services,Provisions,RESPOL FLOORING SOLUTIONS,17/02/2015,107.30
Customer Services,Catering,CASP,Supplies & Services,Provisions,RESPOL FLOORING SOLUTIONS,17/02/2015,145.04
Customer Services,Catering,CASP,Supplies & Services,Provisions,RESPOL FLOORING SOLUTIONS,17/02/2015,114.42
Customer Services,Catering,CASP,Supplies & Services,Provisions,RESPOL FLOORING SOLUTIONS,17/02/2015,177.50
Customer Services,Catering,CASP,Supplies & Services,Provisions,DO NOT USE FOR ORDERING- DIRECT BILLING ONLY,27/02/2015,122.66
Customer Services,Catering,CASP,Supplies & Services,Provisions,DO NOT USE FOR ORDERING- DIRECT BILLING ONLY,27/02/2015,108.47
Customer Services,Catering,CASP,Supplies & Services,Provisions,DO NOT USE FOR ORDERING- DIRECT BILLING ONLY,27/02/2015,197.76
Customer Services,Catering,CASP,Supplies & Services,Provisions,DO NOT USE FOR ORDERING- DIRECT BILLING ONLY,27/02/2015,118.55
Customer Services,Catering,CASP,Supplies & Services,Provisions,DO NOT USE FOR ORDERING- DIRECT BILLING ONLY,16/02/2015,147.64
Customer Services,Catering,CASP,Supplies & Services,Provisions,DO NOT USE FOR ORDERING- DIRECT BILLING ONLY,16/02/2015,429.94
Customer Services,Catering,CASP,Supplies & Services,Provisions,DO NOT USE FOR ORDERING- DIRECT BILLING ONLY,16/02/2015,109.67
Customer Services,Catering,CASP,Supplies & Services,Provisions,DO NOT USE FOR ORDERING- DIRECT BILLING ONLY,16/02/2015,229.80
Customer Services,Catering,CASP,Supplies & Services,Provisions,DO NOT USE FOR ORDERING- DIRECT BILLING ONLY,16/02/2015,101.92
Customer Services,Catering,CASP,Supplies & Services,Provisions,DO NOT USE FOR ORDERING- DIRECT BILLING ONLY,16/02/2015,141.47
Customer Services,Catering,CASP,Supplies & Services,Provisions,DO NOT USE FOR ORDERING- DIRECT BILLING ONLY,16/02/2015,184.13
Customer Services,Catering,CASP,Supplies & Services,Provisions,DO NOT USE FOR ORDERING- DIRECT BILLING ONLY,16/02/2015,152.07
Customer Services,Catering,CASP,Supplies & Services,Provisions,DO NOT USE FOR ORDERING- DIRECT BILLING ONLY,16/02/2015,152.90
Customer Services,Catering,CASP,Supplies & Services,Provisions,DO NOT USE FOR ORDERING- DIRECT BILLING ONLY,16/02/2015,417.63
Customer Services,Catering,CASP,Supplies & Services,Provisions,DO NOT USE FOR ORDERING- DIRECT BILLING ONLY,16/02/2015,306.93
Customer Services,Catering,CASP,Supplies & Services,Provisions,DO NOT USE FOR ORDERING- DIRECT BILLING ONLY,16/02/2015,279.09
Customer Services,Catering,CASP,Supplies & Services,Provisions,DO NOT USE FOR ORDERING- DIRECT BILLING ONLY,16/02/2015,134.87
Customer Services,Catering,CASP,Supplies & Services,Provisions,DO NOT USE FOR ORDERING- DIRECT BILLING ONLY,16/02/2015,132.33
Customer Services,Catering,CASP,Supplies & Services,Provisions,DO NOT USE FOR ORDERING- DIRECT BILLING ONLY,16/02/2015,183.20
Customer Services,Catering,CASP,Supplies & Services,Provisions,DO NOT USE FOR ORDERING- DIRECT BILLING ONLY,16/02/2015,164.93
Customer Services,Catering,CASP,Supplies & Services,Provisions,DO NOT USE FOR ORDERING- DIRECT BILLING ONLY,16/02/2015,133.46
Customer Services,Catering,CASP,Supplies & Services,Provisions,DO NOT USE FOR ORDERING- DIRECT BILLING ONLY,16/02/2015,134.30
Customer Services,Catering,CASP,Supplies & Services,Provisions,DO NOT USE FOR ORDERING- DIRECT BILLING ONLY,16/02/2015,102.05
Customer Services,Catering,CASP,Supplies & Services,Provisions,DO NOT USE FOR ORDERING- DIRECT BILLING ONLY,16/02/2015,105.58
Customer Services,Catering,CASP,Supplies & Services,Provisions,DO NOT USE FOR ORDERING- DIRECT BILLING ONLY,16/02/2015,187.03
Customer Services,Catering,CASP,Supplies & Services,Provisions,DO NOT USE FOR ORDERING- DIRECT BILLING ONLY,16/02/2015,406.32
Customer Services,Catering,CASP,Supplies & Services,Provisions,DO NOT USE FOR ORDERING- DIRECT BILLING ONLY,16/02/2015,197.07
Customer Services,Catering,CASP,Supplies & Services,Provisions,DO NOT USE FOR ORDERING- DIRECT BILLING ONLY,16/02/2015,207.53
Customer Services,Catering,CASP,Supplies & Services,Provisions,DO NOT USE FOR ORDERING- DIRECT BILLING ONLY,16/02/2015,111.75
Customer Services,Catering,CASP,Supplies & Services,Provisions,DO NOT USE FOR ORDERING- DIRECT BILLING ONLY,16/02/2015,105.17
Customer Services,Catering,CASP,Supplies & Services,Provisions,DO NOT USE FOR ORDERING- DIRECT BILLING ONLY,16/02/2015,184.01
Customer Services,Catering,CASP,Supplies & Services,Provisions,DO NOT USE FOR ORDERING- DIRECT BILLING ONLY,16/02/2015,272.55
Customer Services,Catering,CASP,Supplies & Services,Provisions,DO NOT USE FOR ORDERING- DIRECT BILLING ONLY,16/02/2015,114.42
Customer Services,Catering,CASP,Supplies & Services,Provisions,DO NOT USE FOR ORDERING- DIRECT BILLING ONLY,16/02/2015,319.07
Customer Services,Catering,CASP,Supplies & Services,Provisions,DO NOT USE FOR ORDERING- DIRECT BILLING ONLY,16/02/2015,137.99
Customer Services,Catering,CASP,Supplies & Services,Provisions,DO NOT USE FOR ORDERING- DIRECT BILLING ONLY,16/02/2015,229.45
Customer Services,Catering,CASP,Supplies & Services,Provisions,DO NOT USE FOR ORDERING- DIRECT BILLING ONLY,16/02/2015,338.07
Customer Services,Catering,CASP,Supplies & Services,Provisions,DO NOT USE FOR ORDERING- DIRECT BILLING ONLY,16/02/2015,151.70
Customer Services,Catering,CASP,Supplies & Services,Provisions,DO NOT USE FOR ORDERING- DIRECT BILLING ONLY,16/02/2015,101.47
Customer Services,Catering,CASP,Supplies & Services,Provisions,DO NOT USE FOR ORDERING- DIRECT BILLING ONLY,16/02/2015,117.28
Customer Services,Catering,CASP,Supplies & Services,Provisions,DO NOT USE FOR ORDERING- DIRECT BILLING ONLY,16/02/2015,117.01
Customer Services,Catering,CASP,Supplies & Services,Provisions,DO NOT USE FOR ORDERING- DIRECT BILLING ONLY,16/02/2015,214.71
Customer Services,Catering,CASP,Supplies & Services,Provisions,DO NOT USE FOR ORDERING- DIRECT BILLING ONLY,16/02/2015,103.33
Customer Services,Catering,CASP,Supplies & Services,Provisions,DO NOT USE FOR ORDERING- DIRECT BILLING ONLY,16/02/2015,108.33
Customer Services,Catering,CASP,Supplies & Services,Provisions,DO NOT USE FOR ORDERING- DIRECT BILLING ONLY,16/02/2015,177.04
Customer Services,Catering,CASP,Supplies & Services,Provisions,DO NOT USE FOR ORDERING- DIRECT BILLING ONLY,16/02/2015,245.77
Customer Services,Catering,CASP,Supplies & Services,Provisions,DO NOT USE FOR ORDERING- DIRECT BILLING ONLY,16/02/2015,249.48
Customer Services,Catering,CASP,Supplies & Services,Provisions,DO NOT USE FOR ORDERING- DIRECT BILLING ONLY,16/02/2015,124.96
Customer Services,Catering,CASP,Supplies & Services,Provisions,DO NOT USE FOR ORDERING- DIRECT BILLING ONLY,16/02/2015,380.89
Customer Services,Catering,CASP,Supplies & Services,Provisions,DO NOT USE FOR ORDERING- DIRECT BILLING ONLY,16/02/2015,159.36
Customer Services,Catering,CASP,Supplies & Services,Provisions,DO NOT USE FOR ORDERING- DIRECT BILLING ONLY,16/02/2015,196.44
Customer Services,Catering,CASP,Supplies & Services,Provisions,DO NOT USE FOR ORDERING- DIRECT BILLING ONLY,16/02/2015,185.49
Customer Services,Catering,CASP,Supplies & Services,Provisions,DO NOT USE FOR ORDERING- DIRECT BILLING ONLY,16/02/2015,282.40
Customer Services,Catering,CASP,Supplies & Services,Provisions,DO NOT USE FOR ORDERING- DIRECT BILLING ONLY,16/02/2015,113.91
Customer Services,Catering,CASP,Supplies & Services,Provisions,DO NOT USE FOR ORDERING- DIRECT BILLING ONLY,16/02/2015,159.68
Customer Services,Catering,CASP,Supplies & Services,Provisions,DO NOT USE FOR ORDERING- DIRECT BILLING ONLY,16/02/2015,147.64
Customer Services,Catering,CASP,Supplies & Services,Provisions,DO NOT USE FOR ORDERING- DIRECT BILLING ONLY,16/02/2015,178.59
Customer Services,Catering,CASP,Supplies & Services,Provisions,DO NOT USE FOR ORDERING- DIRECT BILLING ONLY,16/02/2015,157.87
Customer Services,Catering,CASP,Supplies & Services,Provisions,DO NOT USE FOR ORDERING- DIRECT BILLING ONLY,16/02/2015,189.94
Customer Services,Catering,CASP,Supplies & Services,Provisions,DO NOT USE FOR ORDERING- DIRECT BILLING ONLY,16/02/2015,127.28
Customer Services,Catering,CASP,Supplies & Services,Provisions,DO NOT USE FOR ORDERING- DIRECT BILLING ONLY,16/02/2015,153.91
Customer Services,Catering,CASP,Supplies & Services,Provisions,DO NOT USE FOR ORDERING- DIRECT BILLING ONLY,16/02/2015,332.75
Customer Services,Catering,CASP,Supplies & Services,Provisions,DO NOT USE FOR ORDERING- DIRECT BILLING ONLY,16/02/2015,222.36
Customer Services,Catering,CASP,Supplies & Services,Provisions,DO NOT USE FOR ORDERING- DIRECT BILLING ONLY,16/02/2015,101.68
Customer Services,Catering,CASP,Supplies & Services,Provisions,DO NOT USE FOR ORDERING- DIRECT BILLING ONLY,16/02/2015,113.77
Customer Services,Catering,CASP,Supplies & Services,Provisions,DO NOT USE FOR ORDERING- DIRECT BILLING ONLY,16/02/2015,156.18
Customer Services,Catering,CASP,Supplies & Services,Provisions,DO NOT USE FOR ORDERING- DIRECT BILLING ONLY,16/02/2015,216.39
Customer Services,Catering,CASP,Supplies & Services,Provisions,DO NOT USE FOR ORDERING- DIRECT BILLING ONLY,16/02/2015,129.68
Customer Services,Catering,CASP,Supplies & Services,Provisions,DO NOT USE FOR ORDERING- DIRECT BILLING ONLY,16/02/2015,205.51
Customer Services,Catering,CASP,Supplies & Services,Provisions,DO NOT USE FOR ORDERING- DIRECT BILLING ONLY,16/02/2015,237.79
Customer Services,Catering,CASP,Supplies & Services,Provisions,DO NOT USE FOR ORDERING- DIRECT BILLING ONLY,16/02/2015,256.76
Customer Services,Catering,CASP,Supplies & Services,Provisions,DO NOT USE FOR ORDERING- DIRECT BILLING ONLY,16/02/2015,205.84
Customer Services,Catering,CASP,Supplies & Services,Provisions,DO NOT USE FOR ORDERING- DIRECT BILLING ONLY,16/02/2015,192.53
Customer Services,Catering,CASP,Supplies & Services,Provisions,DO NOT USE FOR ORDERING- DIRECT BILLING ONLY,16/02/2015,268.71
Customer Services,Catering,CASP,Supplies & Services,Provisions,DO NOT USE FOR ORDERING- DIRECT BILLING ONLY,16/02/2015,118.38
Customer Services,Catering,CASP,Supplies & Services,Provisions,John Sheppard Catering Butchers,17/02/2015,183.75
Customer Services,Catering,CASP,Supplies & Services,Provisions,John Sheppard Catering Butchers,17/02/2015,152.31
Customer Services,Catering,CASP,Supplies & Services,Provisions,John Sheppard Catering Butchers,17/02/2015,125.55
Customer Services,Catering,CASP,Supplies & Services,Provisions,John Sheppard Catering Butchers,17/02/2015,185.25
Customer Services,Catering,CASP,Supplies & Services,Provisions,John Sheppard Catering Butchers,17/02/2015,133.07
Customer Services,Catering,CASP,Supplies & Services,Provisions,John Sheppard Catering Butchers,17/02/2015,110.03
Customer Services,Catering,CASP,Supplies & Services,Provisions,John Sheppard Catering Butchers,17/02/2015,117.86
Customer Services,Catering,CASP,Supplies & Services,Provisions,John Sheppard Catering Butchers,17/02/2015,148.42
Customer Services,Catering,CASP,Supplies & Services,Provisions,John Sheppard Catering Butchers,17/02/2015,155.71
Customer Services,Catering,CASP,Supplies & Services,Provisions,John Sheppard Catering Butchers,17/02/2015,120.06
Customer Services,Catering,CASP,Supplies & Services,Provisions,John Sheppard Catering Butchers,17/02/2015,295.35
Customer Services,Catering,CASP,Supplies & Services,Provisions,John Sheppard Catering Butchers,17/02/2015,224.33
Customer Services,Catering,CASP,Supplies & Services,Provisions,John Sheppard Catering Butchers,17/02/2015,144.67
Customer Services,Catering,CASP,Supplies & Services,Provisions,John Sheppard Catering Butchers,17/02/2015,109.17
Customer Services,Catering,CASP,Supplies & Services,Provisions,John Sheppard Catering Butchers,17/02/2015,189.41
Customer Services,Catering,CASP,Supplies & Services,Provisions,John Sheppard Catering Butchers,17/02/2015,136.91
Customer Services,Catering,CASP,Supplies & Services,Provisions,John Sheppard Catering Butchers,17/02/2015,214.44
Customer Services,Catering,CASP,Supplies & Services,Provisions,John Sheppard Catering Butchers,17/02/2015,-130.83
Customer Services,Catering,CASP,Supplies & Services,Provisions,John Sheppard Catering Butchers,17/02/2015,131.74
Customer Services,Catering,CASP,Supplies & Services,Provisions,John Sheppard Catering Butchers,17/02/2015,205.72
Customer Services,Catering,CASP,Supplies & Services,Provisions,John Sheppard Catering Butchers,17/02/2015,132.07
Customer Services,Catering,CASP,Supplies & Services,Provisions,John Sheppard Catering Butchers,17/02/2015,131.84
Customer Services,Catering,CASP,Supplies & Services,Provisions,SMART FOOD,16/02/2015,152.80
Customer Services,Catering,CASP,Supplies & Services,Provisions,SMART FOOD,16/02/2015,152.80
Customer Services,Catering,CASP,Supplies & Services,Provisions,SMART FOOD,16/02/2015,152.80
Customer Services,Catering,CASP,Supplies & Services,Provisions,SMART FOOD,16/02/2015,152.80
Customer Services,Catering,CASP,Supplies & Services,Provisions,DO NOT USE FOR ORDERING- DIRECT BILLING ONLY,20/02/2015,124.24
Customer Services,Catering,CASP,Supplies & Services,Provisions,DO NOT USE FOR ORDERING- DIRECT BILLING ONLY,20/02/2015,103.10
Customer Services,Catering,CASP,Supplies & Services,Provisions,DO NOT USE FOR ORDERING- DIRECT BILLING ONLY,20/02/2015,203.87
Customer Services,Catering,CASP,Supplies & Services,Provisions,DO NOT USE FOR ORDERING- DIRECT BILLING ONLY,20/02/2015,154.66
Customer Services,Catering,CASP,Supplies & Services,Provisions,DO NOT USE FOR ORDERING- DIRECT BILLING ONLY,20/02/2015,126.61
Customer Services,Catering,CASP,Supplies & Services,Provisions,DO NOT USE FOR ORDERING- DIRECT BILLING ONLY,20/02/2015,139.67
Customer Services,Catering,CASP,Supplies & Services,Provisions,SMART FOOD,19/02/2015,183.80
Customer Services,Catering,CASP,Supplies & Services,Provisions,John Sheppard Catering Butchers,12/02/2015,218.74
Customer Services,Catering,CASP,Supplies & Services,Provisions,John Sheppard Catering Butchers,12/02/2015,202.05
Customer Services,Catering,CASP,Supplies & Services,Provisions,John Sheppard Catering Butchers,12/02/2015,552.22
Customer Services,Catering,CASP,Supplies & Services,Provisions,John Sheppard Catering Butchers,12/02/2015,120.99
Customer Services,Catering,CASP,Supplies & Services,Provisions,John Sheppard Catering Butchers,12/02/2015,303.18
Customer Services,Catering,CASP,Supplies & Services,Provisions,John Sheppard Catering Butchers,12/02/2015,125.01
Customer Services,Catering,CASP,Supplies & Services,Provisions,John Sheppard Catering Butchers,12/02/2015,105.25
Customer Services,Catering,CASP,Supplies & Services,Provisions,John Sheppard Catering Butchers,12/02/2015,139.34
Customer Services,Catering,CASP,Supplies & Services,Provisions,John Sheppard Catering Butchers,12/02/2015,321.60
Customer Services,Catering,CASP,Supplies & Services,Provisions,John Sheppard Catering Butchers,12/02/2015,159.25
Customer Services,Catering,CASP,Supplies & Services,Provisions,John Sheppard Catering Butchers,12/02/2015,125.90
Customer Services,Catering,CASP,Supplies & Services,Provisions,John Sheppard Catering Butchers,12/02/2015,134.25
Customer Services,Catering,CASP,Supplies & Services,Provisions,John Sheppard Catering Butchers,12/02/2015,116.70
Customer Services,Catering,CASP,Supplies & Services,Provisions,John Sheppard Catering Butchers,12/02/2015,121.95
Customer Services,Catering,CASP,Supplies & Services,Provisions,John Sheppard Catering Butchers,12/02/2015,109.82
Customer Services,Catering,CASP,Supplies & Services,Provisions,John Sheppard Catering Butchers,12/02/2015,102.58
Customer Services,Catering,CASP,Supplies & Services,Provisions,John Sheppard Catering Butchers,12/02/2015,253.36
Customer Services,Catering,CASP,Supplies & Services,Provisions,John Sheppard Catering Butchers,12/02/2015,102.24
Customer Services,Catering,CASP,Supplies & Services,Provisions,John Sheppard Catering Butchers,12/02/2015,169.03
Customer Services,Catering,CASP,Supplies & Services,Provisions,John Sheppard Catering Butchers,12/02/2015,258.19
Customer Services,Catering,CASP,Supplies & Services,Provisions,John Sheppard Catering Butchers,12/02/2015,106.51
Customer Services,Catering,CASP,Supplies & Services,Provisions,John Sheppard Catering Butchers,12/02/2015,126.57
Customer Services,Catering,CASP,Supplies & Services,Provisions,John Sheppard Catering Butchers,12/02/2015,149.45
Customer Services,Catering,CASP,Supplies & Services,Provisions,John Sheppard Catering Butchers,12/02/2015,163.92
Customer Services,Catering,CASP,Supplies & Services,Provisions,John Sheppard Catering Butchers,12/02/2015,119.36
Customer Services,Catering,CASP,Supplies & Services,Provisions,John Sheppard Catering Butchers,12/02/2015,124.01
Customer Services,Catering,CASP,Supplies & Services,Provisions,John Sheppard Catering Butchers,12/02/2015,130.03
Customer Services,Catering,CASP,Supplies & Services,Provisions,John Sheppard Catering Butchers,12/02/2015,127.19
Customer Services,Catering,CASP,Supplies & Services,Provisions,John Sheppard Catering Butchers,12/02/2015,119.06
Customer Services,Catering,CASP,Supplies & Services,Provisions,John Sheppard Catering Butchers,12/02/2015,126.07
Customer Services,Catering,CASP,Supplies & Services,Provisions,John Sheppard Catering Butchers,12/02/2015,121.33
Customer Services,Catering,CASP,Supplies & Services,Provisions,John Sheppard Catering Butchers,12/02/2015,244.13
Customer Services,Catering,CASP,Supplies & Services,Provisions,John Sheppard Catering Butchers,12/02/2015,103.96
Customer Services,Catering,CASP,Supplies & Services,Provisions,John Sheppard Catering Butchers,12/02/2015,187.25
Customer Services,Catering,CASP,Supplies & Services,Provisions,John Sheppard Catering Butchers,12/02/2015,218.73
Customer Services,Catering,CASP,Supplies & Services,Provisions,John Sheppard Catering Butchers,12/02/2015,109.03
Customer Services,Catering,CASP,Supplies & Services,Provisions,John Sheppard Catering Butchers,12/02/2015,151.53
Customer Services,Catering,CASP,Supplies & Services,Provisions,John Sheppard Catering Butchers,12/02/2015,142.22
Customer Services,Catering,CASP,Supplies & Services,Provisions,John Sheppard Catering Butchers,12/02/2015,131.43
Customer Services,Catering,CASP,Supplies & Services,Provisions,John Sheppard Catering Butchers,12/02/2015,243.84
Customer Services,Catering,CASP,Supplies & Services,Provisions,John Sheppard Catering Butchers,12/02/2015,164.70
Customer Services,Catering,CASP,Supplies & Services,Provisions,John Sheppard Catering Butchers,12/02/2015,239.50
Customer Services,Catering,CASP,Supplies & Services,Provisions,John Sheppard Catering Butchers,12/02/2015,138.69
Customer Services,Catering,CASP,Supplies & Services,Provisions,John Sheppard Catering Butchers,12/02/2015,297.58
Customer Services,Catering,CASP,Supplies & Services,Provisions,John Sheppard Catering Butchers,12/02/2015,122.50
Customer Services,Catering,CASP,Supplies & Services,Provisions,John Sheppard Catering Butchers,12/02/2015,168.28
Customer Services,Catering,CASP,Supplies & Services,Provisions,John Sheppard Catering Butchers,12/02/2015,148.34
Customer Services,Catering,CASP,Supplies & Services,Provisions,John Sheppard Catering Butchers,12/02/2015,102.51
Customer Services,Catering,CASP,Supplies & Services,Provisions,John Sheppard Catering Butchers,12/02/2015,269.50
Customer Services,Catering,CASP,Supplies & Services,Provisions,John Sheppard Catering Butchers,12/02/2015,107.74
Customer Services,Catering,CASP,Supplies & Services,Provisions,John Sheppard Catering Butchers,12/02/2015,161.83
Customer Services,Catering,CASP,Supplies & Services,Provisions,John Sheppard Catering Butchers,12/02/2015,152.59
Customer Services,Catering,CASP,Supplies & Services,Provisions,ROWLANDS & COMPANY,06/02/2015,206.52
Customer Services,Catering,CASP,Supplies & Services,Provisions,ROWLANDS & COMPANY,06/02/2015,114.77
Customer Services,Catering,CASP,Supplies & Services,Provisions,ROWLANDS & COMPANY,06/02/2015,129.96
Customer Services,Catering,CASP,Supplies & Services,Provisions,ROWLANDS & COMPANY,06/02/2015,102.27
Customer Services,Catering,CASP,Supplies & Services,Provisions,ROWLANDS & COMPANY,06/02/2015,120.84
Customer Services,Catering,CASP,Supplies & Services,Provisions,ROWLANDS & COMPANY,06/02/2015,160.62
Customer Services,Catering,CASP,Supplies & Services,Provisions,ROWLANDS & COMPANY,06/02/2015,149.89
Customer Services,Catering,CASP,Supplies & Services,Provisions,ROWLANDS & COMPANY,06/02/2015,102.59
Customer Services,Catering,CASP,Supplies & Services,Provisions,ROWLANDS & COMPANY,06/02/2015,105.20
Customer Services,Catering,CASP,Supplies & Services,Provisions,ROWLANDS & COMPANY,06/02/2015,141.29
Customer Services,Catering,CASP,Supplies & Services,Provisions,ROWLANDS & COMPANY,06/02/2015,119.46
Customer Services,Catering,CASP,Supplies & Services,Provisions,ROWLANDS & COMPANY,06/02/2015,118.36
Customer Services,Catering,CASP,Supplies & Services,Provisions,ROWLANDS & COMPANY,06/02/2015,101.01
Customer Services,Catering,CASP,Supplies & Services,Provisions,ROWLANDS & COMPANY,06/02/2015,172.60
Customer Services,Catering,CASP,Supplies & Services,Provisions,ROWLANDS & COMPANY,06/02/2015,162.55
Customer Services,Catering,CASP,Supplies & Services,Provisions,John Sheppard Catering Butchers,06/02/2015,123.05
Customer Services,Catering,CASP,Supplies & Services,Provisions,John Sheppard Catering Butchers,06/02/2015,111.25
Customer Services,Catering,CASP,Supplies & Services,Provisions,John Sheppard Catering Butchers,06/02/2015,100.74
Customer Services,Catering,CASP,Supplies & Services,Provisions,John Sheppard Catering Butchers,06/02/2015,-897.94
Customer Services,Catering,CASP,Supplies & Services,Provisions,John Sheppard Catering Butchers,06/02/2015,160.38
Customer Services,Catering,CASP,Supplies & Services,Provisions,John Sheppard Catering Butchers,06/02/2015,102.75
Customer Services,Catering,CASP,Supplies & Services,Provisions,John Sheppard Catering Butchers,06/02/2015,135.65
Customer Services,Catering,CASP,Supplies & Services,Provisions,John Sheppard Catering Butchers,06/02/2015,129.78
Customer Services,Catering,CASP,Supplies & Services,Provisions,John Sheppard Catering Butchers,06/02/2015,210.22
Customer Services,Catering,CASP,Supplies & Services,Provisions,John Sheppard Catering Butchers,06/02/2015,290.18
Customer Services,Catering,CASP,Supplies & Services,Provisions,John Sheppard Catering Butchers,06/02/2015,325.47
Customer Services,Catering,CASP,Supplies & Services,Provisions,John Sheppard Catering Butchers,06/02/2015,121.81
Customer Services,Catering,CASP,Supplies & Services,Provisions,John Sheppard Catering Butchers,06/02/2015,168.95
Customer Services,Catering,CASP,Supplies & Services,Provisions,John Sheppard Catering Butchers,06/02/2015,146.55
Customer Services,Catering,CASP,Supplies & Services,Provisions,John Sheppard Catering Butchers,06/02/2015,107.53
Customer Services,Catering,CASP,Supplies & Services,Provisions,John Sheppard Catering Butchers,06/02/2015,100.55
Customer Services,Catering,CASP,Supplies & Services,Provisions,John Sheppard Catering Butchers,06/02/2015,172.30
Customer Services,Catering,CASP,Supplies & Services,Provisions,John Sheppard Catering Butchers,06/02/2015,240.70
Customer Services,Catering,CASP,Supplies & Services,Provisions,John Sheppard Catering Butchers,06/02/2015,212.30
Customer Services,Catering,CASP,Supplies & Services,Provisions,John Sheppard Catering Butchers,06/02/2015,139.90
Customer Services,Catering,CASP,Supplies & Services,Provisions,John Sheppard Catering Butchers,06/02/2015,"1,033.00"
Customer Services,Catering,CASP,Supplies & Services,Provisions,John Sheppard Catering Butchers,06/02/2015,103.04
Customer Services,Catering,CASP,Supplies & Services,Provisions,John Sheppard Catering Butchers,06/02/2015,158.60
Customer Services,Catering,CASP,Supplies & Services,Provisions,John Sheppard Catering Butchers,06/02/2015,135.59
Customer Services,Catering,CASP,Supplies & Services,Provisions,John Sheppard Catering Butchers,06/02/2015,177.80
Customer Services,Catering,CASP,Supplies & Services,Provisions,DO NOT USE FOR ORDERING- DIRECT BILLING ONLY,06/02/2015,145.17
Customer Services,Catering,CASP,Supplies & Services,Provisions,DO NOT USE FOR ORDERING- DIRECT BILLING ONLY,06/02/2015,126.79
Customer Services,Catering,CASP,Supplies & Services,Provisions,DO NOT USE FOR ORDERING- DIRECT BILLING ONLY,06/02/2015,226.65
Customer Services,Catering,CASP,Supplies & Services,Provisions,DO NOT USE FOR ORDERING- DIRECT BILLING ONLY,06/02/2015,125.46
Customer Services,Catering,CASP,Supplies & Services,Provisions,DO NOT USE FOR ORDERING- DIRECT BILLING ONLY,06/02/2015,221.43
Customer Services,Catering,CASP,Supplies & Services,Provisions,DO NOT USE FOR ORDERING- DIRECT BILLING ONLY,06/02/2015,155.62
Customer Services,Catering,CASP,Supplies & Services,Provisions,DO NOT USE FOR ORDERING- DIRECT BILLING ONLY,06/02/2015,105.13
Customer Services,Catering,CASP,Supplies & Services,Provisions,DO NOT USE FOR ORDERING- DIRECT BILLING ONLY,06/02/2015,375.80
Customer Services,Catering,CASP,Supplies & Services,Provisions,DO NOT USE FOR ORDERING- DIRECT BILLING ONLY,06/02/2015,109.57
Customer Services,Catering,CASP,Supplies & Services,Provisions,DO NOT USE FOR ORDERING- DIRECT BILLING ONLY,06/02/2015,102.45
Customer Services,Catering,CASP,Supplies & Services,Provisions,DO NOT USE FOR ORDERING- DIRECT BILLING ONLY,06/02/2015,131.90
Customer Services,Catering,CASP,Supplies & Services,Provisions,DO NOT USE FOR ORDERING- DIRECT BILLING ONLY,06/02/2015,120.30
Customer Services,Catering,CASP,Supplies & Services,Provisions,DO NOT USE FOR ORDERING- DIRECT BILLING ONLY,06/02/2015,103.87
Customer Services,Catering,CASP,Supplies & Services,Provisions,DO NOT USE FOR ORDERING- DIRECT BILLING ONLY,06/02/2015,169.21
Customer Services,Catering,CASP,Supplies & Services,Provisions,DO NOT USE FOR ORDERING- DIRECT BILLING ONLY,06/02/2015,207.43
Customer Services,Catering,CASP,Supplies & Services,Provisions,DO NOT USE FOR ORDERING- DIRECT BILLING ONLY,06/02/2015,176.49
Customer Services,Catering,CASP,Supplies & Services,Provisions,DO NOT USE FOR ORDERING- DIRECT BILLING ONLY,06/02/2015,293.45
Customer Services,Catering,CASP,Supplies & Services,Provisions,DO NOT USE FOR ORDERING- DIRECT BILLING ONLY,06/02/2015,136.05
Customer Services,Catering,CASP,Supplies & Services,Provisions,DO NOT USE FOR ORDERING- DIRECT BILLING ONLY,06/02/2015,298.07
Customer Services,Catering,CASP,Supplies & Services,Provisions,DO NOT USE FOR ORDERING- DIRECT BILLING ONLY,06/02/2015,179.08
Customer Services,Catering,CASP,Supplies & Services,Provisions,DO NOT USE FOR ORDERING- DIRECT BILLING ONLY,06/02/2015,543.02
Customer Services,Catering,CASP,Supplies & Services,Provisions,DO NOT USE FOR ORDERING- DIRECT BILLING ONLY,06/02/2015,176.09
Customer Services,Catering,CASP,Supplies & Services,Provisions,DO NOT USE FOR ORDERING- DIRECT BILLING ONLY,06/02/2015,392.80
Customer Services,Catering,CASP,Supplies & Services,Provisions,DO NOT USE FOR ORDERING- DIRECT BILLING ONLY,06/02/2015,187.65
Customer Services,Catering,CASP,Supplies & Services,Provisions,DO NOT USE FOR ORDERING- DIRECT BILLING ONLY,06/02/2015,136.17
Customer Services,Catering,CASP,Supplies & Services,Provisions,DO NOT USE FOR ORDERING- DIRECT BILLING ONLY,06/02/2015,124.24
Customer Services,Catering,CASP,Supplies & Services,Provisions,DO NOT USE FOR ORDERING- DIRECT BILLING ONLY,06/02/2015,111.62
Customer Services,Catering,CASP,Supplies & Services,Provisions,DO NOT USE FOR ORDERING- DIRECT BILLING ONLY,06/02/2015,189.87
Customer Services,Catering,CASP,Supplies & Services,Provisions,DO NOT USE FOR ORDERING- DIRECT BILLING ONLY,06/02/2015,291.17
Customer Services,Catering,CASP,Supplies & Services,Provisions,DO NOT USE FOR ORDERING- DIRECT BILLING ONLY,06/02/2015,144.15
Customer Services,Catering,CASP,Supplies & Services,Provisions,DO NOT USE FOR ORDERING- DIRECT BILLING ONLY,06/02/2015,122.62
Customer Services,Catering,CASP,Supplies & Services,Provisions,DO NOT USE FOR ORDERING- DIRECT BILLING ONLY,06/02/2015,190.34
Customer Services,Catering,CASP,Supplies & Services,Provisions,DO NOT USE FOR ORDERING- DIRECT BILLING ONLY,06/02/2015,173.23
Customer Services,Catering,CASP,Supplies & Services,Provisions,DO NOT USE FOR ORDERING- DIRECT BILLING ONLY,06/02/2015,355.19
Customer Services,Catering,CASP,Supplies & Services,Provisions,DO NOT USE FOR ORDERING- DIRECT BILLING ONLY,06/02/2015,185.08
Customer Services,Catering,CASP,Supplies & Services,Provisions,DO NOT USE FOR ORDERING- DIRECT BILLING ONLY,06/02/2015,116.73
Customer Services,Catering,CASP,Supplies & Services,Provisions,DO NOT USE FOR ORDERING- DIRECT BILLING ONLY,06/02/2015,171.82
Customer Services,Catering,CASP,Supplies & Services,Provisions,DO NOT USE FOR ORDERING- DIRECT BILLING ONLY,06/02/2015,184.51
Customer Services,Catering,CASP,Supplies & Services,Provisions,DO NOT USE FOR ORDERING- DIRECT BILLING ONLY,06/02/2015,235.27
Customer Services,Catering,CASP,Supplies & Services,Provisions,DO NOT USE FOR ORDERING- DIRECT BILLING ONLY,06/02/2015,109.49
Customer Services,Catering,CASP,Supplies & Services,Provisions,DO NOT USE FOR ORDERING- DIRECT BILLING ONLY,06/02/2015,101.35
Customer Services,Catering,CASP,Supplies & Services,Provisions,DO NOT USE FOR ORDERING- DIRECT BILLING ONLY,06/02/2015,142.97
Customer Services,Catering,CASP,Supplies & Services,Provisions,DO NOT USE FOR ORDERING- DIRECT BILLING ONLY,06/02/2015,141.62
Customer Services,Catering,CASP,Supplies & Services,Provisions,DO NOT USE FOR ORDERING- DIRECT BILLING ONLY,06/02/2015,239.45
Customer Services,Catering,CASP,Supplies & Services,Provisions,DO NOT USE FOR ORDERING- DIRECT BILLING ONLY,06/02/2015,261.77
Customer Services,Catering,CASP,Supplies & Services,Provisions,DO NOT USE FOR ORDERING- DIRECT BILLING ONLY,06/02/2015,174.02
Customer Services,Catering,CASP,Supplies & Services,Provisions,DO NOT USE FOR ORDERING- DIRECT BILLING ONLY,06/02/2015,177.31
Customer Services,Catering,CASP,Supplies & Services,Provisions,DO NOT USE FOR ORDERING- DIRECT BILLING ONLY,06/02/2015,103.71
Customer Services,Catering,CASP,Supplies & Services,Provisions,DO NOT USE FOR ORDERING- DIRECT BILLING ONLY,06/02/2015,226.65
Customer Services,Catering,CASP,Supplies & Services,Provisions,DO NOT USE FOR ORDERING- DIRECT BILLING ONLY,06/02/2015,360.63
Customer Services,Catering,CASP,Supplies & Services,Provisions,DO NOT USE FOR ORDERING- DIRECT BILLING ONLY,06/02/2015,198.24
Customer Services,Catering,CASP,Supplies & Services,Provisions,DO NOT USE FOR ORDERING- DIRECT BILLING ONLY,06/02/2015,118.93
Customer Services,Catering,CASP,Supplies & Services,Provisions,DO NOT USE FOR ORDERING- DIRECT BILLING ONLY,06/02/2015,388.39
Customer Services,Catering,CASP,Supplies & Services,Provisions,DO NOT USE FOR ORDERING- DIRECT BILLING ONLY,06/02/2015,202.33
Customer Services,Catering,CASP,Supplies & Services,Provisions,DO NOT USE FOR ORDERING- DIRECT BILLING ONLY,06/02/2015,300.64
Customer Services,Catering,CASP,Supplies & Services,Provisions,DO NOT USE FOR ORDERING- DIRECT BILLING ONLY,06/02/2015,327.93
Customer Services,Catering,CASP,Supplies & Services,Provisions,DO NOT USE FOR ORDERING- DIRECT BILLING ONLY,06/02/2015,144.18
Customer Services,Catering,CASP,Supplies & Services,Provisions,DO NOT USE FOR ORDERING- DIRECT BILLING ONLY,06/02/2015,156.93
Customer Services,Catering,CASP,Supplies & Services,Provisions,DO NOT USE FOR ORDERING- DIRECT BILLING ONLY,06/02/2015,240.96
Customer Services,Catering,CASP,Supplies & Services,Provisions,DO NOT USE FOR ORDERING- DIRECT BILLING ONLY,06/02/2015,240.67
Customer Services,Catering,CASP,Supplies & Services,Provisions,DO NOT USE FOR ORDERING- DIRECT BILLING ONLY,06/02/2015,117.50
Customer Services,Catering,CASP,Supplies & Services,Provisions,DO NOT USE FOR ORDERING- DIRECT BILLING ONLY,06/02/2015,129.74
Customer Services,Catering,CASP,Supplies & Services,Provisions,DO NOT USE FOR ORDERING- DIRECT BILLING ONLY,06/02/2015,123.11
Customer Services,Catering,CASP,Supplies & Services,Provisions,DO NOT USE FOR ORDERING- DIRECT BILLING ONLY,06/02/2015,150.02
Customer Services,Catering,CASP,Supplies & Services,Provisions,DO NOT USE FOR ORDERING- DIRECT BILLING ONLY,06/02/2015,115.30
Customer Services,Catering,CASP,Supplies & Services,Provisions,DO NOT USE FOR ORDERING- DIRECT BILLING ONLY,06/02/2015,300.82
Customer Services,Catering,CASP,Supplies & Services,Provisions,DO NOT USE FOR ORDERING- DIRECT BILLING ONLY,06/02/2015,260.63
Customer Services,Catering,CASP,Supplies & Services,Provisions,DO NOT USE FOR ORDERING- DIRECT BILLING ONLY,06/02/2015,182.57
Customer Services,Catering,CASP,Supplies & Services,Provisions,DO NOT USE FOR ORDERING- DIRECT BILLING ONLY,06/02/2015,261.95
Customer Services,Catering,CASP,Supplies & Services,Provisions,DO NOT USE FOR ORDERING- DIRECT BILLING ONLY,06/02/2015,257.10
Customer Services,Catering,CASP,Supplies & Services,Provisions,DO NOT USE FOR ORDERING- DIRECT BILLING ONLY,06/02/2015,142.49
Customer Services,Catering,CASP,Supplies & Services,Provisions,DO NOT USE FOR ORDERING- DIRECT BILLING ONLY,06/02/2015,139.50
Customer Services,Catering,CASP,Supplies & Services,Provisions,DO NOT USE FOR ORDERING- DIRECT BILLING ONLY,06/02/2015,136.60
Customer Services,Catering,CASP,Supplies & Services,Provisions,DO NOT USE FOR ORDERING- DIRECT BILLING ONLY,06/02/2015,112.66
Customer Services,Catering,CASP,Supplies & Services,Provisions,DO NOT USE FOR ORDERING- DIRECT BILLING ONLY,06/02/2015,161.56
Customer Services,Catering,CASP,Supplies & Services,Provisions,DO NOT USE FOR ORDERING- DIRECT BILLING ONLY,06/02/2015,110.86
Customer Services,Catering,CASP,Supplies & Services,Provisions,DO NOT USE FOR ORDERING- DIRECT BILLING ONLY,06/02/2015,103.50
Customer Services,Catering,CASP,Supplies & Services,Provisions,SAFY IMPEX LTD T/A SPICE TIME,03/02/2015,179.00
Customer Services,Catering,CASP,Supplies & Services,Provisions,DO NOT USE FOR ORDERING- DIRECT BILLING ONLY,06/02/2015,108.40
Customer Services,Catering,CASP,Supplies & Services,Provisions,DO NOT USE FOR ORDERING- DIRECT BILLING ONLY,06/02/2015,194.76
Customer Services,Catering,CASP,Supplies & Services,Provisions,SMART FOOD,03/02/2015,152.80
Customer Services,Catering,CASP,Supplies & Services,Provisions,SMART FOOD,03/02/2015,152.80
Customer Services,Catering,CASP,Supplies & Services,Provisions,John Sheppard Catering Butchers,04/02/2015,134.92
Customer Services,Catering,CASP,Supplies & Services,Provisions,John Sheppard Catering Butchers,04/02/2015,106.72
Customer Services,Catering,CASP,Supplies & Services,Provisions,John Sheppard Catering Butchers,04/02/2015,149.69
Customer Services,Catering,CASP,Supplies & Services,Provisions,John Sheppard Catering Butchers,04/02/2015,119.00
Customer Services,Catering,CASP,Supplies & Services,Provisions,John Sheppard Catering Butchers,04/02/2015,249.52
Customer Services,Catering,CASP,Supplies & Services,Provisions,John Sheppard Catering Butchers,04/02/2015,139.62
Customer Services,Catering,CASP,Supplies & Services,Provisions,John Sheppard Catering Butchers,04/02/2015,189.90
Customer Services,Catering,CASP,Supplies & Services,Provisions,John Sheppard Catering Butchers,04/02/2015,195.15
Customer Services,Catering,CASP,Supplies & Services,Provisions,John Sheppard Catering Butchers,04/02/2015,128.69
Customer Services,Catering,CASP,Supplies & Services,Provisions,John Sheppard Catering Butchers,04/02/2015,231.48
Customer Services,Catering,CASP,Supplies & Services,Provisions,John Sheppard Catering Butchers,04/02/2015,197.79
Customer Services,Catering,CASP,Supplies & Services,Provisions,John Sheppard Catering Butchers,04/02/2015,106.66
Customer Services,Catering,CASP,Supplies & Services,Provisions,John Sheppard Catering Butchers,04/02/2015,253.95
Customer Services,Catering,CASP,Supplies & Services,Provisions,John Sheppard Catering Butchers,04/02/2015,297.01
Customer Services,Catering,CASP,Supplies & Services,Provisions,John Sheppard Catering Butchers,04/02/2015,208.56
Customer Services,Catering,CASP,Supplies & Services,Provisions,John Sheppard Catering Butchers,04/02/2015,121.71
Customer Services,Catering,CASP,Supplies & Services,Provisions,John Sheppard Catering Butchers,04/02/2015,130.30
Customer Services,Catering,CASP,Supplies & Services,Provisions,John Sheppard Catering Butchers,04/02/2015,219.09
Customer Services,Catering,CASP,Supplies & Services,Provisions,John Sheppard Catering Butchers,04/02/2015,323.89
Customer Services,Catering,CASP,Supplies & Services,Provisions,John Sheppard Catering Butchers,04/02/2015,167.72
Customer Services,Catering,CASP,Supplies & Services,Provisions,ROWLANDS & COMPANY,04/02/2015,156.32
Customer Services,Catering,CASP,Supplies & Services,Provisions,ROWLANDS & COMPANY,04/02/2015,101.01
Customer Services,Catering,CASP,Supplies & Services,Provisions,ROWLANDS & COMPANY,04/02/2015,128.02
Customer Services,Catering,CASP,Supplies & Services,Provisions,ROWLANDS & COMPANY,04/02/2015,102.24
Customer Services,Catering,CASP,Supplies & Services,Provisions,ROWLANDS & COMPANY,04/02/2015,104.51
Customer Services,Catering,CASP,Supplies & Services,Provisions,ROWLANDS & COMPANY,04/02/2015,144.44
Customer Services,Catering,CASP,Supplies & Services,Provisions,John Sheppard Catering Butchers,23/02/2015,142.87
Customer Services,Catering,CASP,Supplies & Services,Provisions,Gills Puddings Ltd,24/02/2015,150.30
Customer Services,Catering,CASP,Supplies & Services,Provisions,SMART FOOD,27/02/2015,183.80
Customer Services,Catering,CASS,Supplies & Services,Holidays & Outings,TRI STAR PACKAGING SUPPLIES LIMITED,16/02/2015,106.55
Customer Services,Catering,CASS,Supplies & Services,Holidays & Outings,TROPICAL ICE,16/02/2015,220.00
Customer Services,Catering,CASS,Supplies & Services,Holidays & Outings,TROPICAL ICE,03/02/2015,110.00
Customer Services,Catering,CASS,Supplies & Services,Holidays & Outings,TRI STAR PACKAGING SUPPLIES LIMITED,03/02/2015,101.26
Customer Services,Catering,CASS,Supplies & Services,Provisions,On A Roll,27/02/2015,149.10
Customer Services,Catering,CASS,Supplies & Services,Provisions,Tasties of Chester Ltd,27/02/2015,420.52
Customer Services,Catering,CASS,Supplies & Services,Provisions,Willoughby (731) Ltd T/A The Fabulous Bakin' Boys,27/02/2015,166.88
Customer Services,Catering,CASS,Supplies & Services,Provisions,On A Roll,27/02/2015,197.46
Customer Services,Catering,CASS,Supplies & Services,Provisions,DO NOT USE FOR ORDERING- DIRECT BILLING ONLY,27/02/2015,232.93
Customer Services,Catering,CASS,Supplies & Services,Provisions,DO NOT USE FOR ORDERING- DIRECT BILLING ONLY,27/02/2015,318.40
Customer Services,Catering,CASS,Supplies & Services,Provisions,DO NOT USE FOR ORDERING- DIRECT BILLING ONLY,27/02/2015,336.37
Customer Services,Catering,CASS,Supplies & Services,Provisions,DO NOT USE FOR ORDERING- DIRECT BILLING ONLY,27/02/2015,208.06
Customer Services,Catering,CASS,Supplies & Services,Provisions,DO NOT USE FOR ORDERING- DIRECT BILLING ONLY,27/02/2015,103.07
Customer Services,Catering,CASS,Supplies & Services,Provisions,DO NOT USE FOR ORDERING- DIRECT BILLING ONLY,27/02/2015,151.72
Customer Services,Catering,CASS,Supplies & Services,Provisions,DO NOT USE FOR ORDERING- DIRECT BILLING ONLY,27/02/2015,769.65
Customer Services,Catering,CASS,Supplies & Services,Provisions,DO NOT USE FOR ORDERING- DIRECT BILLING ONLY,27/02/2015,190.84
Customer Services,Catering,CASS,Supplies & Services,Provisions,DO NOT USE FOR ORDERING- DIRECT BILLING ONLY,27/02/2015,235.21
Customer Services,Catering,CASS,Supplies & Services,Provisions,DO NOT USE FOR ORDERING- DIRECT BILLING ONLY,27/02/2015,132.43
Customer Services,Catering,CASS,Supplies & Services,Provisions,DO NOT USE FOR ORDERING- DIRECT BILLING ONLY,27/02/2015,308.93
Customer Services,Catering,CASS,Supplies & Services,Provisions,DO NOT USE FOR ORDERING- DIRECT BILLING ONLY,27/02/2015,111.89
Customer Services,Catering,CASS,Supplies & Services,Provisions,DO NOT USE FOR ORDERING- DIRECT BILLING ONLY,27/02/2015,111.68
Customer Services,Catering,CASS,Supplies & Services,Provisions,DO NOT USE FOR ORDERING- DIRECT BILLING ONLY,27/02/2015,380.65
Customer Services,Catering,CASS,Supplies & Services,Provisions,DO NOT USE FOR ORDERING- DIRECT BILLING ONLY,27/02/2015,401.85
Customer Services,Catering,CASS,Supplies & Services,Provisions,DO NOT USE FOR ORDERING- DIRECT BILLING ONLY,27/02/2015,258.90
Customer Services,Catering,CASS,Supplies & Services,Provisions,DO NOT USE FOR ORDERING- DIRECT BILLING ONLY,27/02/2015,"1,040.09"
Customer Services,Catering,CASS,Supplies & Services,Provisions,DO NOT USE FOR ORDERING- DIRECT BILLING ONLY,27/02/2015,159.71
Customer Services,Catering,CASS,Supplies & Services,Provisions,RADNOR HILLS MINERAL WATER COMPANY LTD,09/02/2015,236.04
Customer Services,Catering,CASS,Supplies & Services,Provisions,RADNOR HILLS MINERAL WATER COMPANY LTD,09/02/2015,228.12
Customer Services,Catering,CASS,Supplies & Services,Provisions,RADNOR HILLS MINERAL WATER COMPANY LTD,09/02/2015,335.14
Customer Services,Catering,CASS,Supplies & Services,Provisions,Tasties of Chester Ltd,06/02/2015,372.88
Customer Services,Catering,CASS,Supplies & Services,Provisions,On A Roll,06/02/2015,269.44
Customer Services,Catering,CASS,Supplies & Services,Provisions,TROPICAL ICE,17/02/2015,325.00
Customer Services,Catering,CASS,Supplies & Services,Provisions,DO NOT USE FOR ORDERING- DIRECT BILLING ONLY,16/02/2015,153.98
Customer Services,Catering,CASS,Supplies & Services,Provisions,DO NOT USE FOR ORDERING- DIRECT BILLING ONLY,16/02/2015,164.32
Customer Services,Catering,CASS,Supplies & Services,Provisions,DO NOT USE FOR ORDERING- DIRECT BILLING ONLY,16/02/2015,120.90
Customer Services,Catering,CASS,Supplies & Services,Provisions,DO NOT USE FOR ORDERING- DIRECT BILLING ONLY,16/02/2015,123.50
Customer Services,Catering,CASS,Supplies & Services,Provisions,DO NOT USE FOR ORDERING- DIRECT BILLING ONLY,16/02/2015,401.51
Customer Services,Catering,CASS,Supplies & Services,Provisions,DO NOT USE FOR ORDERING- DIRECT BILLING ONLY,16/02/2015,202.41
Customer Services,Catering,CASS,Supplies & Services,Provisions,RADNOR HILLS MINERAL WATER COMPANY LTD,16/02/2015,134.08
Customer Services,Catering,CASS,Supplies & Services,Provisions,Willoughby (731) Ltd T/A The Fabulous Bakin' Boys,16/02/2015,166.88
Customer Services,Catering,CASS,Supplies & Services,Provisions,SMART FOOD,16/02/2015,343.20
Customer Services,Catering,CASS,Supplies & Services,Provisions,SMART FOOD,16/02/2015,609.60
Customer Services,Catering,CASS,Supplies & Services,Provisions,TROPICAL ICE,19/02/2015,185.00
Customer Services,Catering,CASS,Supplies & Services,Provisions,Willoughby (731) Ltd T/A The Fabulous Bakin' Boys,19/02/2015,216.06
Customer Services,Catering,CASS,Supplies & Services,Provisions,Tasties of Chester Ltd,19/02/2015,172.88
Customer Services,Catering,CASS,Supplies & Services,Provisions,Tasties of Chester Ltd,19/02/2015,379.67
Customer Services,Catering,CASS,Supplies & Services,Provisions,Tasties of Chester Ltd,19/02/2015,367.57
Customer Services,Catering,CASS,Supplies & Services,Provisions,On A Roll,19/02/2015,335.18
Customer Services,Catering,CASS,Supplies & Services,Provisions,John Sheppard Catering Butchers,12/02/2015,143.83
Customer Services,Catering,CASS,Supplies & Services,Provisions,John Sheppard Catering Butchers,12/02/2015,116.60
Customer Services,Catering,CASS,Supplies & Services,Provisions,RADNOR HILLS MINERAL WATER COMPANY LTD,12/02/2015,134.08
Customer Services,Catering,CASS,Supplies & Services,Provisions,RADNOR HILLS MINERAL WATER COMPANY LTD,12/02/2015,189.62
Customer Services,Catering,CASS,Supplies & Services,Provisions,On A Roll,06/02/2015,338.30
Customer Services,Catering,CASS,Supplies & Services,Provisions,On A Roll,06/02/2015,222.26
Customer Services,Catering,CASS,Supplies & Services,Provisions,On A Roll,06/02/2015,198.26
Customer Services,Catering,CASS,Supplies & Services,Provisions,On A Roll,06/02/2015,101.34
Customer Services,Catering,CASS,Supplies & Services,Provisions,On A Roll,06/02/2015,339.80
Customer Services,Catering,CASS,Supplies & Services,Provisions,RADNOR HILLS MINERAL WATER COMPANY LTD,06/02/2015,100.56
Customer Services,Catering,CASS,Supplies & Services,Provisions,RADNOR HILLS MINERAL WATER COMPANY LTD,06/02/2015,134.08
Customer Services,Catering,CASS,Supplies & Services,Provisions,ROWLANDS & COMPANY,06/02/2015,132.04
Customer Services,Catering,CASS,Supplies & Services,Provisions,ROWLANDS & COMPANY,06/02/2015,159.64
Customer Services,Catering,CASS,Supplies & Services,Provisions,John Sheppard Catering Butchers,06/02/2015,123.96
Customer Services,Catering,CASS,Supplies & Services,Provisions,DO NOT USE FOR ORDERING- DIRECT BILLING ONLY,06/02/2015,420.60
Customer Services,Catering,CASS,Supplies & Services,Provisions,DO NOT USE FOR ORDERING- DIRECT BILLING ONLY,06/02/2015,304.88
Customer Services,Catering,CASS,Supplies & Services,Provisions,DO NOT USE FOR ORDERING- DIRECT BILLING ONLY,06/02/2015,308.94
Customer Services,Catering,CASS,Supplies & Services,Provisions,DO NOT USE FOR ORDERING- DIRECT BILLING ONLY,06/02/2015,160.08
Customer Services,Catering,CASS,Supplies & Services,Provisions,DO NOT USE FOR ORDERING- DIRECT BILLING ONLY,06/02/2015,107.53
Customer Services,Catering,CASS,Supplies & Services,Provisions,DO NOT USE FOR ORDERING- DIRECT BILLING ONLY,06/02/2015,146.35
Customer Services,Catering,CASS,Supplies & Services,Provisions,DO NOT USE FOR ORDERING- DIRECT BILLING ONLY,06/02/2015,212.20
Customer Services,Catering,CASS,Supplies & Services,Provisions,DO NOT USE FOR ORDERING- DIRECT BILLING ONLY,06/02/2015,168.77
Customer Services,Catering,CASS,Supplies & Services,Provisions,DO NOT USE FOR ORDERING- DIRECT BILLING ONLY,06/02/2015,147.43
Customer Services,Catering,CASS,Supplies & Services,Provisions,DO NOT USE FOR ORDERING- DIRECT BILLING ONLY,06/02/2015,613.32
Customer Services,Catering,CASS,Supplies & Services,Provisions,DO NOT USE FOR ORDERING- DIRECT BILLING ONLY,06/02/2015,137.66
Customer Services,Catering,CASS,Supplies & Services,Provisions,DO NOT USE FOR ORDERING- DIRECT BILLING ONLY,06/02/2015,325.97
Customer Services,Catering,CASS,Supplies & Services,Provisions,DO NOT USE FOR ORDERING- DIRECT BILLING ONLY,06/02/2015,290.94
Customer Services,Catering,CASS,Supplies & Services,Provisions,DO NOT USE FOR ORDERING- DIRECT BILLING ONLY,06/02/2015,128.96
Customer Services,Catering,CASS,Supplies & Services,Provisions,DO NOT USE FOR ORDERING- DIRECT BILLING ONLY,06/02/2015,221.81
Customer Services,Catering,CASS,Supplies & Services,Provisions,DO NOT USE FOR ORDERING- DIRECT BILLING ONLY,06/02/2015,329.95
Customer Services,Catering,CASS,Supplies & Services,Provisions,Willoughby (731) Ltd T/A The Fabulous Bakin' Boys,03/02/2015,166.88
Customer Services,Catering,CASS,Supplies & Services,Provisions,RADNOR HILLS MINERAL WATER COMPANY LTD,03/02/2015,233.73
Customer Services,Catering,CASS,Supplies & Services,Provisions,Tasties of Chester Ltd,03/02/2015,255.07
Customer Services,Catering,CASS,Supplies & Services,Provisions,TROPICAL ICE,03/02/2015,325.00
Customer Services,Catering,CASS,Supplies & Services,Provisions,Willoughby (731) Ltd T/A The Fabulous Bakin' Boys,03/02/2015,189.33
Customer Services,Catering,CASS,Supplies & Services,Provisions,Tasties of Chester Ltd,03/02/2015,189.12
Customer Services,Catering,CASS,Supplies & Services,Provisions,TROPICAL ICE,03/02/2015,325.00
Customer Services,Catering,CASS,Supplies & Services,Provisions,RADNOR HILLS MINERAL WATER COMPANY LTD,03/02/2015,100.56
Customer Services,Catering,CASS,Supplies & Services,Provisions,SMART FOOD,03/02/2015,574.60
Customer Services,Catering,CASS,Supplies & Services,Provisions,Willoughby (731) Ltd T/A The Fabulous Bakin' Boys,03/02/2015,187.74
Customer Services,Catering,CASS,Supplies & Services,Provisions,RADNOR HILLS MINERAL WATER COMPANY LTD,03/02/2015,134.08
Customer Services,Catering,CASS,Supplies & Services,Provisions,RADNOR HILLS MINERAL WATER COMPANY LTD,03/02/2015,185.10
Customer Services,Catering,CASS,Supplies & Services,Provisions,RADNOR HILLS MINERAL WATER COMPANY LTD,03/02/2015,150.84
Customer Services,Catering,CASS,Supplies & Services,Provisions,RADNOR HILLS MINERAL WATER COMPANY LTD,03/02/2015,100.56
Customer Services,Catering,CASS,Supplies & Services,Provisions,RADNOR HILLS MINERAL WATER COMPANY LTD,03/02/2015,125.70
Customer Services,Catering,CASS,Supplies & Services,Provisions,RADNOR HILLS MINERAL WATER COMPANY LTD,03/02/2015,125.70
Customer Services,Catering,CASS,Supplies & Services,Provisions,SMART FOOD,03/02/2015,343.20
Customer Services,Catering,CASS,Supplies & Services,Provisions,RADNOR HILLS MINERAL WATER COMPANY LTD,03/02/2015,206.34
Customer Services,Catering,CASS,Supplies & Services,Provisions,SMART FOOD,03/02/2015,574.60
Customer Services,Catering,CASS,Supplies & Services,Provisions,RADNOR HILLS MINERAL WATER COMPANY LTD,09/02/2015,150.84
Customer Services,Catering,CASS,Supplies & Services,Provisions,RADNOR HILLS MINERAL WATER COMPANY LTD,09/02/2015,107.87
Customer Services,Catering,CASS,Supplies & Services,Provisions,RADNOR HILLS MINERAL WATER COMPANY LTD,09/02/2015,107.87
Customer Services,Catering,CASS,Supplies & Services,Provisions,RADNOR HILLS MINERAL WATER COMPANY LTD,09/02/2015,228.12
Customer Services,Catering,CASS,Supplies & Services,Provisions,RADNOR HILLS MINERAL WATER COMPANY LTD,09/02/2015,244.86
Customer Services,Catering,CASS,Supplies & Services,Provisions,RADNOR HILLS MINERAL WATER COMPANY LTD,09/02/2015,100.56
Customer Services,Catering,CASS,Supplies & Services,Provisions,RADNOR HILLS MINERAL WATER COMPANY LTD,09/02/2015,325.91
Customer Services,Catering,CASS,Supplies & Services,Provisions,RADNOR HILLS MINERAL WATER COMPANY LTD,09/02/2015,179.64
Customer Services,Catering,CASS,Supplies & Services,Provisions,RADNOR HILLS MINERAL WATER COMPANY LTD,09/02/2015,125.70
Customer Services,Catering,CASS,Supplies & Services,Provisions,RADNOR HILLS MINERAL WATER COMPANY LTD,09/02/2015,117.24
Customer Services,Catering,CASS,Supplies & Services,Provisions,RADNOR HILLS MINERAL WATER COMPANY LTD,09/02/2015,157.50
Customer Services,Catering,CASS,Supplies & Services,Provisions,TROPICAL ICE,24/02/2015,220.00
Customer Services,Catering,CASS,Supplies & Services,Provisions,Tasties of Chester Ltd,24/02/2015,367.57
Customer Services,Catering,CASS,Supplies & Services,Provisions,Tasties of Chester Ltd,24/02/2015,200.00
Customer Services,Catering,CASS,Supplies & Services,Provisions,RADNOR HILLS MINERAL WATER COMPANY LTD,24/02/2015,186.41
Customer Services,Catering,CASS,Supplies & Services,Provisions,Tasties of Chester Ltd,24/02/2015,379.67
Customer Services,Catering,CASS,Supplies & Services,Provisions,On A Roll,24/02/2015,339.80
Customer Services,Catering,CASS,Supplies & Services,Provisions,On A Roll,26/02/2015,156.04
Customer Services,Catering,CASS,Supplies & Services,Provisions,RADNOR HILLS MINERAL WATER COMPANY LTD,26/02/2015,236.04
Customer Services,Catering,CASS,Supplies & Services,Provisions,RADNOR HILLS MINERAL WATER COMPANY LTD,26/02/2015,120.75
Customer Services,Catering,CASS,Supplies & Services,Provisions,On A Roll,26/02/2015,285.00
Customer Services,Catering,CASS,Supplies & Services,Provisions,On A Roll,26/02/2015,200.29
Customer Services,Catering,CASS,Supplies & Services,Provisions,Willoughby (731) Ltd T/A The Fabulous Bakin' Boys,27/02/2015,156.45
Customer Services,Catering,CASS,Supplies & Services,Provisions,Willoughby (731) Ltd T/A The Fabulous Bakin' Boys,27/02/2015,281.18
Customer Services,Catering,CASX,Supplies & Services,Provisions,DO NOT USE FOR ORDERING- DIRECT BILLING ONLY,27/02/2015,164.12
Customer Services,Catering,CASX,Supplies & Services,Provisions,DO NOT USE FOR ORDERING- DIRECT BILLING ONLY,27/02/2015,141.17
Customer Services,Catering,CASX,Supplies & Services,Provisions,DO NOT USE FOR ORDERING- DIRECT BILLING ONLY,27/02/2015,184.00
Customer Services,Catering,CASX,Supplies & Services,Provisions,DO NOT USE FOR ORDERING- DIRECT BILLING ONLY,27/02/2015,261.92
Customer Services,Catering,CASX,Supplies & Services,Provisions,DO NOT USE FOR ORDERING- DIRECT BILLING ONLY,16/02/2015,115.16
Customer Services,Catering,CASX,Supplies & Services,Provisions,DO NOT USE FOR ORDERING- DIRECT BILLING ONLY,16/02/2015,109.27
Customer Services,Catering,CASX,Supplies & Services,Provisions,DO NOT USE FOR ORDERING- DIRECT BILLING ONLY,06/02/2015,118.82
Customer Services,Catering,CASX,Supplies & Services,Provisions,DO NOT USE FOR ORDERING- DIRECT BILLING ONLY,06/02/2015,102.18
Customer Services,Catering,CASX,Supplies & Services,Provisions,DO NOT USE FOR ORDERING- DIRECT BILLING ONLY,06/02/2015,232.38
Customer Services,Catering,CASX,Supplies & Services,Provisions,SMART FOOD,03/02/2015,229.20
Customer Services,Catering,CASX,Supplies & Services,Provisions,SMART FOOD,26/02/2015,229.20
Customer Services,Catering,COMM,Supplies & Services,Holidays & Outings,Vegware,03/02/2015,121.44
Customer Services,Catering,COMM,Supplies & Services,Holidays & Outings,Vegware,03/02/2015,152.94
Customer Services,Catering,COMM,Supplies & Services,Provisions,DO NOT USE FOR ORDERING- DIRECT BILLING ONLY,27/02/2015,127.35
Customer Services,Catering,COMM,Supplies & Services,Provisions,DO NOT USE FOR ORDERING- DIRECT BILLING ONLY,27/02/2015,200.31
Customer Services,Catering,COMM,Supplies & Services,Provisions,DO NOT USE FOR ORDERING- DIRECT BILLING ONLY,27/02/2015,114.53
Customer Services,Catering,COMM,Supplies & Services,Provisions,DO NOT USE FOR ORDERING- DIRECT BILLING ONLY,27/02/2015,166.07
Customer Services,Catering,COMM,Supplies & Services,Provisions,DO NOT USE FOR ORDERING- DIRECT BILLING ONLY,16/02/2015,118.66
Customer Services,Catering,COMM,Supplies & Services,Provisions,DO NOT USE FOR ORDERING- DIRECT BILLING ONLY,16/02/2015,169.02
Customer Services,Catering,COMM,Supplies & Services,Provisions,Brambles Foods Ltd,20/02/2015,458.93
Customer Services,Catering,COMM,Supplies & Services,Provisions,Brambles Foods Ltd,20/02/2015,407.17
Customer Services,Catering,COMM,Supplies & Services,Provisions,Brambles Foods Ltd,20/02/2015,459.56
Customer Services,Catering,COMM,Supplies & Services,Provisions,Brambles Foods Ltd,20/02/2015,459.56
Customer Services,Catering,COMM,Supplies & Services,Provisions,DO NOT USE FOR ORDERING- DIRECT BILLING ONLY,20/02/2015,118.34
Customer Services,Catering,COMM,Supplies & Services,Provisions,DO NOT USE FOR ORDERING- DIRECT BILLING ONLY,20/02/2015,182.78
Customer Services,Catering,COMM,Supplies & Services,Provisions,DO NOT USE FOR ORDERING- DIRECT BILLING ONLY,20/02/2015,217.62
Customer Services,Catering,COMM,Supplies & Services,Provisions,DO NOT USE FOR ORDERING- DIRECT BILLING ONLY,20/02/2015,164.69
Customer Services,Catering,COMM,Supplies & Services,Provisions,DO NOT USE FOR ORDERING- DIRECT BILLING ONLY,20/02/2015,170.23
Customer Services,Catering,COMM,Supplies & Services,Provisions,John Sheppard Catering Butchers,12/02/2015,129.16
Customer Services,Catering,COMM,Supplies & Services,Provisions,John Sheppard Catering Butchers,12/02/2015,106.82
Customer Services,Catering,COMM,Supplies & Services,Provisions,DO NOT USE FOR ORDERING- DIRECT BILLING ONLY,06/02/2015,125.45
Customer Services,Catering,COMM,Supplies & Services,Provisions,DO NOT USE FOR ORDERING- DIRECT BILLING ONLY,06/02/2015,178.17
Customer Services,Catering,COMM,Supplies & Services,Provisions,DO NOT USE FOR ORDERING- DIRECT BILLING ONLY,06/02/2015,195.02
Customer Services,Catering,COMM,Supplies & Services,Provisions,DO NOT USE FOR ORDERING- DIRECT BILLING ONLY,06/02/2015,203.93
Customer Services,Catering,COMM,Supplies & Services,Provisions,Brambles Foods Ltd,03/02/2015,456.57
Customer Services,Catering,COMM,Supplies & Services,Provisions,Brambles Foods Ltd,03/02/2015,112.44
Customer Services,Catering,COMM,Supplies & Services,Provisions,Brambles Foods Ltd,03/02/2015,459.56
Customer Services,Catering,COMM,Supplies & Services,Provisions,Aroma Tea & Coffee Merchants,03/02/2015,143.53
Customer Services,Catering,LCAP,Supplies & Services,Provisions,TROPICAL ICE,27/02/2015,215.00
Customer Services,Catering,LCAP,Supplies & Services,Provisions,Aroma Tea & Coffee Merchants,20/02/2015,122.72
Customer Services,Catering,LCAP,Supplies & Services,Holidays & Outings,TROPICAL ICE,20/02/2015,151.00
Customer Services,Catering,LCAP,Supplies & Services,Provisions,DO NOT USE FOR ORDERING- DIRECT BILLING ONLY,20/02/2015,236.39
Customer Services,Catering,LCAP,Supplies & Services,Other Services,ERIC NEVILLE CATERING SUPPLIES LTD,11/02/2015,"1,995.00"
Customer Services,Catering,LCAP,Supplies & Services,Other Services,ERIC NEVILLE CATERING SUPPLIES LTD,11/02/2015,"14,809.00"
Customer Services,Catering,LCAP,Supplies & Services,Provisions,TROPICAL ICE,03/02/2015,240.00
Customer Services,Catering,LCAP,Supplies & Services,Provisions,TROPICAL ICE,03/02/2015,336.00
Customer Services,Catering,LCAP,Supplies & Services,Provisions,TROPICAL ICE,23/02/2015,325.00
Customer Services,Catering,LEIC,Supplies & Services,Provisions,DO NOT USE FOR ORDERING- DIRECT BILLING ONLY,27/02/2015,354.17
Customer Services,Catering,LEIC,Supplies & Services,Provisions,DO NOT USE FOR ORDERING- DIRECT BILLING ONLY,27/02/2015,316.54
Customer Services,Catering,LEIC,Supplies & Services,Provisions,DO NOT USE FOR ORDERING- DIRECT BILLING ONLY,16/02/2015,309.13
Customer Services,Catering,LEIC,Supplies & Services,Provisions,DO NOT USE FOR ORDERING- DIRECT BILLING ONLY,16/02/2015,407.90
Customer Services,Catering,LEIC,Supplies & Services,Provisions,Delice de France,20/02/2015,332.79
Customer Services,Catering,LEIC,Supplies & Services,Provisions,TROPICAL ICE,20/02/2015,"1,115.00"
Customer Services,Catering,LEIC,Supplies & Services,Provisions,DO NOT USE FOR ORDERING- DIRECT BILLING ONLY,20/02/2015,819.36
Customer Services,Catering,LEIC,Supplies & Services,Provisions,DO NOT USE FOR ORDERING- DIRECT BILLING ONLY,20/02/2015,298.22
Customer Services,Catering,LEIC,Supplies & Services,Provisions,Willoughby (731) Ltd T/A The Fabulous Bakin' Boys,19/02/2015,222.53
Customer Services,Catering,LEIC,Supplies & Services,Provisions,P & H SNACKS DIRECT LTD,19/02/2015,269.94
Customer Services,Catering,LEIC,Supplies & Services,Provisions,DO NOT USE FOR ORDERING- DIRECT BILLING ONLY,06/02/2015,339.15
Customer Services,Catering,LEIC,Supplies & Services,Provisions,DO NOT USE FOR ORDERING- DIRECT BILLING ONLY,06/02/2015,248.13
Customer Services,Catering,LEIC,Supplies & Services,Provisions,TROPICAL ICE,03/02/2015,"1,180.00"
Customer Services,Catering,LEIC,Supplies & Services,Provisions,TROPICAL ICE,18/02/2015,"1,423.40"
Customer Services,Customer & Registrars Services,LMAA,Employees,Staff Training,West Midlands Employers,25/02/2015,165.00
Customer Services,Customer & Registrars Services,LMAA,Supplies & Services,Protective Clothing,IMAGE@WORK LTD,25/02/2015,888.33
Customer Services,Customer & Registrars Services,LMAA,Supplies & Services,Stationery,SPECIALIST COMPUTERS CENTRES PLC,25/02/2015,251.44
Customer Services,Customer & Registrars Services,LMAD,Employees,LGSS Lump Sum Recharge,TELFORD & WREKIN CVS,26/02/2015,"2,963.50"
Customer Services,Customer & Registrars Services,LMAG,Supplies & Services,Protective Clothing,SBA LTD,12/02/2015,167.50
Customer Services,Customer & Registrars Services,LSAA,Premises-Related Expenditure,Grounds Maintenance -,Limetree Landscape Services and Nurseries Limited,24/02/2015,364.00
Customer Services,Customer & Registrars Services,LSAA,Supplies & Services,Postages,NEOPOST FINANCE LTD ,19/02/2015,129.74
Customer Services,Customer & Registrars Services,LSAA,Supplies & Services,Subscriptions,THE OFFICE OF THE IMMIGRATION SERVICES COMMISSIONER,24/02/2015,575.00
Customer Services,Customer & Registrars Services,LSAB,Premises-Related Expenditure,Grounds Maintenance - Cemeteries,P & W MAINTENANCE CONTRACTING LTD,11/02/2015,498.12
Customer Services,Customer & Registrars Services,LSAB,Premises-Related Expenditure,Grounds Maintenance - Cemeteries,P & W MAINTENANCE CONTRACTING LTD,11/02/2015,213.05
Customer Services,Customer & Registrars Services,LSAB,Premises-Related Expenditure,Grounds Maintenance - Cemeteries,P & W MAINTENANCE CONTRACTING LTD,11/02/2015,"4,158.02"
Customer Services,Customer & Registrars Services,LSAB,Premises-Related Expenditure,Grounds Maintenance ,Limetree Landscape Services and Nurseries Limited,24/02/2015,175.00
Customer Services,Customer & Registrars Services,LSAB,Supplies & Services,Subscriptions,ICCM,18/02/2015,310.00
Customer Services,Customer & Registrars Services,LSAB,Supplies & Services,Burial Services,L TRANTER & SON,19/02/2015,450.00
Customer Services,Customer & Registrars Services,LSAB,Supplies & Services,Postages,NEOPOST LTD ,04/02/2015,400.00
Customer Services,Facilities Management and Cleaning Services,CFAA,Premises-Related Expenditure,Grounds Maintenance,NOBRIDGE LTD,12/02/2015,"3,351.81"
Customer Services,Facilities Management and Cleaning Services,CFAD,Supplies & Services,Security Services,BUSINESS WATCH GUARDING LIMITED,12/02/2015,"19,078.29"
Customer Services,Facilities Management and Cleaning Services,CFAM,Premises-Related Expenditure,R&M -Building Other,WINDOW & DOOR CONTRACT SERVICES,27/02/2015,194.08
Customer Services,Facilities Management and Cleaning Services,CFAQ,Supplies & Services,Other Services,INTERSERVE (FACILITIES MANAGEMENT) LTD,24/02/2015,"1,278.76"
Customer Services,Facilities Management and Cleaning Services,CFAQ,Supplies & Services,Other Services,INTERSERVE (FACILITIES MANAGEMENT) LTD,24/02/2015,"2,091.70"
Customer Services,Facilities Management and Cleaning Services,CFAS,Employees,Training Expenses,BUSINESS WATCH GUARDING LIMITED,12/02/2015,"1,388.56"
Customer Services,Facilities Management and Cleaning Services,CFAS,Employees,Course Fees,APSE (MANCHESTER),04/02/2015,338.00
Customer Services,Facilities Management and Cleaning Services,CFAV,Capital Financing Costs,Unitary Charge,PYRAMID SCHOOLS (HADLEY) LTD,26/02/2015,"828,045.69"
Customer Services,Facilities Management and Cleaning Services,CFAV,Premises-Related Expenditure,Vandal Damage,PYRAMID SCHOOLS (HADLEY) LTD,24/02/2015,110.86
Customer Services,Facilities Management and Cleaning Services,CFAY,Premises-Related Expenditure,R&M -Buildings DLO Charge,WENLOCK HEALTH & SAFETY LTD,18/02/2015,122.56
Customer Services,Facilities Management and Cleaning Services,CFAY,Premises-Related Expenditure,Specific Works,PORTABLE APPLIANCE SAFETY SERVICES LTD,09/02/2015,840.00
Customer Services,Facilities Management and Cleaning Services,CFAY,Premises-Related Expenditure,R&M -Buildings DLO Charge,AY FABRICATIONS LTD,24/02/2015,330.00
Customer Services,Facilities Management and Cleaning Services,CFAY,Premises-Related Expenditure,R&M -Buildings DLO Charge,AY FABRICATIONS LTD,24/02/2015,180.00
Customer Services,Facilities Management and Cleaning Services,CFAY,Premises-Related Expenditure,R&M -Buildings DLO Charge,SCREWFIX DIRECT T/A TRADE UK,24/02/2015,102.06
Customer Services,Facilities Management and Cleaning Services,CFAY,Premises-Related Expenditure,R&M -Buildings DLO Charge,SCREWFIX DIRECT T/A TRADE UK,24/02/2015,108.30
Customer Services,Facilities Management and Cleaning Services,CFAY,Premises-Related Expenditure,R&M -Buildings DLO Charge,MESSRS FARR & HARRIS LTD,12/02/2015,115.06
Customer Services,Facilities Management and Cleaning Services,CFAY,Supplies & Services,Security Services,BUSINESS WATCH GUARDING LIMITED,16/02/2015,315.49
Customer Services,Facilities Management and Cleaning Services,CFAY,Supplies & Services,Equipment - Purchase,FCC Recycling (UK) Ltd (39521486),16/02/2015,119.92
Customer Services,Facilities Management and Cleaning Services,CFAY,Supplies & Services,Stationery,BembroseBooth Paragon,25/02/2015,340.90
Customer Services,Facilities Management and Cleaning Services,CFAY,Supplies & Services,Stationery,BembroseBooth Paragon,25/02/2015,340.90
Customer Services,Facilities Management and Cleaning Services,CLCM,Premises-Related Expenditure,Clean Mats & Toilet Requisites,Border Janitorial Supplies Limited,19/02/2015,171.68
Customer Services,Facilities Management and Cleaning Services,CLCM,Premises-Related Expenditure,Clean Mats & Toilet Requisites,Border Janitorial Supplies Limited,19/02/2015,170.18
Customer Services,Facilities Management and Cleaning Services,CLCM,Premises-Related Expenditure,Clean Mats & Toilet Requisites,Border Janitorial Supplies Limited,19/02/2015,139.14
Customer Services,Facilities Management and Cleaning Services,CLCM,Premises-Related Expenditure,Clean Mats & Toilet Requisites,Border Janitorial Supplies Limited,19/02/2015,189.14
Customer Services,Facilities Management and Cleaning Services,CLCM,Premises-Related Expenditure,Clean Mats & Toilet Requisites,Border Janitorial Supplies Limited,19/02/2015,110.64
Customer Services,Facilities Management and Cleaning Services,CLCM,Premises-Related Expenditure,Clean Mats & Toilet Requisites,Border Janitorial Supplies Limited,19/02/2015,112.87
Customer Services,Facilities Management and Cleaning Services,CLCM,Premises-Related Expenditure,R&M -Buildings DLO Charge,Jade Security Service Ltd,19/02/2015,375.20
Customer Services,Facilities Management and Cleaning Services,CLCM,Premises-Related Expenditure,Clean Mats & Toilet Requisites,Border Janitorial Supplies Limited,19/02/2015,132.85
Customer Services,Facilities Management and Cleaning Services,CLCM,Premises-Related Expenditure,Clean Mats & Toilet Requisites,Border Janitorial Supplies Limited,19/02/2015,139.91
Customer Services,Facilities Management and Cleaning Services,CLCM,Premises-Related Expenditure,Clean Mats & Toilet Requisites,Border Janitorial Supplies Limited,19/02/2015,112.87
Customer Services,Facilities Management and Cleaning Services,CLCM,Premises-Related Expenditure,Clean Mats & Toilet Requisites,Border Janitorial Supplies Limited,25/02/2015,118.03
Customer Services,Facilities Management and Cleaning Services,CLSP,Premises-Related Expenditure,Contract Cleaning,CLEANIT CLEANING SERVICES,19/02/2015,157.50
Customer Services,Facilities Management and Cleaning Services,CLSP,Premises-Related Expenditure,Clean Mats & Toilet Requisites,Border Janitorial Supplies Limited,19/02/2015,149.26
Customer Services,Facilities Management and Cleaning Services,CLSP,Premises-Related Expenditure,Clean Mats & Toilet Requisites,Border Janitorial Supplies Limited,19/02/2015,218.54
Customer Services,Facilities Management and Cleaning Services,CLSP,Premises-Related Expenditure,Clean Mats & Toilet Requisites,Border Janitorial Supplies Limited,19/02/2015,108.90
Customer Services,Facilities Management and Cleaning Services,CLSP,Premises-Related Expenditure,Clean Mats & Toilet Requisites,Border Janitorial Supplies Limited,19/02/2015,109.32
Customer Services,Facilities Management and Cleaning Services,CLSP,Premises-Related Expenditure,Clean Mats & Toilet Requisites,Border Janitorial Supplies Limited,19/02/2015,124.72
Customer Services,Facilities Management and Cleaning Services,CLSP,Premises-Related Expenditure,Clean Mats & Toilet Requisites,Border Janitorial Supplies Limited,19/02/2015,123.27
Customer Services,Facilities Management and Cleaning Services,CLSP,Premises-Related Expenditure,Clean Mats & Toilet Requisites,Border Janitorial Supplies Limited,19/02/2015,182.82
Customer Services,Facilities Management and Cleaning Services,CLSP,Premises-Related Expenditure,Clean Mats & Toilet Requisites,Border Janitorial Supplies Limited,19/02/2015,102.22
Customer Services,Facilities Management and Cleaning Services,CLSP,Premises-Related Expenditure,Clean Mats & Toilet Requisites,Border Janitorial Supplies Limited,19/02/2015,246.16
Customer Services,Facilities Management and Cleaning Services,CLSP,Premises-Related Expenditure,Clean Mats & Toilet Requisites,Border Janitorial Supplies Limited,25/02/2015,315.36
Customer Services,Facilities Management and Cleaning Services,CLSP,Premises-Related Expenditure,Clean Mats & Toilet Requisites,Border Janitorial Supplies Limited,25/02/2015,216.16
Customer Services,Facilities Management and Cleaning Services,CLSP,Premises-Related Expenditure,Clean Mats & Toilet Requisites,Border Janitorial Supplies Limited,25/02/2015,177.85
Customer Services,Facilities Management and Cleaning Services,CLSP,Premises-Related Expenditure,Clean Mats & Toilet Requisites,Border Janitorial Supplies Limited,25/02/2015,162.18
Customer Services,Facilities Management and Cleaning Services,CLSP,Premises-Related Expenditure,Clean Mats & Toilet Requisites,Border Janitorial Supplies Limited,27/02/2015,137.62
Customer Services,Facilities Management and Cleaning Services,CLSP,Supplies & Services,Equipment - Repair,THE CLEAN MACHINE DIRECT LTD,19/02/2015,143.78
Customer Services,Facilities Management and Cleaning Services,CLSP,Supplies & Services,Equipment - Repair,THE CLEAN MACHINE DIRECT LTD,19/02/2015,107.38
Customer Services,Facilities Management and Cleaning Services,CLSS,Premises-Related Expenditure,Clean Mats & Toilet Requisites,Border Janitorial Supplies Limited,19/02/2015,200.71
Customer Services,Facilities Management and Cleaning Services,CLSS,Premises-Related Expenditure,Clean Mats & Toilet Requisites,Border Janitorial Supplies Limited,25/02/2015,251.78
Customer Services,Facilities Management and Cleaning Services,CLSS,Premises-Related Expenditure,Clean Mats & Toilet Requisites,Border Janitorial Supplies Limited,25/02/2015,155.92
Customer Services,Facilities Management and Cleaning Services,CLSS,Premises-Related Expenditure,Clean Mats & Toilet Requisites,Border Janitorial Supplies Limited,27/02/2015,249.00
Customer Services,Facilities Management and Cleaning Services,CLSX,Premises-Related Expenditure,Clean Mats & Toilet Requisites,Border Janitorial Supplies Limited,25/02/2015,220.10
Customer Services,ICT,CBAF,Supplies & Services,Telecomms,Airband Community Internet,20/02/2015,295.00
Customer Services,ICT,CBAF,Supplies & Services,Telecomms,Airband Community Internet,04/02/2015,"1,186.00"
Customer Services,ICT,CBAF,Supplies & Services,Telecomms,Airband Community Internet,23/02/2015,295.00
Customer Services,ICT,CBAF,Supplies & Services,Telecomms,Airband Community Internet,23/02/2015,295.00
Customer Services,ICT,CBAF,Supplies & Services,Telecomms,Airband Community Internet,23/02/2015,950.00
Customer Services,ICT,CBAG,Supplies & Services,Equipment - Purchase,CCS MEDIA LIMITED,16/02/2015,"2,488.00"
Customer Services,ICT,CBAG,Supplies & Services,Mobile Phones,EE LTD,19/02/2015,141.19
Customer Services,ICT,CBAG,Supplies & Services,Mobile Phones,EE LTD,19/02/2015,"5,583.49"
Customer Services,ICT,CBAG,Supplies & Services,Mobile Phones,EE LTD,19/02/2015,"15,664.95"
Customer Services,ICT,CBAG,Supplies & Services,Mobile Phones,EE LTD,19/02/2015,"1,478.52"
Customer Services,ICT,CBAG,Supplies & Services,Mobile Phones,EE LTD,19/02/2015,952.91
Customer Services,ICT,CBAG,Supplies & Services,Mobile Phones,EE LTD,19/02/2015,"1,425.04"
Customer Services,ICT,CBAG,Supplies & Services,Mobile Phones,EE LTD,19/02/2015,"1,168.60"
Customer Services,ICT,CBAG,Supplies & Services,Mobile Phones,EE LTD,19/02/2015,"2,216.50"
Customer Services,ICT,CBAG,Supplies & Services,Telephones,BRITISH TELECOMMUNICATIONS PLC,19/02/2015,"3,684.72"
Customer Services,ICT,CBAG,Supplies & Services,Telephones,VIRGIN MEDIA BUSINESS,19/02/2015,"8,958.33"
Customer Services,ICT,CBAG,Supplies & Services,Computer Hardware (Maint),CIVICA UK LIMITED,20/02/2015,539.00
Customer Services,ICT,CBAG,Supplies & Services,Equipment - Purchase,EUROPEAN ELECTRONIQUE LTD,05/02/2015,143.48
Customer Services,ICT,CBAG,Supplies & Services,Equipment - Purchase,CCS MEDIA LIMITED,03/02/2015,"3,056.00"
Customer Services,ICT,CBAG,Supplies & Services,Equipment - Purchase,CCS MEDIA LIMITED,24/02/2015,300.00
Customer Services,ICT,CBAH,Premises-Related Expenditure,R&M -Building Other,CCS MEDIA LIMITED,19/02/2015,650.00
Customer Services,ICT,CBAH,Premises-Related Expenditure,R&M -Building Other,Wrockwardine Wood Arts Academy,05/02/2015,"2,000.00"
Customer Services,ICT,CBAH,Supplies & Services,Comp Software (Purch / Hire),Bromcom Computers Plc,20/02/2015,"-7,405.20"
Customer Services,ICT,CBAH,Supplies & Services,Telecomms,Airband Community Internet,20/02/2015,650.00
Customer Services,ICT,CBAH,Supplies & Services,Comp Software (Purch / Hire),Groupcall,02/02/2015,"4,320.00"
Customer Services,ICT,CBAJ,Employees,Recruitment Advertising,TOTALJOBS GROUP,04/02/2015,400.00
Customer Services,ICT,CBAJ,Supplies & Services,Mobile Phones,ORANGE PCS LTD,26/02/2015,-248.00
Customer Services,ICT,CBAJ,Supplies & Services,Mobile Phones,ORANGE PCS LTD,16/02/2015,-248.00
Customer Services,ICT,CBAJ,Supplies & Services,External Computer Use,NTA MONITOR LTD,16/02/2015,"13,800.00"
Customer Services,ICT,CBAJ,Supplies & Services,Telecomms,Airband Community Internet,20/02/2015,250.00
Customer Services,ICT,CBAJ,Supplies & Services,Mobile Phones,ORANGE PCS LTD,19/02/2015,-248.00
Customer Services,ICT,CBAJ,Supplies & Services,Mobile Phones,ORANGE PCS LTD,19/02/2015,-155.00
Customer Services,ICT,CBAJ,Supplies & Services,Equipment - Purchase,DELL CORPORATION,13/02/2015,"21,349.05"
Customer Services,ICT,CBAJ,Supplies & Services,Telephones,SPECIALIST COMPUTERS CENTRES PLC,05/02/2015,368.13
Customer Services,ICT,CBAJ,Supplies & Services,Comp Hardware (Purch / Hire),EUROPEAN ELECTRONIQUE LTD,05/02/2015,"9,614.50"
Customer Services,ICT,CBAJ,Supplies & Services,Equipment - Purchase,DELL CORPORATION,03/02/2015,499.96
Customer Services,ICT,CBAJ,Supplies & Services,Telecomms,VODAFONE LTD (70649252),04/02/2015,"3,361.09"
Customer Services,ICT,CBAJ,Supplies & Services,Mobile Phones,ORANGE PCS LTD,10/02/2015,"-4,320.00"
Customer Services,ICT,CBAJ,Supplies & Services,Mobile Phones,EE LTD,10/02/2015,"4,320.00"
Customer Services,ICT,CBAJ,Supplies & Services,Equipment - Purchase,SPECIALIST COMPUTERS CENTRES PLC,04/02/2015,185.00
Customer Services,ICT,CBAJ,Supplies & Services,Telephones,Digital Exchange Products Ltd,27/02/2015,425.00
Customer Services,ICT,CBAJ,Supplies & Services,Telephones,Digital Exchange Products Ltd,27/02/2015,325.00
Customer Services,ICT,CBAL,Supplies & Services,Equipment - Hire,CSI Leasing UK,16/02/2015,336.46
Customer Services,ICT,CBAL,Supplies & Services,Equipment - Hire,CSI Leasing UK,16/02/2015,514.14
Customer Services,ICT,CBAL,Supplies & Services,Equipment - Hire,CSI Leasing UK,16/02/2015,838.61
Customer Services,ICT,CBAL,Supplies & Services,Equipment - Hire,CSI Leasing UK,16/02/2015,496.21
Customer Services,ICT,CBAL,Supplies & Services,Equipment - Hire,CSI Leasing UK,16/02/2015,545.79
Customer Services,ICT,CBAL,Supplies & Services,Equipment - Hire,CSI Leasing UK,16/02/2015,649.53
Customer Services,ICT,CBAL,Supplies & Services,Equipment - Hire,CSI Leasing UK,16/02/2015,620.33
Customer Services,ICT,CBAL,Supplies & Services,Stationery,PREMIER PAPER GROUP LTD,19/02/2015,199.00
Customer Services,ICT,CBAL,Supplies & Services,Stationery,PREMIER PAPER GROUP LTD,11/02/2015,497.50
Customer Services,ICT,CBAL,Supplies & Services,Stationery,PREMIER PAPER GROUP LTD,11/02/2015,248.75
Customer Services,ICT,CBAL,Supplies & Services,Equipment - Hire,CSI Leasing UK,12/02/2015,525.94
Customer Services,ICT,CBAL,Supplies & Services,Equipment - Hire,CSI Leasing UK,12/02/2015,"18,638.52"
Customer Services,ICT,CBAL,Supplies & Services,Equipment - Hire,CSI Leasing UK,12/02/2015,496.21
Customer Services,ICT,CBAL,Supplies & Services,Printing - Other,SPECIALIST COMPUTERS CENTRES PLC,25/02/2015,"17,974.71"
Customer Services,ICT,CBAL,Supplies & Services,Equipment - Hire,CSI Leasing UK,12/02/2015,356.71
Customer Services,ICT,CBAL,Supplies & Services,Equipment - Hire,CSI Leasing UK,12/02/2015,545.79
Customer Services,ICT,CBAL,Supplies & Services,Equipment - Hire,CSI Leasing UK,12/02/2015,545.79
Customer Services,ICT,CBAL,Supplies & Services,Equipment - Hire,CSI Leasing UK,12/02/2015,545.79
Customer Services,ICT,CBAL,Supplies & Services,Equipment - Hire,CSI Leasing UK,12/02/2015,356.71
Customer Services,ICT,CBAL,Supplies & Services,Equipment - Hire,CSI Leasing UK,12/02/2015,545.79
Customer Services,ICT,CBAL,Supplies & Services,Equipment - Hire,CSI Leasing UK,12/02/2015,356.71
Customer Services,ICT,CBAL,Supplies & Services,Equipment - Hire,CSI Leasing UK,12/02/2015,545.79
Customer Services,ICT,CBAL,Supplies & Services,Equipment - Hire,CSI Leasing UK,12/02/2015,356.71
Customer Services,ICT,CBAL,Supplies & Services,Equipment - Hire,CSI Leasing UK,12/02/2015,261.06
Customer Services,ICT,WCAG,Capital Expenditure,Payments to Contractor,SPECIALIST COMPUTERS CENTRES PLC,16/02/2015,"13,650.00"
Customer Services,ICT,WCAG,Capital Expenditure,Payments to Contractor,OPTEVIA,20/02/2015,"1,310.00"
Customer Services,ICT,WCAG,Capital Expenditure,Payments to Contractor,Oaresome LTD,09/02/2015,"4,830.00"
Customer Services,ICT,WCAG,Capital Expenditure,Payments to Contractor,OPTEVIA,04/02/2015,810.00
Customer Services,ICT,WCAG,Capital Expenditure,Marketing / Advertising,THE MIDLAND NEWS ASSOCIATION LTD,02/02/2015,180.00
Customer Services,ICT,WCAG,Capital Expenditure,Marketing / Advertising,THE MIDLAND NEWS ASSOCIATION LTD,02/02/2015,360.00
Customer Services,ICT,WCAG,Capital Expenditure,Computer Hardware,DELL CORPORATION,09/02/2015,"21,349.05"
Customer Services,ICT,WCAG,Capital Expenditure,Computer Hardware,DELL CORPORATION,09/02/2015,499.96
Customer Services,ICT,WCAG,Capital Expenditure,Marketing / Advertising,THE MIDLAND NEWS ASSOCIATION LTD,23/02/2015,417.06
Customer Services,ICT,WCAG,Capital Expenditure,Marketing / Advertising,THE MIDLAND NEWS ASSOCIATION LTD,23/02/2015,291.82
Customer Services,ICT,WCAG,Capital Expenditure,Marketing / Advertising,THE MIDLAND NEWS ASSOCIATION LTD,23/02/2015,163.56
Customer Services,Library Services,LLAA,Employees,Professional Subs,CILIP,11/02/2015,612.00
Customer Services,Library Services,LLAA,Employees,Professional Subs,CILIP,11/02/2015,204.00
Customer Services,Library Services,LLAA,Employees,Professional Subs,CILIP,11/02/2015,204.00
Customer Services,Library Services,LLAA,Employees,Professional Subs,CILIP,11/02/2015,204.00
Customer Services,Library Services,LLAA,Employees,Professional Subs,CILIP,11/02/2015,204.00
Customer Services,Library Services,LLAA,Supplies & Services,Libraries Book Fund,BERTRAMS LIBRARY SERVICES,26/02/2015,794.70
Customer Services,Library Services,LLAA,Supplies & Services,Libraries Book Fund,BERTRAMS LIBRARY SERVICES,26/02/2015,403.32
Customer Services,Library Services,LLAA,Supplies & Services,Libraries Book Fund,BERTRAMS LIBRARY SERVICES,26/02/2015,430.50
Customer Services,Library Services,LLAA,Supplies & Services,Libraries Book Fund,LIBRARY MAGNA BOOKS LIMITED,17/02/2015,249.76
Customer Services,Library Services,LLAA,Supplies & Services,Libraries Book Fund,OCLC (UK) LTD,18/02/2015,"2,441.97"
Customer Services,Library Services,LLAA,Supplies & Services,Libraries Book Fund,ULVERSCROFT LARGE PRINT BOOKS LIMITED,18/02/2015,240.00
Customer Services,Library Services,LLAA,Supplies & Services,Libraries Book Fund,BERTRAMS LIBRARY SERVICES,19/02/2015,419.40
Customer Services,Library Services,LLAA,Supplies & Services,Libraries Book Fund,BERTRAMS LIBRARY SERVICES,19/02/2015,436.23
Customer Services,Library Services,LLAA,Supplies & Services,Libraries Book Fund,BERTRAMS LIBRARY SERVICES,19/02/2015,246.52
Customer Services,Library Services,LLAA,Supplies & Services,Libraries Book Fund,BERTRAMS LIBRARY SERVICES,19/02/2015,569.15
Customer Services,Library Services,LLAA,Supplies & Services,Libraries Book Fund,BERTRAMS LIBRARY SERVICES,19/02/2015,513.72
Customer Services,Library Services,LLAA,Supplies & Services,Libraries Book Fund,BERTRAMS LIBRARY SERVICES,19/02/2015,283.66
Customer Services,Library Services,LLAA,Supplies & Services,Libraries Book Fund,LIBRARY MAGNA BOOKS LIMITED,19/02/2015,249.76
Customer Services,Library Services,LLAA,Supplies & Services,Libraries Book Fund,LIBRARY MAGNA BOOKS LIMITED,19/02/2015,279.28
Customer Services,Library Services,LLAA,Supplies & Services,Libraries Book Fund,BERTRAMS LIBRARY SERVICES,19/02/2015,393.93
Customer Services,Library Services,LLAA,Supplies & Services,Libraries Book Fund,BERTRAMS LIBRARY SERVICES,12/02/2015,283.60
Customer Services,Library Services,LLAA,Supplies & Services,Libraries Book Fund,NIELSEN BOOK SERVICE,12/02/2015,"3,035.00"
Customer Services,Library Services,LLAA,Supplies & Services,Libraries Book Fund,BOOKS ASIA,11/02/2015,268.26
Customer Services,Library Services,LLAA,Supplies & Services,Libraries Book Fund,BOOKS ASIA,11/02/2015,171.59
Customer Services,Library Services,LLAA,Supplies & Services,Libraries Book Fund,BOOKS ASIA,11/02/2015,175.91
Customer Services,Library Services,LLAA,Supplies & Services,Libraries Book Fund,BOOKS ASIA,11/02/2015,290.77
Customer Services,Library Services,LLAA,Supplies & Services,Libraries Book Fund,OAKHILL PUBLISHING LTD,11/02/2015,380.00
Customer Services,Library Services,LLAA,Supplies & Services,Libraries Book Fund,BERTRAMS LIBRARY SERVICES,12/02/2015,641.32
Customer Services,Library Services,LLAA,Supplies & Services,Libraries Book Fund,BERTRAMS LIBRARY SERVICES,12/02/2015,221.56
Customer Services,Library Services,LLAA,Supplies & Services,Libraries Book Fund,BERTRAMS LIBRARY SERVICES,12/02/2015,117.78
Customer Services,Library Services,LLAA,Supplies & Services,Libraries Book Fund,BERTRAMS LIBRARY SERVICES,12/02/2015,231.05
Customer Services,Library Services,LLAA,Supplies & Services,Libraries Book Fund,W F HOWES LTD,12/02/2015,360.00
Customer Services,Library Services,LLAA,Supplies & Services,Libraries Book Fund,BERTRAMS LIBRARY SERVICES,06/02/2015,456.78
Customer Services,Library Services,LLAA,Supplies & Services,Libraries Book Fund,BERTRAMS LIBRARY SERVICES,06/02/2015,460.26
Customer Services,Library Services,LLAA,Supplies & Services,Libraries Book Fund,ULVERSCROFT LARGE PRINT BOOKS LIMITED,06/02/2015,111.68
Customer Services,Library Services,LLAA,Supplies & Services,Libraries Book Fund,ULVERSCROFT LARGE PRINT BOOKS LIMITED,06/02/2015,214.08
Customer Services,Library Services,LLAA,Supplies & Services,Libraries Book Fund,ULVERSCROFT LARGE PRINT BOOKS LIMITED,06/02/2015,118.32
Customer Services,Library Services,LLAA,Supplies & Services,Libraries Book Fund,BERTRAMS LIBRARY SERVICES,06/02/2015,494.22
Customer Services,Library Services,LLAA,Supplies & Services,Libraries Book Fund,BERTRAMS LIBRARY SERVICES,06/02/2015,452.42
Customer Services,Library Services,LLAA,Supplies & Services,Libraries Book Fund,BERTRAMS LIBRARY SERVICES,06/02/2015,703.29
Customer Services,Library Services,LLAA,Supplies & Services,Libraries Book Fund,BERTRAMS LIBRARY SERVICES,06/02/2015,463.81
Customer Services,Library Services,LLAA,Supplies & Services,Libraries Book Fund,BERTRAMS LIBRARY SERVICES,06/02/2015,245.06
Customer Services,Library Services,LLAA,Supplies & Services,Libraries Book Fund,W F HOWES LTD,04/02/2015,213.26
Customer Services,Library Services,LLAA,Supplies & Services,Libraries Book Fund,ULVERSCROFT LARGE PRINT BOOKS LIMITED,25/02/2015,181.20
Customer Services,Library Services,LLAA,Supplies & Services,Libraries Book Fund,BERTRAMS LIBRARY SERVICES,26/02/2015,146.72
Customer Services,Library Services,LLAA,Supplies & Services,Libraries Book Fund,BERTRAMS LIBRARY SERVICES,26/02/2015,111.37
Customer Services,Library Services,LLAA,Supplies & Services,Libraries Book Fund,BERTRAMS LIBRARY SERVICES,26/02/2015,451.16
Customer Services,Library Services,LLAA,Supplies & Services,Libraries Book Fund,BERTRAMS LIBRARY SERVICES,26/02/2015,446.54
Customer Services,Library Services,LLAE,Supplies & Services,Other Expenses,SHROPSHIRE COUNCIL (55636551),12/02/2015,"40,000.00"
Customer Services,Library Services,LLAF,Supplies & Services,Other Expenses,SHROPSHIRE COUNCIL (55636551),11/02/2015,"5,170.00"
Customer Services,Revenues,CBAK,Supplies & Services,Printing - Other,MARKETING AT THE MILL,17/02/2015,866.00
Customer Services,Revenues,CBAK,Supplies & Services,Printing - Other,TUDOR PRINT & SIGNS,19/02/2015,291.00
Customer Services,Revenues,CBAK,Supplies & Services,Stationery,PREMIER PAPER GROUP LTD,19/02/2015,398.00
Customer Services,Revenues,CBAK,Supplies & Services,Printing - Other,MARKETING AT THE MILL,12/02/2015,349.00
Customer Services,Revenues,CBAK,Supplies & Services,Printing - Other,MARKETING AT THE MILL,12/02/2015,403.00
Customer Services,Revenues,CBAK,Supplies & Services,Printing - Other,LEXON,06/02/2015,194.39
Customer Services,Revenues,CBAK,Supplies & Services,Printing - Other,LEXON,06/02/2015,114.13
Customer Services,Revenues,CBAK,Supplies & Services,Paper Supplies,Antalis,06/02/2015,192.64
Customer Services,Revenues,CBAK,Supplies & Services,Printing - Print Room equip lease costs,XEROX (UK) LTD,04/02/2015,"3,993.38"
Customer Services,Revenues,CBAK,Supplies & Services,Printing - Print Room equip lease costs,XEROX FINANCE,04/02/2015,"14,096.47"
Customer Services,Revenues,CBAK,Supplies & Services,Printing - Other,TELFORD REPROGRAPHICS LTD,25/02/2015,295.00
Customer Services,Revenues,CBAK,Supplies & Services,Printing - Other,TUDOR PRINT & SIGNS,03/02/2015,194.00
Customer Services,Revenues,CBAK,Supplies & Services,Paper Supplies,PREMIER PAPER GROUP LTD,24/02/2015,154.80
Customer Services,Revenues,CBAK,Supplies & Services,Paper Supplies,PREMIER PAPER GROUP LTD,24/02/2015,107.28
Customer Services,Revenues,CBAK,Supplies & Services,Printing - Other,LEXON,26/02/2015,194.39
Customer Services,Revenues,CBAK,Supplies & Services,Printing - Other,TUDOR PRINT & SIGNS,03/02/2015,194.00
Customer Services,Revenues,COAB,Supplies & Services,Postages,FREELANCE BUSINESS ASSOCIATES,11/02/2015,300.00
Customer Services,Revenues,COAB,Supplies & Services,Postages,FREELANCE BUSINESS ASSOCIATES,11/02/2015,300.00
Customer Services,Revenues,COAB,Supplies & Services,Postages,ROYAL MAIL GROUP LTD,26/02/2015,157.25
Customer Services,Revenues,COAC,Supplies & Services,Postages,FRANCOTYP-POSTALIA LTD (POSTAGE),18/02/2015,"3,012.00"
Customer Services,Revenues,COAC,Supplies & Services,Postages,FRANCOTYP-POSTALIA LTD (POSTAGE),04/02/2015,"3,012.00"
Customer Services,Revenues,LRTA,Employees,Professional Subscriptions,IRRV,03/02/2015,219.00
Customer Services,Revenues,LRTA,Supplies & Services,Postages,ROYAL MAIL GROUP LTD,06/02/2015,"3,144.41"
Customer Services,Revenues,LRTA,Supplies & Services,Postages,ROYAL MAIL GROUP LTD,19/02/2015,"2,759.46"
Customer Services,Revenues,LRTA,Supplies & Services,Postages,ROYAL MAIL GROUP LTD,11/02/2015,"2,799.20"
Customer Services,Revenues,LRTA,Supplies & Services,Postages,G FORCE EXPRESS PARCELS LTD,10/02/2015,422.28
Customer Services,Revenues,LRTA,Supplies & Services,Postages,ROYAL MAIL GROUP LTD,04/02/2015,"1,950.00"
Customer Services,Revenues,LRTA,Supplies & Services,Postages,ROYAL MAIL GROUP PLC,26/02/2015,"2,513.67"
Customer Services,Revenues,LRTA,Third Party Payments,Other Government - Services,NORTHGATE INFORMATION SOLUTIONS UK LTD,19/02/2015,"6,968.00"
Customer Services,Revenues,LRTA,Third Party Payments,Other Government - Services,NORTHGATE INFORMATION SOLUTIONS UK LTD,25/02/2015,190.48
Customer Services,Revenues,LRTB,Employees,Professional Subscriptions,IRRV,19/02/2015,154.00
Customer Services,Revenues,LRTB,Supplies & Services,Business Rates Software and Service,Inform CPI Ltd,26/02/2015,325.00
Customer Services,Revenues,LRTB,Supplies & Services,Legal Expenses,TELFORD COUNTY COURT ONLY,26/02/2015,180.00
"Development, Business & Employment","AD - Development, Business & Housing",WCAN,Capital Expenditure,Payments to Contractor,JORDAN LEWIS ASSOCIATES LTD,06/02/2015,"1,702.68"
"Development, Business & Employment","AD - Development, Business & Housing",WCAN,Capital Expenditure,Payments to Contractor,PAVE AWAYS LTD,11/02/2015,"20,374.46"
"Development, Business & Employment",Business & Development Planning,AEAB,Supplies & Services,Marketing & Publicity,Blossom Media Communications,18/02/2015,500.00
"Development, Business & Employment",Business & Development Planning,AEAB,Supplies & Services,Marketing & Publicity,West Midland Economic Forum Limited,09/02/2015,755.52
"Development, Business & Employment",Business & Development Planning,AEAB,Supplies & Services,Marketing & Publicity,West Midland Economic Forum Limited,26/02/2015,"1,340.00"
"Development, Business & Employment",Business & Development Planning,AEAB,Supplies & Services,Marketing & Publicity,DESIGN:ONE LTD,26/02/2015,780.00
"Development, Business & Employment",Business & Development Planning,AEAD,Supplies & Services,Marketing & Publicity,PR Matters,09/02/2015,"6,000.00"
"Development, Business & Employment",Business & Development Planning,AEAG,Supplies & Services,Marketing & Publicity,Redacted Personal Information,26/02/2015,150.00
"Development, Business & Employment",Business & Development Planning,AEAG,Supplies & Services,Marketing & Publicity,IRONBRIDGE GORGE MUSEUM TRUST LTD,26/02/2015,200.00
"Development, Business & Employment",Business & Development Planning,AEAG,Supplies & Services,Marketing & Publicity,BRIGHTER BUSINESS SOLUTIONS (UK) LTD,26/02/2015,115.00
"Development, Business & Employment",Business & Development Planning,AEAG,Supplies & Services,Marketing & Publicity,Zen Communications (UK) Ltd,26/02/2015,"1,200.00"
"Development, Business & Employment",Business & Development Planning,AEAJ,Supplies & Services,Other Grants (Expenses),FLOOD DAMAGE - SUNDRY SUPPLIER,23/02/2015,"5,000.00"
"Development, Business & Employment",Business & Development Planning,DDAK,Supplies & Services,Consultants Fees,IRONBRIDGE GORGE MUSEUM TRUST LTD,24/02/2015,"9,326.03"
"Development, Business & Employment",Business & Development Planning,DHAT,Supplies & Services,Subscriptions,Midland Heart,26/02/2015,"2,000.00"
"Development, Business & Employment",Business & Development Planning,DHAT,Supplies & Services,Subscriptions,FERRET INFORMATION SYSTEMS,18/02/2015,513.00
"Development, Business & Employment",Business & Development Planning,DHBB,Supplies & Services,Marketing & Publicity,Carillion Energy Services Ltd,13/02/2015,"1,007.50"
"Development, Business & Employment",Business & Development Planning,DHBB,Supplies & Services,Other Grants (Expenses),Carillion Energy Services Ltd,13/02/2015,"11,550.00"
"Development, Business & Employment",Business & Development Planning,DHBB,Supplies & Services,Other Grants (Expenses),Carillion Energy Services Ltd,05/02/2015,"11,550.00"
"Development, Business & Employment",Business & Development Planning,EWAJ,Supplies & Services,Research Surveys,Peter Brett Associates LLP,18/02/2015,"6,236.60"
"Development, Business & Employment",Business & Development Planning,EWAJ,Supplies & Services,Research Surveys,Peter Brett Associates LLP,18/02/2015,"6,236.60"
"Development, Business & Employment",Business & Development Planning,EWAP,Supplies & Services,Research Surveys,MADELEY PARISH COUNCIL (61481451),06/02/2015,450.00
"Development, Business & Employment",Business & Development Planning,WDAF,Capital Expenditure,Expenditure on loans & other financial assistance,E DAVIES & SON (TF2 8LR),26/02/2015,"10,000.00"
"Development, Business & Employment",Business & Development Planning,WDAF,Capital Expenditure,Expenditure on loans & other financial assistance,THE WREKIN HOUSING TRUST (INVOICES ONLY),26/02/2015,780.00
"Development, Business & Employment",Business & Development Planning,WDAF,Capital Expenditure,Expenditure on loans & other financial assistance,THE WREKIN HOUSING TRUST (INVOICES ONLY),26/02/2015,"2,686.00"
"Development, Business & Employment",Business & Development Planning,WDAF,Capital Expenditure,Expenditure on loans & other financial assistance,STANNAH LIFT SERVICES LTD,26/02/2015,650.00
"Development, Business & Employment",Business & Development Planning,WDAF,Capital Expenditure,Expenditure on loans & other financial assistance,AIDS & ADAPTIONS LTD,26/02/2015,"4,499.94"
"Development, Business & Employment",Business & Development Planning,WDAF,Capital Expenditure,Expenditure on loans & other financial assistance,M J PERRINS,26/02/2015,"2,329.16"
"Development, Business & Employment",Business & Development Planning,WDAF,Capital Expenditure,Expenditure on loans & other financial assistance,TOTAL HYGIENE LIMITED,10/02/2015,"3,161.00"
"Development, Business & Employment",Business & Development Planning,WDAF,Capital Expenditure,Expenditure on loans & other financial assistance,AIDS & ADAPTIONS LTD,10/02/2015,"4,200.84"
"Development, Business & Employment",Business & Development Planning,WDAF,Capital Expenditure,Expenditure on loans & other financial assistance,MARTIN EVANS CONSTRUCTION LTD,10/02/2015,"3,483.90"
"Development, Business & Employment",Business & Development Planning,WDAF,Capital Expenditure,Expenditure on loans & other financial assistance,THREE PINES BUILDING CO LTD,10/02/2015,"8,610.78"
"Development, Business & Employment",Business & Development Planning,WDAF,Capital Expenditure,Expenditure on loans & other financial assistance,STANNAH LIFT SERVICES LTD,10/02/2015,"2,012.00"
"Development, Business & Employment",Business & Development Planning,WDAF,Capital Expenditure,Expenditure on loans & other financial assistance,THE WREKIN HOUSING TRUST (INVOICES ONLY),13/02/2015,"2,245.00"
"Development, Business & Employment",Business & Development Planning,WDAF,Capital Expenditure,Expenditure on loans & other financial assistance,Carillion Energy Services Ltd,13/02/2015,"1,250.00"
"Development, Business & Employment",Business & Development Planning,WDAF,Capital Expenditure,Expenditure on loans & other financial assistance,STANNAH LIFT SERVICES LTD,13/02/2015,"1,811.00"
"Development, Business & Employment",Business & Development Planning,WDAF,Capital Expenditure,Expenditure on loans & other financial assistance,THE WREKIN HOUSING TRUST (INVOICES ONLY),23/02/2015,"1,600.00"
"Development, Business & Employment",Business & Development Planning,WDAF,Capital Expenditure,Expenditure on loans & other financial assistance,STANNAH LIFT SERVICES LTD,02/02/2015,"1,710.00"
"Development, Business & Employment",Business & Development Planning,WDAF,Capital Expenditure,Expenditure on loans & other financial assistance,Redacted Personal Information,02/02/2015,"4,750.00"
"Development, Business & Employment",Business & Development Planning,WDAF,Capital Expenditure,Expenditure on loans & other financial assistance,AIDS & ADAPTIONS LTD,02/02/2015,"4,995.59"
"Development, Business & Employment",Business & Development Planning,WDAF,Capital Expenditure,Expenditure on loans & other financial assistance,Redacted Personal Information,23/02/2015,"1,000.00"
"Development, Business & Employment",Business & Development Planning,WDAF,Capital Expenditure,Expenditure on loans & other financial assistance,STANNAH LIFT SERVICES LTD,03/02/2015,"1,542.00"
"Development, Business & Employment",Business & Development Planning,WDAF,Capital Expenditure,Expenditure on loans & other financial assistance,A J Carpentry,03/02/2015,"2,768.30"
"Development, Business & Employment",Business & Development Planning,WDAF,Capital Expenditure,Expenditure on loans & other financial assistance,Redacted Personal Information,10/02/2015,"3,914.54"
"Development, Business & Employment",Business & Development Planning,WDAF,Capital Expenditure,Expenditure on loans & other financial assistance,STANNAH LIFT SERVICES LTD,26/02/2015,"3,899.00"
"Development, Business & Employment",Business & Development Planning,WDAF,Capital Expenditure,Expenditure on loans & other financial assistance,DMW ENVIRONMENTAL SAFETY LTD,26/02/2015,125.00
"Development, Business & Employment",Business & Development Planning,WDAF,Capital Expenditure,Expenditure on loans & other financial assistance,THE WREKIN HOUSING TRUST (INVOICES ONLY),18/02/2015,"1,600.00"
"Development, Business & Employment",Business & Development Planning,WDAF,Capital Expenditure,Expenditure on loans & other financial assistance,THE WREKIN HOUSING TRUST (INVOICES ONLY),18/02/2015,"1,600.00"
"Development, Business & Employment",Business & Development Planning,WDAF,Capital Expenditure,Expenditure on loans & other financial assistance,THE WREKIN HOUSING TRUST (INVOICES ONLY),18/02/2015,"1,600.00"
"Development, Business & Employment",Business & Development Planning,WDAF,Capital Expenditure,Expenditure on loans & other financial assistance,THE WREKIN HOUSING TRUST (INVOICES ONLY),18/02/2015,"1,600.00"
"Development, Business & Employment",Business & Development Planning,WDAF,Capital Expenditure,Expenditure on loans & other financial assistance,R E BROWN BUILDERS LIMITED,18/02/2015,"4,664.21"
"Development, Business & Employment",Business & Development Planning,WDAF,Capital Expenditure,Expenditure on loans & other financial assistance,Redacted Personal Information,18/02/2015,"3,686.04"
"Development, Business & Employment",Business & Development Planning,WDAF,Capital Expenditure,Expenditure on loans & other financial assistance,Carillion Energy Services Ltd,18/02/2015,"1,250.00"
"Development, Business & Employment",Business & Development Planning,WDGD,Capital Expenditure,Expenditure on loans & other financial assistance,Carillion Energy Services Ltd,10/02/2015,"1,100.04"
"Development, Business & Employment",Business & Development Planning,WDGD,Capital Expenditure,Expenditure on loans & other financial assistance,Carillion Energy Services Ltd,13/02/2015,266.64
"Development, Business & Employment",Business & Development Planning,WDGD,Capital Expenditure,Expenditure on loans & other financial assistance,Carillion Energy Services Ltd,23/02/2015,233.31
"Development, Business & Employment",Business & Development Planning,WDGD,Capital Expenditure,Expenditure on loans & other financial assistance,Carillion Energy Services Ltd,23/02/2015,233.31
"Development, Business & Employment",Business & Development Planning,WDGD,Capital Expenditure,Expenditure on loans & other financial assistance,Carillion Energy Services Ltd,04/02/2015,"1,008.37"
"Development, Business & Employment",Business & Development Planning,WDGD,Capital Expenditure,Expenditure on loans & other financial assistance,Carillion Energy Services Ltd,04/02/2015,533.28
"Development, Business & Employment",Business & Development Planning,WDGD,Capital Expenditure,Expenditure on loans & other financial assistance,Carillion Energy Services Ltd,04/02/2015,266.64
"Development, Business & Employment",Business & Development Planning,WDGD,Capital Expenditure,Expenditure on loans & other financial assistance,Carillion Energy Services Ltd,04/02/2015,"13,822.79"
"Development, Business & Employment",Business & Development Planning,WDGD,Capital Expenditure,Expenditure on loans & other financial assistance,Carillion Energy Services Ltd,04/02/2015,"29,800.79"
"Development, Business & Employment",Business & Development Planning,WDGD,Capital Expenditure,Expenditure on loans & other financial assistance,Carillion Energy Services Ltd,04/02/2015,"39,727.19"
"Development, Business & Employment",Business & Development Planning,WDGD,Capital Expenditure,Expenditure on loans & other financial assistance,Carillion Energy Services Ltd,23/02/2015,"2,016.74"
"Development, Business & Employment",Business & Development Planning,WDGD,Capital Expenditure,Expenditure on loans & other financial assistance,Carillion Energy Services Ltd,26/02/2015,"50,447.23"
"Development, Business & Employment",Business & Development Planning,WDGD,Capital Expenditure,Expenditure on loans & other financial assistance,Carillion Energy Services Ltd,26/02/2015,"53,318.03"
"Development, Business & Employment",Business & Development Planning,WDGD,Capital Expenditure,Expenditure on loans & other financial assistance,Carillion Energy Services Ltd,25/02/2015,"35,580.74"
"Development, Business & Employment",Business & Development Planning,WDGD,Capital Expenditure,Expenditure on loans & other financial assistance,Carillion Energy Services Ltd,25/02/2015,"41,513.10"
"Development, Business & Employment",Business & Development Planning,WDSE,Capital Expenditure,Legal Fees,FREETH CARTWRIGHT LLP,06/02/2015,495.00
"Development, Business & Employment",Business & Development Planning,WDSQ,Capital Expenditure,Payments to Contractor,Clearview Security Limited,12/02/2015,"2,009.90"
"Development, Business & Employment",Business & Development Planning,WDSQ,Capital Expenditure,Payments to Contractor,Kendalls Electrical Services (Telford) Ltd,12/02/2015,390.00
"Development, Business & Employment",Business & Development Planning,WDSQ,Capital Expenditure,Payments to Contractor,Great Outdoors,23/02/2015,800.00
"Development, Business & Employment",Business & Development Planning,WDSQ,Capital Expenditure,Payments to Contractor,Rollalong Ltd,26/02/2015,"545,486.97"
"Development, Business & Employment",Business & Development Planning,WDSQ,Capital Expenditure,Payments to Contractor,Kendalls Electrical Services (Telford) Ltd,25/02/2015,147.99
"Development, Business & Employment",Business & Development Planning,WDSQ,Capital Expenditure,Payments to Contractor,Kendalls Electrical Services (Telford) Ltd,25/02/2015,"1,002.40"
"Development, Business & Employment",Business & Development Planning,WDSQ,Capital Expenditure,Payments to Contractor,FITZGERALD CONTRACTORS LTD,26/02/2015,"149,290.59"
"Development, Business & Employment",Business & Development Planning,WDSQ,Capital Expenditure,Payments to Contractor,FITZGERALD CONTRACTORS LTD,02/02/2015,"168,305.59"
"Development, Business & Employment",Business & Development Planning,WDST,Capital Expenditure,Payments to Contractor,Baart Harries Newall,12/02/2015,"3,000.00"
"Development, Business & Employment",Business & Development Planning,WDST,Capital Expenditure,Payments to Contractor,PAVE AWAYS LTD,27/02/2015,"-331,564.14"
"Development, Business & Employment",Business & Development Planning,WDST,Capital Expenditure,Payments to Contractor,E.ON (36166103),09/02/2015,243.60
"Development, Business & Employment",Business & Development Planning,WDST,Capital Expenditure,Payments to Contractor,PAVE AWAYS LTD,04/02/2015,"64,274.43"
"Development, Business & Employment",Business & Development Planning,WDST,Capital Expenditure,Payments to Contractor,BUSINESS WATCH GUARDING LIMITED,26/02/2015,664.35
"Development, Business & Employment",Business & Development Planning,WDST,Capital Expenditure,Payments to Contractor,PAVE AWAYS LTD,27/02/2015,"331,564.14"
"Development, Business & Employment",Business & Development Planning,WDST,Capital Expenditure,Payments to Contractor,PAVE AWAYS LTD,26/02/2015,"331,564.14"
"Development, Business & Employment",Business & Development Planning,WDSW,Capital Expenditure,Project Management Fees,MACE LTD,26/02/2015,"-61,740.00"
"Development, Business & Employment",Business & Development Planning,WDSW,Capital Expenditure,Project Management Fees,MACE LTD,26/02/2015,"61,740.00"
"Development, Business & Employment",Business & Development Planning,WDSW,Capital Expenditure,Project Management Fees,MACE LTD,25/02/2015,"39,966.00"
"Development, Business & Employment",Business & Development Planning,WDSW,Capital Expenditure,Project Management Fees,MACE LTD,25/02/2015,"20,200.00"
"Development, Business & Employment",Business & Development Planning,WDSW,Capital Expenditure,Project Management Fees,MACE LTD,25/02/2015,"20,351.50"
"Development, Business & Employment",Business & Development Planning,WDSW,Capital Expenditure,Project Management Fees,MACE LTD,24/02/2015,"-20,351.50"
"Development, Business & Employment",Development Management,DDAC,Supplies & Services,Advertising,THE MIDLAND NEWS ASSOCIATION LTD,09/02/2015,207.36
"Development, Business & Employment",Development Management,DDAC,Supplies & Services,Advertising,THE MIDLAND NEWS ASSOCIATION LTD,23/02/2015,155.52
"Development, Business & Employment",Development Management,DDAC,Supplies & Services,Advertising,THE MIDLAND NEWS ASSOCIATION LTD,24/02/2015,155.52
"Development, Business & Employment",Development Management,DDAD,Premises-Related Expenditure,Planned Repairs,CADER CONSTRUCTION LTD,27/02/2015,176.00
"Development, Business & Employment",Development Management,DDAG,Employees,Agency Supply Costs,matchtech,27/02/2015,"1,380.00"
"Development, Business & Employment",Development Management,DDAG,Employees,Agency Supply Costs,matchtech,17/02/2015,"1,354.13"
"Development, Business & Employment",Development Management,DDAG,Employees,Professional Subs,IHBC ENTERPRISE LTD,12/02/2015,110.00
"Development, Business & Employment",Development Management,DDAG,Employees,Professional Subs,R T P I,06/02/2015,290.00
"Development, Business & Employment",Development Management,DDAG,Employees,Agency Supply Costs,matchtech,09/02/2015,"1,380.00"
"Development, Business & Employment",Development Management,DDAG,Employees,Agency Supply Costs,matchtech,09/02/2015,"1,664.63"
"Development, Business & Employment",Development Management,DDAG,Employees,Agency Supply Costs,matchtech,24/02/2015,"1,509.38"
"Development, Business & Employment",Development Management,DDAG,Employees,Agency Supply Costs,matchtech,24/02/2015,793.50
"Development, Business & Employment",Development Management,DDAG,Employees,Agency Supply Costs,matchtech,24/02/2015,"1,380.00"
"Development, Business & Employment",Development Management,DDAG,Employees,Professional Subs,R T P I,27/02/2015,145.00
"Development, Business & Employment",Development Management,DDAG,Employees,Agency Supply Costs,matchtech,04/02/2015,"1,121.25"
"Development, Business & Employment",Development Management,DDAG,Supplies & Services,Print & Data Services (Print Room) - Charges,RESOLUTION DATA MANAGEMENT LTD,23/02/2015,126.99
"Development, Business & Employment",Property & Design,CAAG,Employees,Agency Supply Costs,RACS Collective Limited,03/02/2015,872.28
"Development, Business & Employment",Property & Design,CAAG,Supplies & Services,Consultants Fees,360 SKYLENS LIMITED,19/02/2015,650.00
"Development, Business & Employment",Property & Design,CAAG,Supplies & Services,Equipment - Purchase,SPECIALIST COMPUTERS CENTRES PLC,11/02/2015,101.03
"Development, Business & Employment",Property & Design,CAAG,Supplies & Services,Consultants Fees,Redacted Personal Information,03/02/2015,400.00
"Development, Business & Employment",Property & Design,CAAG,Supplies & Services,Equipment - Repair,CADSPEC STANFORD MARSH GROUP,24/02/2015,593.30
"Development, Business & Employment",Property & Design,CAAH,Premises-Related Expenditure,R&M -Buildings DLO Charge,SECURITY WISE LTD,27/02/2015,"4,264.00"
"Development, Business & Employment",Property & Design,CAAH,Premises-Related Expenditure,R&M -Buildings DLO Charge,George Birchall Limited,27/02/2015,402.78
"Development, Business & Employment",Property & Design,CAAH,Premises-Related Expenditure,R&M -Buildings DLO Charge,Churches Fire Security Ltd,27/02/2015,329.44
"Development, Business & Employment",Property & Design,CAAH,Premises-Related Expenditure,R&M -Buildings DLO Charge,WREKIN DRAIN SERVICES LTD,27/02/2015,255.00
"Development, Business & Employment",Property & Design,CAAH,Premises-Related Expenditure,R&M -Buildings DLO Charge,DMW ENVIRONMENTAL SAFETY LTD,27/02/2015,175.00
"Development, Business & Employment",Property & Design,CAAH,Premises-Related Expenditure,R&M -Buildings DLO Charge,George Birchall Limited,27/02/2015,408.64
"Development, Business & Employment",Property & Design,CAAH,Premises-Related Expenditure,R&M -Buildings DLO Charge,George Birchall Limited,27/02/2015,177.05
